Workbook

Sheet Introduction
C4: Joint Monitoring Programme for Water Supply, Sanitation and Hygiene
C6: Estimates on household water, sanitation and hygiene by wealth quintile and sub-national region in
C7: =+Water!B5 -> Saint Lucia
C9: Updated May 2021
C11: Follow the links below to find the following information:
C13: JMP Estimates
C14: WASH status and trends by wealth quintile (customized quintiles made without water and sanitation assets)
C15: Water
C16: Sanitation
C17: Hygiene
C19: Data inputs
C20: customized wealth quintiles and subnational data:
C21: =IF(INDIRECT(CONCATENATE("Water","!B105"))=0,"",INDIRECT(CONCATENATE("Water","!B105"))) -> SLC05
C22: =IF(INDIRECT(CONCATENATE("Water","!B106"))=0,"",INDIRECT(CONCATENATE("Water","!B106"))) -> MICS12
C23: =IF(INDIRECT(CONCATENATE("Water","!B107"))=0,"",INDIRECT(CONCATENATE("Water","!B107"))) -> 
C24: =IF(INDIRECT(CONCATENATE("Water","!B108"))=0,"",INDIRECT(CONCATENATE("Water","!B108"))) -> 
C25: =IF(INDIRECT(CONCATENATE("Water","!B109"))=0,"",INDIRECT(CONCATENATE("Water","!B109"))) -> 
C26: =IF(INDIRECT(CONCATENATE("Water","!B110"))=0,"",INDIRECT(CONCATENATE("Water","!B110"))) -> 
C27: =IF(INDIRECT(CONCATENATE("Water","!B111"))=0,"",INDIRECT(CONCATENATE("Water","!B111"))) -> 
C28: =IF(INDIRECT(CONCATENATE("Water","!B112"))=0,"",INDIRECT(CONCATENATE("Water","!B112"))) -> 
C29: =IF(INDIRECT(CONCATENATE("Water","!B113"))=0,"",INDIRECT(CONCATENATE("Water","!B113"))) -> 
C30: =IF(INDIRECT(CONCATENATE("Water","!B114"))=0,"",INDIRECT(CONCATENATE("Water","!B114"))) -> 
C31: =IF(INDIRECT(CONCATENATE("Water","!B115"))=0,"",INDIRECT(CONCATENATE("Water","!B115"))) -> 
C32: =IF(INDIRECT(CONCATENATE("Water","!B116"))=0,"",INDIRECT(CONCATENATE("Water","!B116"))) -> 
L55: =+IF(ISNUMBER(M48), "", "Insufficient data to estimate safely managed sanitation services at national level") -> Insufficient data to estimate safely managed sanitation services at national level

Sheet Water
A1: BGD
B4: Summary of trends in use of drinking water by wealth quintile (%)
B5: =IF(ISERROR(INDIRECT(CONCATENATE($B105,"!A2"))),"",INDIRECT(CONCATENATE($B105,"!A2"))) -> Saint Lucia
B7: =B118 -> National use of drinking water sources, 2000–2018 | J7: =B218 -> Urban use of drinking water sources, 2000–2018 | R7: =B318 -> Rural use of drinking water sources, 2000–2018
B31: =IF(ISERROR(INDIRECT(CONCATENATE($B105,"!A2"))),"",INDIRECT(CONCATENATE($B105,"!A2"))) -> Saint Lucia | F31: Poorest | J31: Poor | N31: Middle | R31: Rich | V31: Richest
F32: Basic | G32: Limited | H32: Unimproved | I32: Surface water | J32: Basic | K32: Limited | L32: Unimproved | M32: Surface water | N32: Basic | O32: Limited | P32: Unimproved | Q32: Surface water | R32: Basic | S32: Limited | T32: Unimproved | U32: Surface water | V32: Basic | W32: Limited | X32: Unimproved | Y32: Surface water
B33: NATIONAL | D33: Estimate | E33: =C99 -> 2000 | F33: =E99 -> 84.11188601 | G33: =F99 -> 0.2875417781 | H33: 15.60057222 | I33: 0 | J33: =J99 -> 95.82387734 | K33: =K99 -> 0 | L33: 4.176122659 | M33: 0 | N33: =O99 -> 95.20080654 | O33: =P99 -> 0 | P33: 4.799193458 | Q33: 0 | R33: =T99 -> 98.85459615 | S33: =U99 -> 0 | T33: 1.145403846 | U33: 0 | V33: =Y99 -> 99.85432546 | W33: =Z99 -> 0.145674536 | X33: 0 | Y33: 0
E34: =C100 -> 2018 | F34: =E100 -> 99.65930838 | G34: 0.3406916204 | H34: 0 | I34: 0 | J34: =J100 -> 100 | K34: 0 | L34: 0 | M34: 0 | N34: =O100 -> 100 | O34: 0 | P34: 0 | Q34: 0 | R34: =T100 -> 100 | S34: 0 | T34: 0 | U34: 0 | V34: =Y100 -> 99.15615824 | W34: 0.1446560004 | X34: 0.6991857625 | Y34: 0
B36: URBAN | D36: Estimate | E36: =C199 -> 2000 | F36: =E199 -> 90.6665796 | G36: =F199 -> 0.3033942015 | H36: 9.030026202 | I36: 0 | J36: =J199 -> 94.01993355 | K36: =K199 -> 0 | L36: 5.980066445 | M36: 0 | N36: =O199 -> 100 | O36: =P199 -> 0 | P36: 0 | Q36: 0 | R36: =T199 -> 100 | S36: =U199 -> 0 | T36: 0 | U36: 0 | V36: =Y199 -> 99.23823027 | W36: =Z199 -> 0.7617697288 | X36: 0 | Y36: 0
E37: =C200 -> 2018 | F37: =E200 -> 99.66648973 | G37: 0.3335102659 | H37: 0 | I37: 0 | J37: =J200 -> 100 | K37: 0 | L37: 0 | M37: 0 | N37: =O200 -> 100 | O37: 0 | P37: 0 | Q37: 0 | R37: =T200 -> 99.67450592 | S37: 0 | T37: 0.3254940773 | U37: 0 | V37: =Y200 -> 99.23823027 | W37: 0.7617697288 | X37: 0 | Y37: 0
B39: RURAL | D39: Estimate | E39: =C299 -> 2000 | F39: =E299 -> 81.8692989 | G39: =F299 -> 0.2829155015 | H39: 17.8477856 | I39: 0 | J39: =J299 -> 93.45569515 | K39: =K299 -> 0 | L39: 6.544304848 | M39: 0 | N39: =O299 -> 95.88803353 | O39: =P299 -> 0 | P39: 4.111966465 | Q39: 0 | R39: =T299 -> 96.66048237 | S39: =U299 -> 0 | T39: 3.339517625 | U39: 0 | V39: =Y299 -> 100 | W39: =Z299 -> 0 | X39: 0 | Y39: 0
E40: =C300 -> 2018 | F40: =E300 -> 99.65562036 | G40: 0.3443796416 | H40: 0 | I40: 0 | J40: =J300 -> 100 | K40: 0 | L40: 0 | M40: 0 | N40: =O300 -> 100 | O40: 0 | P40: 0 | Q40: 0 | R40: =T300 -> 100 | S40: 0 | T40: 0 | U40: 0 | V40: =Y300 -> 99.14569607 | W40: 0 | X40: 0.8543039336 | Y40: 0
A97: NATIONAL | D97: Poorest | I97: Poor | N97: Middle | S97: Rich | X97: Richest
D98: Improved | E98: Basic | F98: Limited | G98: Unimproved | H98: Surface water | I98: Improved | J98: Basic | K98: Limited | L98: Unimproved | M98: Surface water | N98: Improved | O98: Basic | P98: Limited | Q98: Unimproved | R98: Surface water | S98: Improved | T98: Basic | U98: Limited | V98: Unimproved | W98: Surface water | X98: Improved | Y98: Basic | Z98: Limited | AA98: Unimproved | AB98: Surface water
A99: Forecast period: | C99: =MinBase(C105:C116) -> 2000 | D99: =IF((D101+H101)>100,D101*100/(D101+H101),D101) -> 84.39942778 | E99: =D99*AVERAGEIF(E105:E116,">0")/100 -> 84.11188601 | F99: =D99*(100-AVERAGEIF(E105:E116,">0"))/100 -> 0.2875417781 | G99: =100-(E99+F99+H99) -> 15.60057222 | H99: =IF((D101+H101)>100,H101*100/(D101+H101),H101) -> 0 | I99: =IF((I101+M101)>100,I101*100/(I101+M101),I101) -> 95.82387734 | J99: =I99*AVERAGEIF(J105:J116,">0")/100 -> 95.82387734 | K99: =I99*(100-AVERAGEIF(J105:J116,">0"))/100 -> 0 | L99: =100-(J99+K99+M99) -> 4.176122659 | M99: =IF((I101+M101)>100,M101*100/(I101+M101),M101) -> 0 | N99: =IF((N101+R101)>100,N101*100/(N101+R101),N101) -> 95.20080654 | O99: =N99*AVERAGEIF(O105:O116,">0")/100 -> 95.20080654 | P99: =N99*(100-AVERAGEIF(O105:O116,">0"))/100 -> 0 | Q99: =100-(O99+P99+R99) -> 4.799193458 | R99: =IF((N101+R101)>100,R101*100/(N101+R101),R101) -> 0 | S99: =IF((S101+W101)>100,S101*100/(S101+W101),S101) -> 98.85459615 | T99: =S99*AVERAGEIF(T105:T116,">0")/100 -> 98.85459615 | U99: =S99*(100-AVERAGEIF(T105:T116,">0"))/100 -> 0 | V99: =100-(T99+U99+W99) -> 1.145403846 | W99: =IF((S101+W101)>100,W101*100/(S101+W101),W101) -> 0 | X99: =IF((X101+AB101)>100,X101*100/(X101+AB101),X101) -> 100 | Y99: =X99*AVERAGEIF(Y105:Y116,">0")/100 -> 99.85432546 | Z99: =X99*(100-AVERAGEIF(Y105:Y116,">0"))/100 -> 0.145674536 | AA99: =100-(Y99+Z99+AB99) -> 0 | AB99: =IF((X101+AB101)>100,AB101*100/(X101+AB101),AB101) -> 0
C100: =MaxTarget(C105:C116) -> 2018 | D100: =IF((D102+H102)>100,D102*100/(D102+H102),D102) -> 100 | E100: =D100*AVERAGEIF(E105:E116,">0")/100 -> 99.65930838 | F100: =D100*(100-AVERAGEIF(E105:E116,">0"))/100 -> 0.3406916204 | G100: =100-(E100+F100+H100) -> 0 | H100: =IF((D102+H102)>100,H102*100/(D102+H102),H102) -> 0 | I100: =IF((I102+M102)>100,I102*100/(I102+M102),I102) -> 100 | J100: =I100*AVERAGEIF(J105:J116,">0")/100 -> 100 | K100: =I100*(100-AVERAGEIF(J105:J116,">0"))/100 -> 0 | L100: =100-(J100+K100+M100) -> 0 | M100: =IF((I102+M102)>100,M102*100/(I102+M102),M102) -> 0 | N100: =IF((N102+R102)>100,N102*100/(N102+R102),N102) -> 100 | O100: =N100*AVERAGEIF(O105:O116,">0")/100 -> 100 | P100: =N100*(100-AVERAGEIF(O105:O116,">0"))/100 -> 0 | Q100: =100-(O100+P100+R100) -> 0 | R100: =IF((N102+R102)>100,R102*100/(N102+R102),R102) -> 0 | S100: =IF((S102+W102)>100,S102*100/(S102+W102),S102) -> 100 | T100: =S100*AVERAGEIF(T105:T116,">0")/100 -> 100 | U100: =S100*(100-AVERAGEIF(T105:T116,">0"))/100 -> 0 | V100: =100-(T100+U100+W100) -> 0 | W100: =IF((S102+W102)>100,W102*100/(S102+W102),W102) -> 0 | X100: =IF((X102+AB102)>100,X102*100/(X102+AB102),X102) -> 99.30081424 | Y100: =X100*AVERAGEIF(Y105:Y116,">0")/100 -> 99.15615824 | Z100: =X100*(100-AVERAGEIF(Y105:Y116,">0"))/100 -> 0.1446560004 | AA100: =100-(Y100+Z100+AB100) -> 0.6991857625 | AB100: =IF((X102+AB102)>100,AB102*100/(X102+AB102),AB102) -> 0
A101: Regression period: | C101: =MinRegYear(C99,C105:C116) -> 2003 | D101: =IF(MAX(C105:C116)-MIN(C105:C116)<5,AVERAGEIF(C105:C116,">0",D105:D116), IF(FORECAST($C101,D$105:D$116,$C$105:$C$116)<0,0, IF(FORECAST($C101,D$105:D$116,$C$105:$C$116)>100,100, FORECAST($C101,D$105:D$116,$C$105:$C$116)))) -> 84.39942778 | H101: =IF(MAX(C105:C116)-MIN(C105:C116)<5,AVERAGEIF(C105:C116,">0",H105:H116), IF(FORECAST($C101,H$105:H$116,$C$105:$C$116)<0,0, IF(FORECAST($C101,H$105:H$116,$C$105:$C$116)>100,100, FORECAST($C101,H$105:H$116,$C$105:$C$116)))) -> 0 | I101: =IF(MAX(C105:C116)-MIN(C105:C116)<5,AVERAGEIF(C105:C116,">0",I105:I116), IF(FORECAST($C101,I$105:I$116,$C$105:$C$116)<0,0, IF(FORECAST($C101,I$105:I$116,$C$105:$C$116)>100,100, FORECAST($C101,I$105:I$116,$C$105:$C$116)))) -> 95.82387734 | M101: =IF(MAX(C105:C116)-MIN(C105:C116)<5,AVERAGEIF(C105:C116,">0",M105:M116), IF(FORECAST($C101,M$105:M$116,$C$105:$C$116)<0,0, IF(FORECAST($C101,M$105:M$116,$C$105:$C$116)>100,100, FORECAST($C101,M$105:M$116,$C$105:$C$116)))) -> 0 | N101: =IF(MAX(C105:C116)-MIN(C105:C116)<5,AVERAGEIF(C105:C116,">0",N105:N116), IF(FORECAST($C101,N$105:N$116,$C$105:$C$116)<0,0, IF(FORECAST($C101,N$105:N$116,$C$105:$C$116)>100,100, FORECAST($C101,N$105:N$116,$C$105:$C$116)))) -> 95.20080654 | R101: =IF(MAX(C105:C116)-MIN(C105:C116)<5,AVERAGEIF(C105:C116,">0",R105:R116), IF(FORECAST($C101,R$105:R$116,$C$105:$C$116)<0,0, IF(FORECAST($C101,R$105:R$116,$C$105:$C$116)>100,100, FORECAST($C101,R$105:R$116,$C$105:$C$116)))) -> 0 | S101: =IF(MAX(C105:C116)-MIN(C105:C116)<5,AVERAGEIF(C105:C116,">0",S105:S116), IF(FORECAST($C101,S$105:S$116,$C$105:$C$116)<0,0, IF(FORECAST($C101,S$105:S$116,$C$105:$C$116)>100,100, FORECAST($C101,S$105:S$116,$C$105:$C$116)))) -> 98.85459615 | W101: =IF(MAX(C105:C116)-MIN(C105:C116)<5,AVERAGEIF(C105:C116,">0",W105:W116), IF(FORECAST($C101,W$105:W$116,$C$105:$C$116)<0,0, IF(FORECAST($C101,W$105:W$116,$C$105:$C$116)>100,100, FORECAST($C101,W$105:W$116,$C$105:$C$116)))) -> 0 | X101: =IF(MAX(C105:C116)-MIN(C105:C116)<5,AVERAGEIF(C105:C116,">0",X105:X116), IF(FORECAST($C101,X$105:X$116,$C$105:$C$116)<0,0, IF(FORECAST($C101,X$105:X$116,$C$105:$C$116)>100,100, FORECAST($C101,X$105:X$116,$C$105:$C$116)))) -> 100 | AB101: =IF(MAX(C105:C116)-MIN(C105:C116)<5,AVERAGEIF(C105:C116,">0",AB105:AB116), IF(FORECAST($C101,AB$105:AB$116,$C$105:$C$116)<0,0, IF(FORECAST($C101,AB$105:AB$116,$C$105:$C$116)>100,100, FORECAST($C101,AB$105:AB$116,$C$105:$C$116)))) -> 0
C102: =MaxRegYear(C100,C105:C116) -> 2014 | D102: =IF(MAX(C105:C116)-MIN(C105:C116)<5,AVERAGEIF(C105:C116,">0",D105:D116), IF(FORECAST($C102,D$105:D$116,$C$105:$C$116)<0,0, IF(FORECAST($C102,D$105:D$116,$C$105:$C$116)>100,100, FORECAST($C102,D$105:D$116,$C$105:$C$116)))) -> 100 | H102: =IF(MAX(C105:C116)-MIN(C105:C116)<5,AVERAGEIF(C105:C116,">0",H105:H116), IF(FORECAST($C102,H$105:H$116,$C$105:$C$116)<0,0, IF(FORECAST($C102,H$105:H$116,$C$105:$C$116)>100,100, FORECAST($C102,H$105:H$116,$C$105:$C$116)))) -> 0 | I102: =IF(MAX(C105:C116)-MIN(C105:C116)<5,AVERAGEIF(C105:C116,">0",I105:I116), IF(FORECAST($C102,I$105:I$116,$C$105:$C$116)<0,0, IF(FORECAST($C102,I$105:I$116,$C$105:$C$116)>100,100, FORECAST($C102,I$105:I$116,$C$105:$C$116)))) -> 100 | M102: =IF(MAX(C105:C116)-MIN(C105:C116)<5,AVERAGEIF(C105:C116,">0",M105:M116), IF(FORECAST($C102,M$105:M$116,$C$105:$C$116)<0,0, IF(FORECAST($C102,M$105:M$116,$C$105:$C$116)>100,100, FORECAST($C102,M$105:M$116,$C$105:$C$116)))) -> 0 | N102: =IF(MAX(C105:C116)-MIN(C105:C116)<5,AVERAGEIF(C105:C116,">0",N105:N116), IF(FORECAST($C102,N$105:N$116,$C$105:$C$116)<0,0, IF(FORECAST($C102,N$105:N$116,$C$105:$C$116)>100,100, FORECAST($C102,N$105:N$116,$C$105:$C$116)))) -> 100 | R102: =IF(MAX(C105:C116)-MIN(C105:C116)<5,AVERAGEIF(C105:C116,">0",R105:R116), IF(FORECAST($C102,R$105:R$116,$C$105:$C$116)<0,0, IF(FORECAST($C102,R$105:R$116,$C$105:$C$116)>100,100, FORECAST($C102,R$105:R$116,$C$105:$C$116)))) -> 0 | S102: =IF(MAX(C105:C116)-MIN(C105:C116)<5,AVERAGEIF(C105:C116,">0",S105:S116), IF(FORECAST($C102,S$105:S$116,$C$105:$C$116)<0,0, IF(FORECAST($C102,S$105:S$116,$C$105:$C$116)>100,100, FORECAST($C102,S$105:S$116,$C$105:$C$116)))) -> 100 | W102: =IF(MAX(C105:C116)-MIN(C105:C116)<5,AVERAGEIF(C105:C116,">0",W105:W116), IF(FORECAST($C102,W$105:W$116,$C$105:$C$116)<0,0, IF(FORECAST($C102,W$105:W$116,$C$105:$C$116)>100,100, FORECAST($C102,W$105:W$116,$C$105:$C$116)))) -> 0 | X102: =IF(MAX(C105:C116)-MIN(C105:C116)<5,AVERAGEIF(C105:C116,">0",X105:X116), IF(FORECAST($C102,X$105:X$116,$C$105:$C$116)<0,0, IF(FORECAST($C102,X$105:X$116,$C$105:$C$116)>100,100, FORECAST($C102,X$105:X$116,$C$105:$C$116)))) -> 99.30081424 | AB102: =IF(MAX(C105:C116)-MIN(C105:C116)<5,AVERAGEIF(C105:C116,">0",AB105:AB116), IF(FORECAST($C102,AB$105:AB$116,$C$105:$C$116)<0,0, IF(FORECAST($C102,AB$105:AB$116,$C$105:$C$116)>100,100, FORECAST($C102,AB$105:AB$116,$C$105:$C$116)))) -> 0
B104: Survey | C104: Year | D104: Improved | E104: % Improved < = 30min | H104: Surface water | I104: Improved | J104: % Improved < = 30min | M104: Surface water | N104: Improved | O104: % Improved < = 30min | R104: Surface water | S104: Improved | T104: % Improved < = 30min | W104: Surface water | X104: Improved | Y104: % Improved < = 30min | AB104: Surface water
B105: SLC05 | C105: 2005 | D105: =IF(ISERROR(INDIRECT(CONCATENATE($B105,"!C16"))),"",INDIRECT(CONCATENATE($B105,"!C16"))) -> 87.34319912 | E105: =IF(ISERROR(INDIRECT(CONCATENATE($B105,"!C23"))),"",INDIRECT(CONCATENATE($B105,"!C23"))) -> N/A | H105: =IF(ISERROR(INDIRECT(CONCATENATE($B105,"!C21"))),"",INDIRECT(CONCATENATE($B105,"!C21"))) -> 0 | I105: =IF(ISERROR(INDIRECT(CONCATENATE($B105,"!D16"))),"",INDIRECT(CONCATENATE($B105,"!D16"))) -> 96.66666667 | J105: =IF(ISERROR(INDIRECT(CONCATENATE($B105,"!D23"))),"",INDIRECT(CONCATENATE($B105,"!D23"))) -> N/A | M105: =IF(ISERROR(INDIRECT(CONCATENATE($B105,"!D21"))),"",INDIRECT(CONCATENATE($B105,"!D21"))) -> 0 | N105: =IF(ISERROR(INDIRECT(CONCATENATE($B105,"!E16"))),"",INDIRECT(CONCATENATE($B105,"!E16"))) -> 96.20251909 | O105: =IF(ISERROR(INDIRECT(CONCATENATE($B105,"!E23"))),"",INDIRECT(CONCATENATE($B105,"!E23"))) -> N/A | R105: =IF(ISERROR(INDIRECT(CONCATENATE($B105,"!E21"))),"",INDIRECT(CONCATENATE($B105,"!E21"))) -> 0 | S105: =IF(ISERROR(INDIRECT(CONCATENATE($B105,"!F16"))),"",INDIRECT(CONCATENATE($B105,"!F16"))) -> 99.09847038 | T105: =IF(ISERROR(INDIRECT(CONCATENATE($B105,"!F23"))),"",INDIRECT(CONCATENATE($B105,"!F23"))) -> N/A | W105: =IF(ISERROR(INDIRECT(CONCATENATE($B105,"!F21"))),"",INDIRECT(CONCATENATE($B105,"!F21"))) -> 0 | X105: =IF(ISERROR(INDIRECT(CONCATENATE($B105,"!G16"))),"",INDIRECT(CONCATENATE($B105,"!G16"))) -> 100 | Y105: =IF(ISERROR(INDIRECT(CONCATENATE($B105,"!G23"))),"",INDIRECT(CONCATENATE($B105,"!G23"))) -> N/A | AB105: =IF(ISERROR(INDIRECT(CONCATENATE($B105,"!G221"))),"",INDIRECT(CONCATENATE($B105,"!G21"))) -> 0
B106: MICS12 | C106: 2012 | D106: 97.64639882 | E106: 99.65930838 | H106: 0 | I106: 99.61642931 | J106: 100 | M106: 0 | N106: 99.70851301 | O106: 100 | R106: 0 | S106: 99.95203016 | T106: 100 | W106: 0 | X106: 99.45618885 | Y106: 99.85432546 | AB106: 0
D111: =IF(ISERROR(INDIRECT(CONCATENATE($B111,"!C16"))),"",INDIRECT(CONCATENATE($B111,"!C16"))) ->  | E111: =IF(ISERROR(INDIRECT(CONCATENATE($B111,"!C23"))),"",INDIRECT(CONCATENATE($B111,"!C23"))) ->  | H111: =IF(ISERROR(INDIRECT(CONCATENATE($B111,"!C21"))),"",INDIRECT(CONCATENATE($B111,"!C21"))) ->  | I111: =IF(ISERROR(INDIRECT(CONCATENATE($B111,"!D16"))),"",INDIRECT(CONCATENATE($B111,"!D16"))) ->  | J111: =IF(ISERROR(INDIRECT(CONCATENATE($B111,"!D23"))),"",INDIRECT(CONCATENATE($B111,"!D23"))) ->  | M111: =IF(ISERROR(INDIRECT(CONCATENATE($B111,"!D21"))),"",INDIRECT(CONCATENATE($B111,"!D21"))) ->  | N111: =IF(ISERROR(INDIRECT(CONCATENATE($B111,"!E16"))),"",INDIRECT(CONCATENATE($B111,"!E16"))) ->  | O111: =IF(ISERROR(INDIRECT(CONCATENATE($B111,"!E23"))),"",INDIRECT(CONCATENATE($B111,"!E23"))) ->  | R111: =IF(ISERROR(INDIRECT(CONCATENATE($B111,"!E21"))),"",INDIRECT(CONCATENATE($B111,"!E21"))) ->  | S111: =IF(ISERROR(INDIRECT(CONCATENATE($B111,"!F16"))),"",INDIRECT(CONCATENATE($B111,"!F16"))) ->  | T111: =IF(ISERROR(INDIRECT(CONCATENATE($B111,"!F23"))),"",INDIRECT(CONCATENATE($B111,"!F23"))) ->  | W111: =IF(ISERROR(INDIRECT(CONCATENATE($B111,"!F21"))),"",INDIRECT(CONCATENATE($B111,"!F21"))) ->  | X111: =IF(ISERROR(INDIRECT(CONCATENATE($B111,"!G16"))),"",INDIRECT(CONCATENATE($B111,"!G16"))) ->  | Y111: =IF(ISERROR(INDIRECT(CONCATENATE($B111,"!G23"))),"",INDIRECT(CONCATENATE($B111,"!G23"))) ->  | AB111: =IF(ISERROR(INDIRECT(CONCATENATE($B111,"!G221"))),"",INDIRECT(CONCATENATE($B111,"!G21"))) -> 
D112: =IF(ISERROR(INDIRECT(CONCATENATE($B112,"!C16"))),"",INDIRECT(CONCATENATE($B112,"!C16"))) ->  | E112: =IF(ISERROR(INDIRECT(CONCATENATE($B112,"!C23"))),"",INDIRECT(CONCATENATE($B112,"!C23"))) ->  | H112: =IF(ISERROR(INDIRECT(CONCATENATE($B112,"!C21"))),"",INDIRECT(CONCATENATE($B112,"!C21"))) ->  | I112: =IF(ISERROR(INDIRECT(CONCATENATE($B112,"!D16"))),"",INDIRECT(CONCATENATE($B112,"!D16"))) ->  | J112: =IF(ISERROR(INDIRECT(CONCATENATE($B112,"!D23"))),"",INDIRECT(CONCATENATE($B112,"!D23"))) ->  | M112: =IF(ISERROR(INDIRECT(CONCATENATE($B112,"!D21"))),"",INDIRECT(CONCATENATE($B112,"!D21"))) ->  | N112: =IF(ISERROR(INDIRECT(CONCATENATE($B112,"!E16"))),"",INDIRECT(CONCATENATE($B112,"!E16"))) ->  | O112: =IF(ISERROR(INDIRECT(CONCATENATE($B112,"!E23"))),"",INDIRECT(CONCATENATE($B112,"!E23"))) ->  | R112: =IF(ISERROR(INDIRECT(CONCATENATE($B112,"!E21"))),"",INDIRECT(CONCATENATE($B112,"!E21"))) ->  | S112: =IF(ISERROR(INDIRECT(CONCATENATE($B112,"!F16"))),"",INDIRECT(CONCATENATE($B112,"!F16"))) ->  | T112: =IF(ISERROR(INDIRECT(CONCATENATE($B112,"!F23"))),"",INDIRECT(CONCATENATE($B112,"!F23"))) ->  | W112: =IF(ISERROR(INDIRECT(CONCATENATE($B112,"!F21"))),"",INDIRECT(CONCATENATE($B112,"!F21"))) ->  | X112: =IF(ISERROR(INDIRECT(CONCATENATE($B112,"!G16"))),"",INDIRECT(CONCATENATE($B112,"!G16"))) ->  | Y112: =IF(ISERROR(INDIRECT(CONCATENATE($B112,"!G23"))),"",INDIRECT(CONCATENATE($B112,"!G23"))) ->  | AB112: =IF(ISERROR(INDIRECT(CONCATENATE($B112,"!G221"))),"",INDIRECT(CONCATENATE($B112,"!G21"))) -> 
B118: =CONCATENATE("National use of drinking water sources, ",C99,"–",C100) -> National use of drinking water sources, 2000–2018 | S118: Data points used for regression
E153: =IF(ISERROR(INDIRECT(CONCATENATE($B153,"!M18"))),"",INDIRECT(CONCATENATE($B153,"!M18"))) ->  | F153: =IF(ISERROR(INDIRECT(CONCATENATE($B153,"!M19"))),"",INDIRECT(CONCATENATE($B153,"!M19"))) ->  | G153: =IF(ISERROR(INDIRECT(CONCATENATE($B153,"!M20"))),"",INDIRECT(CONCATENATE($B153,"!M20"))) ->  | H153: =IF(ISERROR(INDIRECT(CONCATENATE($B153,"!M21"))),"",INDIRECT(CONCATENATE($B153,"!M21"))) ->  | J153: =IF(ISERROR(INDIRECT(CONCATENATE($B153,"!N18"))),"",INDIRECT(CONCATENATE($B153,"!N18"))) ->  | K153: =IF(ISERROR(INDIRECT(CONCATENATE($B153,"!N19"))),"",INDIRECT(CONCATENATE($B153,"!N19"))) ->  | L153: =IF(ISERROR(INDIRECT(CONCATENATE($B153,"!N20"))),"",INDIRECT(CONCATENATE($B153,"!N20"))) ->  | M153: =IF(ISERROR(INDIRECT(CONCATENATE($B153,"!N21"))),"",INDIRECT(CONCATENATE($B153,"!N21"))) ->  | O153: =IF(ISERROR(INDIRECT(CONCATENATE($B153,"!O18"))),"",INDIRECT(CONCATENATE($B153,"!O18"))) ->  | P153: =IF(ISERROR(INDIRECT(CONCATENATE($B153,"!O19"))),"",INDIRECT(CONCATENATE($B153,"!O19"))) ->  | Q153: =IF(ISERROR(INDIRECT(CONCATENATE($B153,"!O20"))),"",INDIRECT(CONCATENATE($B153,"!O20"))) ->  | R153: =IF(ISERROR(INDIRECT(CONCATENATE($B153,"!O21"))),"",INDIRECT(CONCATENATE($B153,"!O21"))) ->  | T153: =IF(ISERROR(INDIRECT(CONCATENATE($B153,"!P18"))),"",INDIRECT(CONCATENATE($B153,"!P18"))) ->  | U153: =IF(ISERROR(INDIRECT(CONCATENATE($B153,"!P19"))),"",INDIRECT(CONCATENATE($B153,"!P19"))) ->  | V153: =IF(ISERROR(INDIRECT(CONCATENATE($B153,"!P20"))),"",INDIRECT(CONCATENATE($B153,"!P20"))) ->  | W153: =IF(ISERROR(INDIRECT(CONCATENATE($B153,"!P21"))),"",INDIRECT(CONCATENATE($B153,"!P21"))) ->  | Y153: =IF(ISERROR(INDIRECT(CONCATENATE($B153,"!Q18"))),"",INDIRECT(CONCATENATE($B153,"!Q18"))) ->  | Z153: =IF(ISERROR(INDIRECT(CONCATENATE($B153,"!Q19"))),"",INDIRECT(CONCATENATE($B153,"!Q19"))) ->  | AA153: =IF(ISERROR(INDIRECT(CONCATENATE($B153,"!Q20"))),"",INDIRECT(CONCATENATE($B153,"!Q20"))) ->  | AB153: =IF(ISERROR(INDIRECT(CONCATENATE($B153,"!Q21"))),"",INDIRECT(CONCATENATE($B153,"!Q1"))) -> 
A197: URBAN | D197: Poorest | I197: Poor | N197: Middle | S197: Rich | X197: Richest
D198: Improved | E198: Basic | F198: Limited | G198: Unimproved | H198: Surface water | I198: Improved | J198: Basic | K198: Limited | L198: Unimproved | M198: Surface water | N198: Improved | O198: Basic | P198: Limited | Q198: Unimproved | R198: Surface water | S198: Improved | T198: Basic | U198: Limited | V198: Unimproved | W198: Surface water | X198: Improved | Y198: Basic | Z198: Limited | AA198: Unimproved | AB198: Surface water
A199: Forecast period: | C199: =MinBase(C205:C216) -> 2000 | D199: =IF((D201+H201)>100,D201*100/(D201+H201),D201) -> 90.9699738 | E199: =D199*AVERAGEIF(E205:E216,">0")/100 -> 90.6665796 | F199: =D199*(100-AVERAGEIF(E205:E216,">0"))/100 -> 0.3033942015 | G199: =100-(E199+F199+H199) -> 9.030026202 | H199: =IF((D201+H201)>100,H201*100/(D201+H201),H201) -> 0 | I199: =IF((I201+M201)>100,I201*100/(I201+M201),I201) -> 94.01993355 | J199: =I199*AVERAGEIF(J205:J216,">0")/100 -> 94.01993355 | K199: =I199*(100-AVERAGEIF(J205:J216,">0"))/100 -> 0 | L199: =100-(J199+K199+M199) -> 5.980066445 | M199: =IF((I201+M201)>100,M201*100/(I201+M201),M201) -> 0 | N199: =IF((N201+R201)>100,N201*100/(N201+R201),N201) -> 100 | O199: =N199*AVERAGEIF(O205:O216,">0")/100 -> 100 | P199: =N199*(100-AVERAGEIF(O205:O216,">0"))/100 -> 0 | Q199: =100-(O199+P199+R199) -> 0 | R199: =IF((N201+R201)>100,R201*100/(N201+R201),R201) -> 0 | S199: =IF((S201+W201)>100,S201*100/(S201+W201),S201) -> 100 | T199: =S199*AVERAGEIF(T205:T216,">0")/100 -> 100 | U199: =S199*(100-AVERAGEIF(T205:T216,">0"))/100 -> 0 | V199: =100-(T199+U199+W199) -> 0 | W199: =IF((S201+W201)>100,W201*100/(S201+W201),W201) -> 0 | X199: =IF((X201+AB201)>100,X201*100/(X201+AB201),X201) -> 100 | Y199: =X199*AVERAGEIF(Y205:Y216,">0")/100 -> 99.23823027 | Z199: =X199*(100-AVERAGEIF(Y205:Y216,">0"))/100 -> 0.7617697288 | AA199: =100-(Y199+Z199+AB199) -> 0 | AB199: =IF((X201+AB201)>100,AB201*100/(X201+AB201),AB201) -> 0
C200: =MaxTarget(C205:C216) -> 2018 | D200: =IF((D202+H202)>100,D202*100/(D202+H202),D202) -> 100 | E200: =D200*AVERAGEIF(E205:E216,">0")/100 -> 99.66648973 | F200: =D200*(100-AVERAGEIF(E205:E216,">0"))/100 -> 0.3335102659 | G200: =100-(E200+F200+H200) -> 0 | H200: =IF((D202+H202)>100,H202*100/(D202+H202),H202) -> 0 | I200: =IF((I202+M202)>100,I202*100/(I202+M202),I202) -> 100 | J200: =I200*AVERAGEIF(J205:J216,">0")/100 -> 100 | K200: =I200*(100-AVERAGEIF(J205:J216,">0"))/100 -> 0 | L200: =100-(J200+K200+M200) -> 0 | M200: =IF((I202+M202)>100,M202*100/(I202+M202),M202) -> 0 | N200: =IF((N202+R202)>100,N202*100/(N202+R202),N202) -> 100 | O200: =N200*AVERAGEIF(O205:O216,">0")/100 -> 100 | P200: =N200*(100-AVERAGEIF(O205:O216,">0"))/100 -> 0 | Q200: =100-(O200+P200+R200) -> 0 | R200: =IF((N202+R202)>100,R202*100/(N202+R202),R202) -> 0 | S200: =IF((S202+W202)>100,S202*100/(S202+W202),S202) -> 99.67450592 | T200: =S200*AVERAGEIF(T205:T216,">0")/100 -> 99.67450592 | U200: =S200*(100-AVERAGEIF(T205:T216,">0"))/100 -> 0 | V200: =100-(T200+U200+W200) -> 0.3254940773 | W200: =IF((S202+W202)>100,W202*100/(S202+W202),W202) -> 0 | X200: =IF((X202+AB202)>100,X202*100/(X202+AB202),X202) -> 100 | Y200: =X200*AVERAGEIF(Y205:Y216,">0")/100 -> 99.23823027 | Z200: =X200*(100-AVERAGEIF(Y205:Y216,">0"))/100 -> 0.7617697288 | AA200: =100-(Y200+Z200+AB200) -> 0 | AB200: =IF((X202+AB202)>100,AB202*100/(X202+AB202),AB202) -> 0
A201: Regression period: | C201: =MinRegYear(C199,C205:C216) -> 2003 | D201: =IF(MAX(C205:C216)-MIN(C205:C216)<5,AVERAGEIF(C205:C216,">0",D205:D216), IF(FORECAST($C201,D$205:D$216,$C$205:$C$216)<0,0, IF(FORECAST($C201,D$205:D$216,$C$205:$C$216)>100,100, FORECAST($C201,D$205:D$216,$C$205:$C$216)))) -> 90.9699738 | H201: =IF(MAX(C205:C216)-MIN(C205:C216)<5,AVERAGEIF(C205:C216,">0",H205:H216), IF(FORECAST($C201,H$205:H$216,$C$205:$C$216)<0,0, IF(FORECAST($C201,H$205:H$216,$C$205:$C$216)>100,100, FORECAST($C201,H$205:H$216,$C$205:$C$216)))) -> 0 | I201: =IF(MAX(C205:C216)-MIN(C205:C216)<5,AVERAGEIF(C205:C216,">0",I205:I216), IF(FORECAST($C201,I$205:I$216,$C$205:$C$216)<0,0, IF(FORECAST($C201,I$205:I$216,$C$205:$C$216)>100,100, FORECAST($C201,I$205:I$216,$C$205:$C$216)))) -> 94.01993355 | M201: =IF(MAX(C205:C216)-MIN(C205:C216)<5,AVERAGEIF(C205:C216,">0",M205:M216), IF(FORECAST($C201,M$205:M$216,$C$205:$C$216)<0,0, IF(FORECAST($C201,M$205:M$216,$C$205:$C$216)>100,100, FORECAST($C201,M$205:M$216,$C$205:$C$216)))) -> 0 | N201: =IF(MAX(C205:C216)-MIN(C205:C216)<5,AVERAGEIF(C205:C216,">0",N205:N216), IF(FORECAST($C201,N$205:N$216,$C$205:$C$216)<0,0, IF(FORECAST($C201,N$205:N$216,$C$205:$C$216)>100,100, FORECAST($C201,N$205:N$216,$C$205:$C$216)))) -> 100 | R201: =IF(MAX(C205:C216)-MIN(C205:C216)<5,AVERAGEIF(C205:C216,">0",R205:R216), IF(FORECAST($C201,R$205:R$216,$C$205:$C$216)<0,0, IF(FORECAST($C201,R$205:R$216,$C$205:$C$216)>100,100, FORECAST($C201,R$205:R$216,$C$205:$C$216)))) -> 0 | S201: =IF(MAX(C205:C216)-MIN(C205:C216)<5,AVERAGEIF(C205:C216,">0",S205:S216), IF(FORECAST($C201,S$205:S$216,$C$205:$C$216)<0,0, IF(FORECAST($C201,S$205:S$216,$C$205:$C$216)>100,100, FORECAST($C201,S$205:S$216,$C$205:$C$216)))) -> 100 | W201: =IF(MAX(C205:C216)-MIN(C205:C216)<5,AVERAGEIF(C205:C216,">0",W205:W216), IF(FORECAST($C201,W$205:W$216,$C$205:$C$216)<0,0, IF(FORECAST($C201,W$205:W$216,$C$205:$C$216)>100,100, FORECAST($C201,W$205:W$216,$C$205:$C$216)))) -> 0 | X201: =IF(MAX(C205:C216)-MIN(C205:C216)<5,AVERAGEIF(C205:C216,">0",X205:X216), IF(FORECAST($C201,X$205:X$216,$C$205:$C$216)<0,0, IF(FORECAST($C201,X$205:X$216,$C$205:$C$216)>100,100, FORECAST($C201,X$205:X$216,$C$205:$C$216)))) -> 100 | AB201: =IF(MAX(C205:C216)-MIN(C205:C216)<5,AVERAGEIF(C205:C216,">0",AB205:AB216), IF(FORECAST($C201,AB$205:AB$216,$C$205:$C$216)<0,0, IF(FORECAST($C201,AB$205:AB$216,$C$205:$C$216)>100,100, FORECAST($C201,AB$205:AB$216,$C$205:$C$216)))) -> 0
C202: =MaxRegYear(C200,C205:C216) -> 2014 | D202: =IF(MAX(C205:C216)-MIN(C205:C216)<5,AVERAGEIF(C205:C216,">0",D205:D216), IF(FORECAST($C202,D$205:D$216,$C$205:$C$216)<0,0, IF(FORECAST($C202,D$205:D$216,$C$205:$C$216)>100,100, FORECAST($C202,D$205:D$216,$C$205:$C$216)))) -> 100 | H202: =IF(MAX(C205:C216)-MIN(C205:C216)<5,AVERAGEIF(C205:C216,">0",H205:H216), IF(FORECAST($C202,H$205:H$216,$C$205:$C$216)<0,0, IF(FORECAST($C202,H$205:H$216,$C$205:$C$216)>100,100, FORECAST($C202,H$205:H$216,$C$205:$C$216)))) -> 0 | I202: =IF(MAX(C205:C216)-MIN(C205:C216)<5,AVERAGEIF(C205:C216,">0",I205:I216), IF(FORECAST($C202,I$205:I$216,$C$205:$C$216)<0,0, IF(FORECAST($C202,I$205:I$216,$C$205:$C$216)>100,100, FORECAST($C202,I$205:I$216,$C$205:$C$216)))) -> 100 | M202: =IF(MAX(C205:C216)-MIN(C205:C216)<5,AVERAGEIF(C205:C216,">0",M205:M216), IF(FORECAST($C202,M$205:M$216,$C$205:$C$216)<0,0, IF(FORECAST($C202,M$205:M$216,$C$205:$C$216)>100,100, FORECAST($C202,M$205:M$216,$C$205:$C$216)))) -> 0 | N202: =IF(MAX(C205:C216)-MIN(C205:C216)<5,AVERAGEIF(C205:C216,">0",N205:N216), IF(FORECAST($C202,N$205:N$216,$C$205:$C$216)<0,0, IF(FORECAST($C202,N$205:N$216,$C$205:$C$216)>100,100, FORECAST($C202,N$205:N$216,$C$205:$C$216)))) -> 100 | R202: =IF(MAX(C205:C216)-MIN(C205:C216)<5,AVERAGEIF(C205:C216,">0",R205:R216), IF(FORECAST($C202,R$205:R$216,$C$205:$C$216)<0,0, IF(FORECAST($C202,R$205:R$216,$C$205:$C$216)>100,100, FORECAST($C202,R$205:R$216,$C$205:$C$216)))) -> 0 | S202: =IF(MAX(C205:C216)-MIN(C205:C216)<5,AVERAGEIF(C205:C216,">0",S205:S216), IF(FORECAST($C202,S$205:S$216,$C$205:$C$216)<0,0, IF(FORECAST($C202,S$205:S$216,$C$205:$C$216)>100,100, FORECAST($C202,S$205:S$216,$C$205:$C$216)))) -> 99.67450592 | W202: =IF(MAX(C205:C216)-MIN(C205:C216)<5,AVERAGEIF(C205:C216,">0",W205:W216), IF(FORECAST($C202,W$205:W$216,$C$205:$C$216)<0,0, IF(FORECAST($C202,W$205:W$216,$C$205:$C$216)>100,100, FORECAST($C202,W$205:W$216,$C$205:$C$216)))) -> 0 | X202: =IF(MAX(C205:C216)-MIN(C205:C216)<5,AVERAGEIF(C205:C216,">0",X205:X216), IF(FORECAST($C202,X$205:X$216,$C$205:$C$216)<0,0, IF(FORECAST($C202,X$205:X$216,$C$205:$C$216)>100,100, FORECAST($C202,X$205:X$216,$C$205:$C$216)))) -> 100 | AB202: =IF(MAX(C205:C216)-MIN(C205:C216)<5,AVERAGEIF(C205:C216,">0",AB205:AB216), IF(FORECAST($C202,AB$205:AB$216,$C$205:$C$216)<0,0, IF(FORECAST($C202,AB$205:AB$216,$C$205:$C$216)>100,100, FORECAST($C202,AB$205:AB$216,$C$205:$C$216)))) -> 0
B204: Survey | C204: Year | D204: Improved | E204: % Improved < = 30min | H204: Surface water | I204: Improved | J204: % Improved < = 30min | M204: Surface water | N204: Improved | O204: % Improved < = 30min | R204: Surface water | S204: Improved | T204: % Improved < = 30min | W204: Surface water | X204: Improved | Y204: % Improved < = 30min | AB204: Surface water
B205: SLC05 | C205: 2005 | D205: =IF(ISERROR(INDIRECT(CONCATENATE($B205,"!H16"))),"",INDIRECT(CONCATENATE($B205,"!H16"))) -> 92.85714286 | E205: =IF(ISERROR(INDIRECT(CONCATENATE($B205,"!H23"))),"",INDIRECT(CONCATENATE($B205,"!H23"))) -> N/A | H205: =IF(ISERROR(INDIRECT(CONCATENATE($B205,"!H21"))),"",INDIRECT(CONCATENATE($B205,"!H21"))) -> 0 | I205: =IF(ISERROR(INDIRECT(CONCATENATE($B205,"!I16"))),"",INDIRECT(CONCATENATE($B205,"!I16"))) -> 95.34883721 | J205: =IF(ISERROR(INDIRECT(CONCATENATE($B205,"!I23"))),"",INDIRECT(CONCATENATE($B205,"!I23"))) -> N/A | M205: =IF(ISERROR(INDIRECT(CONCATENATE($B205,"!I21"))),"",INDIRECT(CONCATENATE($B205,"!I21"))) -> 0 | N205: =IF(ISERROR(INDIRECT(CONCATENATE($B205,"!J16"))),"",INDIRECT(CONCATENATE($B205,"!J16"))) -> 100 | O205: =IF(ISERROR(INDIRECT(CONCATENATE($B205,"!J23"))),"",INDIRECT(CONCATENATE($B205,"!J23"))) -> N/A | R205: =IF(ISERROR(INDIRECT(CONCATENATE($B205,"!J21"))),"",INDIRECT(CONCATENATE($B205,"!J21"))) -> 0 | S205: =IF(ISERROR(INDIRECT(CONCATENATE($B205,"!K16"))),"",INDIRECT(CONCATENATE($B205,"!K16"))) -> 100 | T205: =IF(ISERROR(INDIRECT(CONCATENATE($B205,"!K23"))),"",INDIRECT(CONCATENATE($B205,"!K23"))) -> N/A | W205: =IF(ISERROR(INDIRECT(CONCATENATE($B205,"!K21"))),"",INDIRECT(CONCATENATE($B205,"!K21"))) -> 0 | X205: =IF(ISERROR(INDIRECT(CONCATENATE($B205,"!L16"))),"",INDIRECT(CONCATENATE($B205,"!L16"))) -> 100 | Y205: =IF(ISERROR(INDIRECT(CONCATENATE($B205,"!L23"))),"",INDIRECT(CONCATENATE($B205,"!L23"))) -> N/A | AB205: =IF(ISERROR(INDIRECT(CONCATENATE($B205,"!L221"))),"",INDIRECT(CONCATENATE($B205,"!L21"))) -> 0
B206: MICS12 | C206: 2012 | D206: 99.46223456 | E206: 99.66648973 | H206: 0 | I206: 100 | J206: 100 | M206: 0 | N206: 100 | O206: 100 | R206: 0 | S206: 99.74683794 | T206: 100 | W206: 0 | X206: 100 | Y206: 99.23823027 | AB206: 0
B218: =CONCATENATE("Urban use of drinking water sources, ",C199,"–",C200) -> Urban use of drinking water sources, 2000–2018 | S218: Data points used for regression
E253: =IF(ISERROR(INDIRECT(CONCATENATE($B253,"!M18"))),"",INDIRECT(CONCATENATE($B253,"!M18"))) ->  | F253: =IF(ISERROR(INDIRECT(CONCATENATE($B253,"!M19"))),"",INDIRECT(CONCATENATE($B253,"!M19"))) ->  | G253: =IF(ISERROR(INDIRECT(CONCATENATE($B253,"!M20"))),"",INDIRECT(CONCATENATE($B253,"!M20"))) ->  | H253: =IF(ISERROR(INDIRECT(CONCATENATE($B253,"!M21"))),"",INDIRECT(CONCATENATE($B253,"!M21"))) ->  | J253: =IF(ISERROR(INDIRECT(CONCATENATE($B253,"!N18"))),"",INDIRECT(CONCATENATE($B253,"!N18"))) ->  | K253: =IF(ISERROR(INDIRECT(CONCATENATE($B253,"!N19"))),"",INDIRECT(CONCATENATE($B253,"!N19"))) ->  | L253: =IF(ISERROR(INDIRECT(CONCATENATE($B253,"!N20"))),"",INDIRECT(CONCATENATE($B253,"!N20"))) ->  | M253: =IF(ISERROR(INDIRECT(CONCATENATE($B253,"!N21"))),"",INDIRECT(CONCATENATE($B253,"!N21"))) ->  | O253: =IF(ISERROR(INDIRECT(CONCATENATE($B253,"!O18"))),"",INDIRECT(CONCATENATE($B253,"!O18"))) ->  | P253: =IF(ISERROR(INDIRECT(CONCATENATE($B253,"!O19"))),"",INDIRECT(CONCATENATE($B253,"!O19"))) ->  | Q253: =IF(ISERROR(INDIRECT(CONCATENATE($B253,"!O20"))),"",INDIRECT(CONCATENATE($B253,"!O20"))) ->  | R253: =IF(ISERROR(INDIRECT(CONCATENATE($B253,"!O21"))),"",INDIRECT(CONCATENATE($B253,"!O21"))) ->  | T253: =IF(ISERROR(INDIRECT(CONCATENATE($B253,"!P18"))),"",INDIRECT(CONCATENATE($B253,"!P18"))) ->  | U253: =IF(ISERROR(INDIRECT(CONCATENATE($B253,"!P19"))),"",INDIRECT(CONCATENATE($B253,"!P19"))) ->  | V253: =IF(ISERROR(INDIRECT(CONCATENATE($B253,"!P20"))),"",INDIRECT(CONCATENATE($B253,"!P20"))) ->  | W253: =IF(ISERROR(INDIRECT(CONCATENATE($B253,"!P21"))),"",INDIRECT(CONCATENATE($B253,"!P21"))) ->  | Y253: =IF(ISERROR(INDIRECT(CONCATENATE($B253,"!Q18"))),"",INDIRECT(CONCATENATE($B253,"!Q18"))) ->  | Z253: =IF(ISERROR(INDIRECT(CONCATENATE($B253,"!Q19"))),"",INDIRECT(CONCATENATE($B253,"!Q19"))) ->  | AA253: =IF(ISERROR(INDIRECT(CONCATENATE($B253,"!Q20"))),"",INDIRECT(CONCATENATE($B253,"!Q20"))) ->  | AB253: =IF(ISERROR(INDIRECT(CONCATENATE($B253,"!Q21"))),"",INDIRECT(CONCATENATE($B253,"!Q1"))) -> 
E254: =IF(ISERROR(INDIRECT(CONCATENATE($B254,"!M18"))),"",INDIRECT(CONCATENATE($B254,"!M18"))) ->  | F254: =IF(ISERROR(INDIRECT(CONCATENATE($B254,"!M19"))),"",INDIRECT(CONCATENATE($B254,"!M19"))) ->  | G254: =IF(ISERROR(INDIRECT(CONCATENATE($B254,"!M20"))),"",INDIRECT(CONCATENATE($B254,"!M20"))) ->  | H254: =IF(ISERROR(INDIRECT(CONCATENATE($B254,"!M21"))),"",INDIRECT(CONCATENATE($B254,"!M21"))) ->  | J254: =IF(ISERROR(INDIRECT(CONCATENATE($B254,"!N18"))),"",INDIRECT(CONCATENATE($B254,"!N18"))) ->  | K254: =IF(ISERROR(INDIRECT(CONCATENATE($B254,"!N19"))),"",INDIRECT(CONCATENATE($B254,"!N19"))) ->  | L254: =IF(ISERROR(INDIRECT(CONCATENATE($B254,"!N20"))),"",INDIRECT(CONCATENATE($B254,"!N20"))) ->  | M254: =IF(ISERROR(INDIRECT(CONCATENATE($B254,"!N21"))),"",INDIRECT(CONCATENATE($B254,"!N21"))) ->  | O254: =IF(ISERROR(INDIRECT(CONCATENATE($B254,"!O18"))),"",INDIRECT(CONCATENATE($B254,"!O18"))) ->  | P254: =IF(ISERROR(INDIRECT(CONCATENATE($B254,"!O19"))),"",INDIRECT(CONCATENATE($B254,"!O19"))) ->  | Q254: =IF(ISERROR(INDIRECT(CONCATENATE($B254,"!O20"))),"",INDIRECT(CONCATENATE($B254,"!O20"))) ->  | R254: =IF(ISERROR(INDIRECT(CONCATENATE($B254,"!O21"))),"",INDIRECT(CONCATENATE($B254,"!O21"))) ->  | T254: =IF(ISERROR(INDIRECT(CONCATENATE($B254,"!P18"))),"",INDIRECT(CONCATENATE($B254,"!P18"))) ->  | U254: =IF(ISERROR(INDIRECT(CONCATENATE($B254,"!P19"))),"",INDIRECT(CONCATENATE($B254,"!P19"))) ->  | V254: =IF(ISERROR(INDIRECT(CONCATENATE($B254,"!P20"))),"",INDIRECT(CONCATENATE($B254,"!P20"))) ->  | W254: =IF(ISERROR(INDIRECT(CONCATENATE($B254,"!P21"))),"",INDIRECT(CONCATENATE($B254,"!P21"))) ->  | Y254: =IF(ISERROR(INDIRECT(CONCATENATE($B254,"!Q18"))),"",INDIRECT(CONCATENATE($B254,"!Q18"))) ->  | Z254: =IF(ISERROR(INDIRECT(CONCATENATE($B254,"!Q19"))),"",INDIRECT(CONCATENATE($B254,"!Q19"))) ->  | AA254: =IF(ISERROR(INDIRECT(CONCATENATE($B254,"!Q20"))),"",INDIRECT(CONCATENATE($B254,"!Q20"))) ->  | AB254: =IF(ISERROR(INDIRECT(CONCATENATE($B254,"!Q21"))),"",INDIRECT(CONCATENATE($B254,"!Q1"))) -> 
E255: =IF(ISERROR(INDIRECT(CONCATENATE($B255,"!M18"))),"",INDIRECT(CONCATENATE($B255,"!M18"))) ->  | F255: =IF(ISERROR(INDIRECT(CONCATENATE($B255,"!M19"))),"",INDIRECT(CONCATENATE($B255,"!M19"))) ->  | G255: =IF(ISERROR(INDIRECT(CONCATENATE($B255,"!M20"))),"",INDIRECT(CONCATENATE($B255,"!M20"))) ->  | H255: =IF(ISERROR(INDIRECT(CONCATENATE($B255,"!M21"))),"",INDIRECT(CONCATENATE($B255,"!M21"))) ->  | J255: =IF(ISERROR(INDIRECT(CONCATENATE($B255,"!N18"))),"",INDIRECT(CONCATENATE($B255,"!N18"))) ->  | K255: =IF(ISERROR(INDIRECT(CONCATENATE($B255,"!N19"))),"",INDIRECT(CONCATENATE($B255,"!N19"))) ->  | L255: =IF(ISERROR(INDIRECT(CONCATENATE($B255,"!N20"))),"",INDIRECT(CONCATENATE($B255,"!N20"))) ->  | M255: =IF(ISERROR(INDIRECT(CONCATENATE($B255,"!N21"))),"",INDIRECT(CONCATENATE($B255,"!N21"))) ->  | O255: =IF(ISERROR(INDIRECT(CONCATENATE($B255,"!O18"))),"",INDIRECT(CONCATENATE($B255,"!O18"))) ->  | P255: =IF(ISERROR(INDIRECT(CONCATENATE($B255,"!O19"))),"",INDIRECT(CONCATENATE($B255,"!O19"))) ->  | Q255: =IF(ISERROR(INDIRECT(CONCATENATE($B255,"!O20"))),"",INDIRECT(CONCATENATE($B255,"!O20"))) ->  | R255: =IF(ISERROR(INDIRECT(CONCATENATE($B255,"!O21"))),"",INDIRECT(CONCATENATE($B255,"!O21"))) ->  | T255: =IF(ISERROR(INDIRECT(CONCATENATE($B255,"!P18"))),"",INDIRECT(CONCATENATE($B255,"!P18"))) ->  | U255: =IF(ISERROR(INDIRECT(CONCATENATE($B255,"!P19"))),"",INDIRECT(CONCATENATE($B255,"!P19"))) ->  | V255: =IF(ISERROR(INDIRECT(CONCATENATE($B255,"!P20"))),"",INDIRECT(CONCATENATE($B255,"!P20"))) ->  | W255: =IF(ISERROR(INDIRECT(CONCATENATE($B255,"!P21"))),"",INDIRECT(CONCATENATE($B255,"!P21"))) ->  | Y255: =IF(ISERROR(INDIRECT(CONCATENATE($B255,"!Q18"))),"",INDIRECT(CONCATENATE($B255,"!Q18"))) ->  | Z255: =IF(ISERROR(INDIRECT(CONCATENATE($B255,"!Q19"))),"",INDIRECT(CONCATENATE($B255,"!Q19"))) ->  | AA255: =IF(ISERROR(INDIRECT(CONCATENATE($B255,"!Q20"))),"",INDIRECT(CONCATENATE($B255,"!Q20"))) ->  | AB255: =IF(ISERROR(INDIRECT(CONCATENATE($B255,"!Q21"))),"",INDIRECT(CONCATENATE($B255,"!Q1"))) -> 
E256: =IF(ISERROR(INDIRECT(CONCATENATE($B256,"!M18"))),"",INDIRECT(CONCATENATE($B256,"!M18"))) ->  | F256: =IF(ISERROR(INDIRECT(CONCATENATE($B256,"!M19"))),"",INDIRECT(CONCATENATE($B256,"!M19"))) ->  | G256: =IF(ISERROR(INDIRECT(CONCATENATE($B256,"!M20"))),"",INDIRECT(CONCATENATE($B256,"!M20"))) ->  | H256: =IF(ISERROR(INDIRECT(CONCATENATE($B256,"!M21"))),"",INDIRECT(CONCATENATE($B256,"!M21"))) ->  | J256: =IF(ISERROR(INDIRECT(CONCATENATE($B256,"!N18"))),"",INDIRECT(CONCATENATE($B256,"!N18"))) ->  | K256: =IF(ISERROR(INDIRECT(CONCATENATE($B256,"!N19"))),"",INDIRECT(CONCATENATE($B256,"!N19"))) ->  | L256: =IF(ISERROR(INDIRECT(CONCATENATE($B256,"!N20"))),"",INDIRECT(CONCATENATE($B256,"!N20"))) ->  | M256: =IF(ISERROR(INDIRECT(CONCATENATE($B256,"!N21"))),"",INDIRECT(CONCATENATE($B256,"!N21"))) ->  | O256: =IF(ISERROR(INDIRECT(CONCATENATE($B256,"!O18"))),"",INDIRECT(CONCATENATE($B256,"!O18"))) ->  | P256: =IF(ISERROR(INDIRECT(CONCATENATE($B256,"!O19"))),"",INDIRECT(CONCATENATE($B256,"!O19"))) ->  | Q256: =IF(ISERROR(INDIRECT(CONCATENATE($B256,"!O20"))),"",INDIRECT(CONCATENATE($B256,"!O20"))) ->  | R256: =IF(ISERROR(INDIRECT(CONCATENATE($B256,"!O21"))),"",INDIRECT(CONCATENATE($B256,"!O21"))) ->  | T256: =IF(ISERROR(INDIRECT(CONCATENATE($B256,"!P18"))),"",INDIRECT(CONCATENATE($B256,"!P18"))) ->  | U256: =IF(ISERROR(INDIRECT(CONCATENATE($B256,"!P19"))),"",INDIRECT(CONCATENATE($B256,"!P19"))) ->  | V256: =IF(ISERROR(INDIRECT(CONCATENATE($B256,"!P20"))),"",INDIRECT(CONCATENATE($B256,"!P20"))) ->  | W256: =IF(ISERROR(INDIRECT(CONCATENATE($B256,"!P21"))),"",INDIRECT(CONCATENATE($B256,"!P21"))) ->  | Y256: =IF(ISERROR(INDIRECT(CONCATENATE($B256,"!Q18"))),"",INDIRECT(CONCATENATE($B256,"!Q18"))) ->  | Z256: =IF(ISERROR(INDIRECT(CONCATENATE($B256,"!Q19"))),"",INDIRECT(CONCATENATE($B256,"!Q19"))) ->  | AA256: =IF(ISERROR(INDIRECT(CONCATENATE($B256,"!Q20"))),"",INDIRECT(CONCATENATE($B256,"!Q20"))) ->  | AB256: =IF(ISERROR(INDIRECT(CONCATENATE($B256,"!Q21"))),"",INDIRECT(CONCATENATE($B256,"!Q1"))) -> 
E257: =IF(ISERROR(INDIRECT(CONCATENATE($B257,"!M18"))),"",INDIRECT(CONCATENATE($B257,"!M18"))) ->  | F257: =IF(ISERROR(INDIRECT(CONCATENATE($B257,"!M19"))),"",INDIRECT(CONCATENATE($B257,"!M19"))) ->  | G257: =IF(ISERROR(INDIRECT(CONCATENATE($B257,"!M20"))),"",INDIRECT(CONCATENATE($B257,"!M20"))) ->  | H257: =IF(ISERROR(INDIRECT(CONCATENATE($B257,"!M21"))),"",INDIRECT(CONCATENATE($B257,"!M21"))) ->  | J257: =IF(ISERROR(INDIRECT(CONCATENATE($B257,"!N18"))),"",INDIRECT(CONCATENATE($B257,"!N18"))) ->  | K257: =IF(ISERROR(INDIRECT(CONCATENATE($B257,"!N19"))),"",INDIRECT(CONCATENATE($B257,"!N19"))) ->  | L257: =IF(ISERROR(INDIRECT(CONCATENATE($B257,"!N20"))),"",INDIRECT(CONCATENATE($B257,"!N20"))) ->  | M257: =IF(ISERROR(INDIRECT(CONCATENATE($B257,"!N21"))),"",INDIRECT(CONCATENATE($B257,"!N21"))) ->  | O257: =IF(ISERROR(INDIRECT(CONCATENATE($B257,"!O18"))),"",INDIRECT(CONCATENATE($B257,"!O18"))) ->  | P257: =IF(ISERROR(INDIRECT(CONCATENATE($B257,"!O19"))),"",INDIRECT(CONCATENATE($B257,"!O19"))) ->  | Q257: =IF(ISERROR(INDIRECT(CONCATENATE($B257,"!O20"))),"",INDIRECT(CONCATENATE($B257,"!O20"))) ->  | R257: =IF(ISERROR(INDIRECT(CONCATENATE($B257,"!O21"))),"",INDIRECT(CONCATENATE($B257,"!O21"))) ->  | T257: =IF(ISERROR(INDIRECT(CONCATENATE($B257,"!P18"))),"",INDIRECT(CONCATENATE($B257,"!P18"))) ->  | U257: =IF(ISERROR(INDIRECT(CONCATENATE($B257,"!P19"))),"",INDIRECT(CONCATENATE($B257,"!P19"))) ->  | V257: =IF(ISERROR(INDIRECT(CONCATENATE($B257,"!P20"))),"",INDIRECT(CONCATENATE($B257,"!P20"))) ->  | W257: =IF(ISERROR(INDIRECT(CONCATENATE($B257,"!P21"))),"",INDIRECT(CONCATENATE($B257,"!P21"))) ->  | Y257: =IF(ISERROR(INDIRECT(CONCATENATE($B257,"!Q18"))),"",INDIRECT(CONCATENATE($B257,"!Q18"))) ->  | Z257: =IF(ISERROR(INDIRECT(CONCATENATE($B257,"!Q19"))),"",INDIRECT(CONCATENATE($B257,"!Q19"))) ->  | AA257: =IF(ISERROR(INDIRECT(CONCATENATE($B257,"!Q20"))),"",INDIRECT(CONCATENATE($B257,"!Q20"))) ->  | AB257: =IF(ISERROR(INDIRECT(CONCATENATE($B257,"!Q21"))),"",INDIRECT(CONCATENATE($B257,"!Q1"))) -> 
A297: RURAL | D297: Poorest | I297: Poor | N297: Middle | S297: Rich | X297: Richest
D298: Improved | E298: Basic | F298: Limited | G298: Unimproved | H298: Surface water | I298: Improved | J298: Basic | K298: Limited | L298: Unimproved | M298: Surface water | N298: Improved | O298: Basic | P298: Limited | Q298: Unimproved | R298: Surface water | S298: Improved | T298: Basic | U298: Limited | V298: Unimproved | W298: Surface water | X298: Improved | Y298: Basic | Z298: Limited | AA298: Unimproved | AB298: Surface water
A299: Forecast period: | C299: 2000 | D299: =IF((D301+H301)>100,D301*100/(D301+H301),D301) -> 82.1522144 | E299: =D299*AVERAGEIF(E305:E316,">0")/100 -> 81.8692989 | F299: =D299*(100-AVERAGEIF(E305:E316,">0"))/100 -> 0.2829155015 | G299: =100-(E299+F299+H299) -> 17.8477856 | H299: =IF((D301+H301)>100,H301*100/(D301+H301),H301) -> 0 | I299: =IF((I301+M301)>100,I301*100/(I301+M301),I301) -> 93.45569515 | J299: =I299*AVERAGEIF(J305:J316,">0")/100 -> 93.45569515 | K299: =I299*(100-AVERAGEIF(J305:J316,">0"))/100 -> 0 | L299: =100-(J299+K299+M299) -> 6.544304848 | M299: =IF((I301+M301)>100,M301*100/(I301+M301),M301) -> 0 | N299: =IF((N301+R301)>100,N301*100/(N301+R301),N301) -> 95.88803353 | O299: =N299*AVERAGEIF(O305:O316,">0")/100 -> 95.88803353 | P299: =N299*(100-AVERAGEIF(O305:O316,">0"))/100 -> 0 | Q299: =100-(O299+P299+R299) -> 4.111966465 | R299: =IF((N301+R301)>100,R301*100/(N301+R301),R301) -> 0 | S299: =IF((S301+W301)>100,S301*100/(S301+W301),S301) -> 96.66048237 | T299: =S299*AVERAGEIF(T305:T316,">0")/100 -> 96.66048237 | U299: =S299*(100-AVERAGEIF(T305:T316,">0"))/100 -> 0 | V299: =100-(T299+U299+W299) -> 3.339517625 | W299: =IF((S301+W301)>100,W301*100/(S301+W301),W301) -> 0 | X299: =IF((X301+AB301)>100,X301*100/(X301+AB301),X301) -> 100 | Y299: =X299*AVERAGEIF(Y305:Y316,">0")/100 -> 100 | Z299: =X299*(100-AVERAGEIF(Y305:Y316,">0"))/100 -> 0 | AA299: =100-(Y299+Z299+AB299) -> 0 | AB299: =IF((X301+AB301)>100,AB301*100/(X301+AB301),AB301) -> 0
C300: 2018 | D300: =IF((D302+H302)>100,D302*100/(D302+H302),D302) -> 100 | E300: =D300*AVERAGEIF(E305:E316,">0")/100 -> 99.65562036 | F300: =D300*(100-AVERAGEIF(E305:E316,">0"))/100 -> 0.3443796416 | G300: =100-(E300+F300+H300) -> 0 | H300: =IF((D302+H302)>100,H302*100/(D302+H302),H302) -> 0 | I300: =IF((I302+M302)>100,I302*100/(I302+M302),I302) -> 100 | J300: =I300*AVERAGEIF(J305:J316,">0")/100 -> 100 | K300: =I300*(100-AVERAGEIF(J305:J316,">0"))/100 -> 0 | L300: =100-(J300+K300+M300) -> 0 | M300: =IF((I302+M302)>100,M302*100/(I302+M302),M302) -> 0 | N300: =IF((N302+R302)>100,N302*100/(N302+R302),N302) -> 100 | O300: =N300*AVERAGEIF(O305:O316,">0")/100 -> 100 | P300: =N300*(100-AVERAGEIF(O305:O316,">0"))/100 -> 0 | Q300: =100-(O300+P300+R300) -> 0 | R300: =IF((N302+R302)>100,R302*100/(N302+R302),R302) -> 0 | S300: =IF((S302+W302)>100,S302*100/(S302+W302),S302) -> 100 | T300: =S300*AVERAGEIF(T305:T316,">0")/100 -> 100 | U300: =S300*(100-AVERAGEIF(T305:T316,">0"))/100 -> 0 | V300: =100-(T300+U300+W300) -> 0 | W300: =IF((S302+W302)>100,W302*100/(S302+W302),W302) -> 0 | X300: =IF((X302+AB302)>100,X302*100/(X302+AB302),X302) -> 99.14569607 | Y300: =X300*AVERAGEIF(Y305:Y316,">0")/100 -> 99.14569607 | Z300: =X300*(100-AVERAGEIF(Y305:Y316,">0"))/100 -> 0 | AA300: =100-(Y300+Z300+AB300) -> 0.8543039336 | AB300: =IF((X302+AB302)>100,AB302*100/(X302+AB302),AB302) -> 0
A301: Regression period: | C301: =MinRegYear(C299,C305:C316) -> 2003 | D301: =IF(MAX(C305:C316)-MIN(C305:C316)<5,AVERAGEIF(C305:C316,">0",D305:D316), IF(FORECAST($C301,D$305:D$316,$C$305:$C$316)<0,0, IF(FORECAST($C301,D$305:D$316,$C$305:$C$316)>100,100, FORECAST($C301,D$305:D$316,$C$305:$C$316)))) -> 82.1522144 | H301: =IF(MAX(C305:C316)-MIN(C305:C316)<5,AVERAGEIF(C305:C316,">0",H305:H316), IF(FORECAST($C301,H$305:H$316,$C$305:$C$316)<0,0, IF(FORECAST($C301,H$305:H$316,$C$305:$C$316)>100,100, FORECAST($C301,H$305:H$316,$C$305:$C$316)))) -> 0 | I301: =IF(MAX(C305:C316)-MIN(C305:C316)<5,AVERAGEIF(C305:C316,">0",I305:I316), IF(FORECAST($C301,I$305:I$316,$C$305:$C$316)<0,0, IF(FORECAST($C301,I$305:I$316,$C$305:$C$316)>100,100, FORECAST($C301,I$305:I$316,$C$305:$C$316)))) -> 93.45569515 | M301: =IF(MAX(C305:C316)-MIN(C305:C316)<5,AVERAGEIF(C305:C316,">0",M305:M316), IF(FORECAST($C301,M$305:M$316,$C$305:$C$316)<0,0, IF(FORECAST($C301,M$305:M$316,$C$305:$C$316)>100,100, FORECAST($C301,M$305:M$316,$C$305:$C$316)))) -> 0 | N301: =IF(MAX(C305:C316)-MIN(C305:C316)<5,AVERAGEIF(C305:C316,">0",N305:N316), IF(FORECAST($C301,N$305:N$316,$C$305:$C$316)<0,0, IF(FORECAST($C301,N$305:N$316,$C$305:$C$316)>100,100, FORECAST($C301,N$305:N$316,$C$305:$C$316)))) -> 95.88803353 | R301: =IF(MAX(C305:C316)-MIN(C305:C316)<5,AVERAGEIF(C305:C316,">0",R305:R316), IF(FORECAST($C301,R$305:R$316,$C$305:$C$316)<0,0, IF(FORECAST($C301,R$305:R$316,$C$305:$C$316)>100,100, FORECAST($C301,R$305:R$316,$C$305:$C$316)))) -> 0 | S301: =IF(MAX(C305:C316)-MIN(C305:C316)<5,AVERAGEIF(C305:C316,">0",S305:S316), IF(FORECAST($C301,S$305:S$316,$C$305:$C$316)<0,0, IF(FORECAST($C301,S$305:S$316,$C$305:$C$316)>100,100, FORECAST($C301,S$305:S$316,$C$305:$C$316)))) -> 96.66048237 | W301: =IF(MAX(C305:C316)-MIN(C305:C316)<5,AVERAGEIF(C305:C316,">0",W305:W316), IF(FORECAST($C301,W$305:W$316,$C$305:$C$316)<0,0, IF(FORECAST($C301,W$305:W$316,$C$305:$C$316)>100,100, FORECAST($C301,W$305:W$316,$C$305:$C$316)))) -> 0 | X301: =IF(MAX(C305:C316)-MIN(C305:C316)<5,AVERAGEIF(C305:C316,">0",X305:X316), IF(FORECAST($C301,X$305:X$316,$C$305:$C$316)<0,0, IF(FORECAST($C301,X$305:X$316,$C$305:$C$316)>100,100, FORECAST($C301,X$305:X$316,$C$305:$C$316)))) -> 100 | AB301: =IF(MAX(C305:C316)-MIN(C305:C316)<5,AVERAGEIF(C305:C316,">0",AB305:AB316), IF(FORECAST($C301,AB$305:AB$316,$C$305:$C$316)<0,0, IF(FORECAST($C301,AB$305:AB$316,$C$305:$C$316)>100,100, FORECAST($C301,AB$305:AB$316,$C$305:$C$316)))) -> 0
C302: =MaxRegYear(C300,C305:C316) -> 2014 | D302: =IF(MAX(C305:C316)-MIN(C305:C316)<5,AVERAGEIF(C305:C316,">0",D305:D316), IF(FORECAST($C302,D$305:D$316,$C$305:$C$316)<0,0, IF(FORECAST($C302,D$305:D$316,$C$305:$C$316)>100,100, FORECAST($C302,D$305:D$316,$C$305:$C$316)))) -> 100 | H302: =IF(MAX(C305:C316)-MIN(C305:C316)<5,AVERAGEIF(C305:C316,">0",H305:H316), IF(FORECAST($C302,H$305:H$316,$C$305:$C$316)<0,0, IF(FORECAST($C302,H$305:H$316,$C$305:$C$316)>100,100, FORECAST($C302,H$305:H$316,$C$305:$C$316)))) -> 0 | I302: =IF(MAX(C305:C316)-MIN(C305:C316)<5,AVERAGEIF(C305:C316,">0",I305:I316), IF(FORECAST($C302,I$305:I$316,$C$305:$C$316)<0,0, IF(FORECAST($C302,I$305:I$316,$C$305:$C$316)>100,100, FORECAST($C302,I$305:I$316,$C$305:$C$316)))) -> 100 | M302: =IF(MAX(C305:C316)-MIN(C305:C316)<5,AVERAGEIF(C305:C316,">0",M305:M316), IF(FORECAST($C302,M$305:M$316,$C$305:$C$316)<0,0, IF(FORECAST($C302,M$305:M$316,$C$305:$C$316)>100,100, FORECAST($C302,M$305:M$316,$C$305:$C$316)))) -> 0 | N302: =IF(MAX(C305:C316)-MIN(C305:C316)<5,AVERAGEIF(C305:C316,">0",N305:N316), IF(FORECAST($C302,N$305:N$316,$C$305:$C$316)<0,0, IF(FORECAST($C302,N$305:N$316,$C$305:$C$316)>100,100, FORECAST($C302,N$305:N$316,$C$305:$C$316)))) -> 100 | R302: =IF(MAX(C305:C316)-MIN(C305:C316)<5,AVERAGEIF(C305:C316,">0",R305:R316), IF(FORECAST($C302,R$305:R$316,$C$305:$C$316)<0,0, IF(FORECAST($C302,R$305:R$316,$C$305:$C$316)>100,100, FORECAST($C302,R$305:R$316,$C$305:$C$316)))) -> 0 | S302: =IF(MAX(C305:C316)-MIN(C305:C316)<5,AVERAGEIF(C305:C316,">0",S305:S316), IF(FORECAST($C302,S$305:S$316,$C$305:$C$316)<0,0, IF(FORECAST($C302,S$305:S$316,$C$305:$C$316)>100,100, FORECAST($C302,S$305:S$316,$C$305:$C$316)))) -> 100 | W302: =IF(MAX(C305:C316)-MIN(C305:C316)<5,AVERAGEIF(C305:C316,">0",W305:W316), IF(FORECAST($C302,W$305:W$316,$C$305:$C$316)<0,0, IF(FORECAST($C302,W$305:W$316,$C$305:$C$316)>100,100, FORECAST($C302,W$305:W$316,$C$305:$C$316)))) -> 0 | X302: =IF(MAX(C305:C316)-MIN(C305:C316)<5,AVERAGEIF(C305:C316,">0",X305:X316), IF(FORECAST($C302,X$305:X$316,$C$305:$C$316)<0,0, IF(FORECAST($C302,X$305:X$316,$C$305:$C$316)>100,100, FORECAST($C302,X$305:X$316,$C$305:$C$316)))) -> 99.14569607 | AB302: =IF(MAX(C305:C316)-MIN(C305:C316)<5,AVERAGEIF(C305:C316,">0",AB305:AB316), IF(FORECAST($C302,AB$305:AB$316,$C$305:$C$316)<0,0, IF(FORECAST($C302,AB$305:AB$316,$C$305:$C$316)>100,100, FORECAST($C302,AB$305:AB$316,$C$305:$C$316)))) -> 0
B304: Survey | C304: Year | D304: Improved | E304: % Improved < = 30min | H304: Surface water | I304: Improved | J304: % Improved < = 30min | M304: Surface water | N304: Improved | O304: % Improved < = 30min | R304: Surface water | S304: Improved | T304: % Improved < = 30min | W304: Surface water | X304: Improved | Y304: % Improved < = 30min | AB304: Surface water
B305: SLC05 | C305: 2005 | D305: =IF(ISERROR(INDIRECT(CONCATENATE($B305,"!M16"))),"",INDIRECT(CONCATENATE($B305,"!M16"))) -> 85.49773627 | E305: =IF(ISERROR(INDIRECT(CONCATENATE($B305,"!M23"))),"",INDIRECT(CONCATENATE($B305,"!M23"))) -> N/A | H305: =IF(ISERROR(INDIRECT(CONCATENATE($B305,"!M21"))),"",INDIRECT(CONCATENATE($B305,"!M21"))) -> 0 | I305: =IF(ISERROR(INDIRECT(CONCATENATE($B305,"!N16"))),"",INDIRECT(CONCATENATE($B305,"!N16"))) -> 94.80519481 | J305: =IF(ISERROR(INDIRECT(CONCATENATE($B305,"!N23"))),"",INDIRECT(CONCATENATE($B305,"!N23"))) -> N/A | M305: =IF(ISERROR(INDIRECT(CONCATENATE($B305,"!N21"))),"",INDIRECT(CONCATENATE($B305,"!N21"))) -> 0 | N305: =IF(ISERROR(INDIRECT(CONCATENATE($B305,"!O16"))),"",INDIRECT(CONCATENATE($B305,"!O16"))) -> 96.72182424 | O305: =IF(ISERROR(INDIRECT(CONCATENATE($B305,"!O23"))),"",INDIRECT(CONCATENATE($B305,"!O23"))) -> N/A | R305: =IF(ISERROR(INDIRECT(CONCATENATE($B305,"!O21"))),"",INDIRECT(CONCATENATE($B305,"!O21"))) -> 0 | S305: =IF(ISERROR(INDIRECT(CONCATENATE($B305,"!P16"))),"",INDIRECT(CONCATENATE($B305,"!P16"))) -> 97.4025974 | T305: =IF(ISERROR(INDIRECT(CONCATENATE($B305,"!P23"))),"",INDIRECT(CONCATENATE($B305,"!P23"))) -> N/A | W305: =IF(ISERROR(INDIRECT(CONCATENATE($B305,"!P21"))),"",INDIRECT(CONCATENATE($B305,"!P21"))) -> 0 | X305: =IF(ISERROR(INDIRECT(CONCATENATE($B305,"!Q16"))),"",INDIRECT(CONCATENATE($B305,"!Q16"))) -> 100 | Y305: =IF(ISERROR(INDIRECT(CONCATENATE($B305,"!Q23"))),"",INDIRECT(CONCATENATE($B305,"!Q23"))) -> N/A | AB305: =IF(ISERROR(INDIRECT(CONCATENATE($B305,"!Q221"))),"",INDIRECT(CONCATENATE($B305,"!Q21"))) -> 0
B306: MICS12 | C306: 2012 | D306: 97.20706281 | E306: 99.65562036 | H306: 0 | I306: 99.52844359 | J306: 100 | M306: 0 | N306: 99.64009172 | O306: 100 | R306: 0 | S306: 100 | T306: 100 | W306: 0 | X306: 99.33554139 | Y306: 100 | AB306: 0
B318: =CONCATENATE("Rural use of drinking water sources, ",C299,"–",C300) -> Rural use of drinking water sources, 2000–2018 | S318: Data points used for regression

Sheet Sanitation
B4: Summary of trends in use of sanitation facilities by wealth quintile (%)
B5: =IF(ISERROR(INDIRECT(CONCATENATE($B105,"!A2"))),"",INDIRECT(CONCATENATE($B105,"!A2"))) -> Saint Lucia
B7: =B118 -> National use of sanitation facilities, 2000–2018 | J7: =B218 -> Urban use of sanitation facilities, 2000–2018 | R7: =B318 -> Rural use of sanitation facilities, 2000–2018
B31: =IF(ISERROR(INDIRECT(CONCATENATE($B105,"!A2"))),"",INDIRECT(CONCATENATE($B105,"!A2"))) -> Saint Lucia | F31: Poorest | J31: Poor | N31: Middle | R31: Rich | V31: Richest
F32: Basic | G32: Limited | H32: Unimproved | I32: Open defecation | J32: Basic | K32: Limited | L32: Unimproved | M32: Open defecation | N32: Basic | O32: Limited | P32: Unimproved | Q32: Open defecation | R32: Basic | S32: Limited | T32: Unimproved | U32: Open defecation | V32: Basic | W32: Limited | X32: Unimproved | Y32: Open defecation
B33: NATIONAL | D33: Estimate | E33: =C99 -> 2000 | F33: =E99 -> 50.62184511 | G33: =F99 -> 14.18531081 | H33: 1.853157515 | I33: 33.33968656 | J33: =J99 -> 75.67200365 | K33: =K99 -> 10.16382489 | L33: 3.737352033 | M33: 10.42681942 | N33: =O99 -> 88.6133077 | O33: =P99 -> 4.084483836 | P33: 1.071428571 | Q33: 6.230779894 | R33: =T99 -> 92.34338569 | S33: =U99 -> 2.343745359 | T33: 1.06257379 | U33: 4.250295159 | V33: =Y99 -> 98.96370209 | W33: =Z99 -> 1.036297915 | X33: 0 | Y33: 0
E34: =C100 -> 2018 | F34: =E100 -> 76.51110353 | G34: 21.44002815 | H34: 0.8274578482 | I34: 1.221410466 | J34: =J100 -> 88.15899483 | K34: 11.84100517 | L34: 0 | M34: 0 | N34: =O100 -> 95.5937636 | O34: 4.406236404 | P34: 0 | Q34: 0 | R34: =T100 -> 97.52474773 | S34: 2.475252269 | T34: 0 | U34: 0 | V34: =Y100 -> 98.96370209 | W34: 1.036297915 | X34: 0 | Y34: 0
B36: URBAN | D36: Estimate | E36: =C199 -> 2000 | F36: =E199 -> 42.59622714 | G36: =F199 -> 16.89862076 | H36: 5.218761318 | I36: 35.28639078 | J36: =J199 -> 80.11104004 | K36: =K199 -> 8.087525026 | L36: 5.387849266 | M36: 6.413585665 | N36: =O199 -> 88.40042014 | O36: =P199 -> 6.078333015 | P36: 0 | Q36: 5.521246843 | R36: =T199 -> 95.44308292 | S36: =U199 -> 4.556917082 | T36: 0 | U36: 0 | V36: =Y199 -> 97.90955351 | W36: =Z199 -> 2.090446494 | X36: 0 | Y36: 0
E37: =C200 -> 2018 | F37: =E200 -> 61.46173598 | G37: 24.38287701 | H37: 2.70605026 | I37: 11.44933675 | J37: =J200 -> 80.97792803 | K37: 8.175040783 | L37: 1.336073654 | M37: 9.510957531 | N37: =O200 -> 90.94829648 | O37: 6.253522689 | P37: 2.182920722 | Q37: 0.6152601132 | R37: =T200 -> 95.44308292 | S37: 4.556917082 | T37: 0 | U37: 0 | V37: =Y200 -> 97.90955351 | W37: 2.090446494 | X37: 0 | Y37: 0
B39: RURAL | D39: Estimate | E39: =C299 -> 2000 | F39: =E299 -> 50.12740315 | G39: =F299 -> 12.76365197 | H39: 1.524272104 | I39: 35.58467278 | J39: =J299 -> 80.57232482 | K39: =K299 -> 12.00672257 | L39: 0.92997855 | M39: 6.490974064 | N39: =O299 -> 89.02440794 | O39: =P299 -> 2.733833823 | P39: 1.648351648 | Q39: 6.593406593 | R39: =T299 -> 89.20965964 | S39: =U299 -> 2.441546299 | T39: 1.669758813 | U39: 6.67903525 | V39: =Y299 -> 97.56157794 | W39: =Z299 -> 0.7686632455 | X39: 0 | Y39: 1.669758813
E40: =C300 -> 2018 | F40: =E300 -> 79.70513939 | G40: 20.29486061 | H40: 0 | I40: 0 | J40: =J300 -> 87.03084239 | K40: 12.96915761 | L40: 0 | M40: 0 | N40: =O300 -> 97.02061224 | O40: 2.979387759 | P40: 0 | Q40: 0 | R40: =T300 -> 97.33604564 | S40: 2.663954362 | T40: 0 | U40: 0 | V40: =Y300 -> 99.21828398 | W40: 0.7817160176 | X40: 0 | Y40: 0
A97: NATIONAL | D97: Poorest | I97: Poor | N97: Middle | S97: Rich | X97: Richest
D98: Improved | E98: Basic | F98: Limited | G98: Unimproved | H98: Open defecation | I98: Improved | J98: Basic | K98: Limited | L98: Unimproved | M98: Open defecation | N98: Improved | O98: Basic | P98: Limited | Q98: Unimproved | R98: Open defecation | S98: Improved | T98: Basic | U98: Limited | V98: Unimproved | W98: Open defecation | X98: Improved | Y98: Basic | Z98: Limited | AA98: Unimproved | AB98: Open defecation
A99: Forecast period: | C99: 2000 | D99: =IF((D101+H101)>100,D101*100/(D101+H101),D101) -> 64.80715592 | E99: =D99*AVERAGEIF(E105:E116,">0")/100 -> 50.62184511 | F99: =D99*(100-AVERAGEIF(E105:E116,">0"))/100 -> 14.18531081 | G99: =100-(E99+F99+H99) -> 1.853157515 | H99: =IF((D101+H101)>100,H101*100/(D101+H101),H101) -> 33.33968656 | I99: =IF((I101+M101)>100,I101*100/(I101+M101),I101) -> 85.83582854 | J99: =I99*AVERAGEIF(J105:J116,">0")/100 -> 75.67200365 | K99: =I99*(100-AVERAGEIF(J105:J116,">0"))/100 -> 10.16382489 | L99: =100-(J99+K99+M99) -> 3.737352033 | M99: =IF((I101+M101)>100,M101*100/(I101+M101),M101) -> 10.42681942 | N99: =IF((N101+R101)>100,N101*100/(N101+R101),N101) -> 92.69779153 | O99: =N99*AVERAGEIF(O105:O116,">0")/100 -> 88.6133077 | P99: =N99*(100-AVERAGEIF(O105:O116,">0"))/100 -> 4.084483836 | Q99: =100-(O99+P99+R99) -> 1.071428571 | R99: =IF((N101+R101)>100,R101*100/(N101+R101),R101) -> 6.230779894 | S99: =IF((S101+W101)>100,S101*100/(S101+W101),S101) -> 94.68713105 | T99: =S99*AVERAGEIF(T105:T116,">0")/100 -> 92.34338569 | U99: =S99*(100-AVERAGEIF(T105:T116,">0"))/100 -> 2.343745359 | V99: =100-(T99+U99+W99) -> 1.06257379 | W99: =IF((S101+W101)>100,W101*100/(S101+W101),W101) -> 4.250295159 | X99: =IF((X101+AB101)>100,X101*100/(X101+AB101),X101) -> 100 | Y99: =X99*AVERAGEIF(Y105:Y116,">0")/100 -> 98.96370209 | Z99: =X99*(100-AVERAGEIF(Y105:Y116,">0"))/100 -> 1.036297915 | AA99: =100-(Y99+Z99+AB99) -> 0 | AB99: =IF((X101+AB101)>100,AB101*100/(X101+AB101),AB101) -> 0
C100: 2018 | D100: =IF((D102+H102)>100,D102*100/(D102+H102),D102) -> 97.95113169 | E100: =D100*AVERAGEIF(E105:E116,">0")/100 -> 76.51110353 | F100: =D100*(100-AVERAGEIF(E105:E116,">0"))/100 -> 21.44002815 | G100: =100-(E100+F100+H100) -> 0.8274578482 | H100: =IF((D102+H102)>100,H102*100/(D102+H102),H102) -> 1.221410466 | I100: =IF((I102+M102)>100,I102*100/(I102+M102),I102) -> 100 | J100: =I100*AVERAGEIF(J105:J116,">0")/100 -> 88.15899483 | K100: =I100*(100-AVERAGEIF(J105:J116,">0"))/100 -> 11.84100517 | L100: =100-(J100+K100+M100) -> 0 | M100: =IF((I102+M102)>100,M102*100/(I102+M102),M102) -> 0 | N100: =IF((N102+R102)>100,N102*100/(N102+R102),N102) -> 100 | O100: =N100*AVERAGEIF(O105:O116,">0")/100 -> 95.5937636 | P100: =N100*(100-AVERAGEIF(O105:O116,">0"))/100 -> 4.406236404 | Q100: =100-(O100+P100+R100) -> 0 | R100: =IF((N102+R102)>100,R102*100/(N102+R102),R102) -> 0 | S100: =IF((S102+W102)>100,S102*100/(S102+W102),S102) -> 100 | T100: =S100*AVERAGEIF(T105:T116,">0")/100 -> 97.52474773 | U100: =S100*(100-AVERAGEIF(T105:T116,">0"))/100 -> 2.475252269 | V100: =100-(T100+U100+W100) -> 0 | W100: =IF((S102+W102)>100,W102*100/(S102+W102),W102) -> 0 | X100: =IF((X102+AB102)>100,X102*100/(X102+AB102),X102) -> 100 | Y100: =X100*AVERAGEIF(Y105:Y116,">0")/100 -> 98.96370209 | Z100: =X100*(100-AVERAGEIF(Y105:Y116,">0"))/100 -> 1.036297915 | AA100: =100-(Y100+Z100+AB100) -> 0 | AB100: =IF((X102+AB102)>100,AB102*100/(X102+AB102),AB102) -> 0
A101: Regression period: | C101: =MinRegYear(C99,C105:C116) -> 2003 | D101: =IF(MAX(C105:C116)-MIN(C105:C116)<5,AVERAGEIF(C105:C116,">0",D105:D116), IF(FORECAST($C101,D$105:D$116,$C$105:$C$116)<0,0, IF(FORECAST($C101,D$105:D$116,$C$105:$C$116)>100,100, FORECAST($C101,D$105:D$116,$C$105:$C$116)))) -> 64.80715592 | H101: =IF(MAX(C105:C116)-MIN(C105:C116)<5,AVERAGEIF(C105:C116,">0",H105:H116), IF(FORECAST($C101,H$105:H$116,$C$105:$C$116)<0,0, IF(FORECAST($C101,H$105:H$116,$C$105:$C$116)>100,100, FORECAST($C101,H$105:H$116,$C$105:$C$116)))) -> 33.33968656 | I101: =IF(MAX(C105:C116)-MIN(C105:C116)<5,AVERAGEIF(C105:C116,">0",I105:I116), IF(FORECAST($C101,I$105:I$116,$C$105:$C$116)<0,0, IF(FORECAST($C101,I$105:I$116,$C$105:$C$116)>100,100, FORECAST($C101,I$105:I$116,$C$105:$C$116)))) -> 85.83582854 | M101: =IF(MAX(C105:C116)-MIN(C105:C116)<5,AVERAGEIF(C105:C116,">0",M105:M116), IF(FORECAST($C101,M$105:M$116,$C$105:$C$116)<0,0, IF(FORECAST($C101,M$105:M$116,$C$105:$C$116)>100,100, FORECAST($C101,M$105:M$116,$C$105:$C$116)))) -> 10.42681942 | N101: =IF(MAX(C105:C116)-MIN(C105:C116)<5,AVERAGEIF(C105:C116,">0",N105:N116), IF(FORECAST($C101,N$105:N$116,$C$105:$C$116)<0,0, IF(FORECAST($C101,N$105:N$116,$C$105:$C$116)>100,100, FORECAST($C101,N$105:N$116,$C$105:$C$116)))) -> 92.69779153 | R101: =IF(MAX(C105:C116)-MIN(C105:C116)<5,AVERAGEIF(C105:C116,">0",R105:R116), IF(FORECAST($C101,R$105:R$116,$C$105:$C$116)<0,0, IF(FORECAST($C101,R$105:R$116,$C$105:$C$116)>100,100, FORECAST($C101,R$105:R$116,$C$105:$C$116)))) -> 6.230779894 | S101: =IF(MAX(C105:C116)-MIN(C105:C116)<5,AVERAGEIF(C105:C116,">0",S105:S116), IF(FORECAST($C101,S$105:S$116,$C$105:$C$116)<0,0, IF(FORECAST($C101,S$105:S$116,$C$105:$C$116)>100,100, FORECAST($C101,S$105:S$116,$C$105:$C$116)))) -> 94.68713105 | W101: =IF(MAX(C105:C116)-MIN(C105:C116)<5,AVERAGEIF(C105:C116,">0",W105:W116), IF(FORECAST($C101,W$105:W$116,$C$105:$C$116)<0,0, IF(FORECAST($C101,W$105:W$116,$C$105:$C$116)>100,100, FORECAST($C101,W$105:W$116,$C$105:$C$116)))) -> 4.250295159 | X101: =IF(MAX(C105:C116)-MIN(C105:C116)<5,AVERAGEIF(C105:C116,">0",X105:X116), IF(FORECAST($C101,X$105:X$116,$C$105:$C$116)<0,0, IF(FORECAST($C101,X$105:X$116,$C$105:$C$116)>100,100, FORECAST($C101,X$105:X$116,$C$105:$C$116)))) -> 100 | AB101: =IF(MAX(C105:C116)-MIN(C105:C116)<5,AVERAGEIF(C105:C116,">0",AB105:AB116), IF(FORECAST($C101,AB$105:AB$116,$C$105:$C$116)<0,0, IF(FORECAST($C101,AB$105:AB$116,$C$105:$C$116)>100,100, FORECAST($C101,AB$105:AB$116,$C$105:$C$116)))) -> 0
C102: =MaxRegYear(C100,C105:C116) -> 2014 | D102: =IF(MAX(C105:C116)-MIN(C105:C116)<5,AVERAGEIF(C105:C116,">0",D105:D116), IF(FORECAST($C102,D$105:D$116,$C$105:$C$116)<0,0, IF(FORECAST($C102,D$105:D$116,$C$105:$C$116)>100,100, FORECAST($C102,D$105:D$116,$C$105:$C$116)))) -> 97.95113169 | H102: =IF(MAX(C105:C116)-MIN(C105:C116)<5,AVERAGEIF(C105:C116,">0",H105:H116), IF(FORECAST($C102,H$105:H$116,$C$105:$C$116)<0,0, IF(FORECAST($C102,H$105:H$116,$C$105:$C$116)>100,100, FORECAST($C102,H$105:H$116,$C$105:$C$116)))) -> 1.221410466 | I102: =IF(MAX(C105:C116)-MIN(C105:C116)<5,AVERAGEIF(C105:C116,">0",I105:I116), IF(FORECAST($C102,I$105:I$116,$C$105:$C$116)<0,0, IF(FORECAST($C102,I$105:I$116,$C$105:$C$116)>100,100, FORECAST($C102,I$105:I$116,$C$105:$C$116)))) -> 100 | M102: =IF(MAX(C105:C116)-MIN(C105:C116)<5,AVERAGEIF(C105:C116,">0",M105:M116), IF(FORECAST($C102,M$105:M$116,$C$105:$C$116)<0,0, IF(FORECAST($C102,M$105:M$116,$C$105:$C$116)>100,100, FORECAST($C102,M$105:M$116,$C$105:$C$116)))) -> 0 | N102: =IF(MAX(C105:C116)-MIN(C105:C116)<5,AVERAGEIF(C105:C116,">0",N105:N116), IF(FORECAST($C102,N$105:N$116,$C$105:$C$116)<0,0, IF(FORECAST($C102,N$105:N$116,$C$105:$C$116)>100,100, FORECAST($C102,N$105:N$116,$C$105:$C$116)))) -> 100 | R102: =IF(MAX(C105:C116)-MIN(C105:C116)<5,AVERAGEIF(C105:C116,">0",R105:R116), IF(FORECAST($C102,R$105:R$116,$C$105:$C$116)<0,0, IF(FORECAST($C102,R$105:R$116,$C$105:$C$116)>100,100, FORECAST($C102,R$105:R$116,$C$105:$C$116)))) -> 0 | S102: =IF(MAX(C105:C116)-MIN(C105:C116)<5,AVERAGEIF(C105:C116,">0",S105:S116), IF(FORECAST($C102,S$105:S$116,$C$105:$C$116)<0,0, IF(FORECAST($C102,S$105:S$116,$C$105:$C$116)>100,100, FORECAST($C102,S$105:S$116,$C$105:$C$116)))) -> 100 | W102: =IF(MAX(C105:C116)-MIN(C105:C116)<5,AVERAGEIF(C105:C116,">0",W105:W116), IF(FORECAST($C102,W$105:W$116,$C$105:$C$116)<0,0, IF(FORECAST($C102,W$105:W$116,$C$105:$C$116)>100,100, FORECAST($C102,W$105:W$116,$C$105:$C$116)))) -> 0 | X102: =IF(MAX(C105:C116)-MIN(C105:C116)<5,AVERAGEIF(C105:C116,">0",X105:X116), IF(FORECAST($C102,X$105:X$116,$C$105:$C$116)<0,0, IF(FORECAST($C102,X$105:X$116,$C$105:$C$116)>100,100, FORECAST($C102,X$105:X$116,$C$105:$C$116)))) -> 100 | AB102: =IF(MAX(C105:C116)-MIN(C105:C116)<5,AVERAGEIF(C105:C116,">0",AB105:AB116), IF(FORECAST($C102,AB$105:AB$116,$C$105:$C$116)<0,0, IF(FORECAST($C102,AB$105:AB$116,$C$105:$C$116)>100,100, FORECAST($C102,AB$105:AB$116,$C$105:$C$116)))) -> 0
B104: Survey | C104: Year | D104: Improved | E104: Not shared | H104: Open defecation | I104: Improved | J104: Not shared | M104: Open defecation | N104: Improved | O104: Not shared | R104: Open defecation | S104: Improved | T104: Not shared | W104: Open defecation | X104: Improved | Y104: Not shared | AB104: Open defecation
B105: SLC05 | C105: 2005 | D105: =IF(ISERROR(INDIRECT(CONCATENATE($B105,"!C122"))),"",INDIRECT(CONCATENATE($B105,"!C122"))) -> 70.83333333 | E105: =IF(ISERROR(INDIRECT(CONCATENATE($B105,"!C129"))),"",INDIRECT(CONCATENATE($B105,"!C129"))) -> N/A | H105: =IF(ISERROR(INDIRECT(CONCATENATE($B105,"!C127"))),"",INDIRECT(CONCATENATE($B105,"!C127"))) -> 27.5 | I105: =IF(ISERROR(INDIRECT(CONCATENATE($B105,"!D122"))),"",INDIRECT(CONCATENATE($B105,"!D122"))) -> 88.53979572 | J105: =IF(ISERROR(INDIRECT(CONCATENATE($B105,"!D129"))),"",INDIRECT(CONCATENATE($B105,"!D129"))) -> N/A | M105: =IF(ISERROR(INDIRECT(CONCATENATE($B105,"!D127"))),"",INDIRECT(CONCATENATE($B105,"!D127"))) -> 8.333333333 | N105: =IF(ISERROR(INDIRECT(CONCATENATE($B105,"!E122"))),"",INDIRECT(CONCATENATE($B105,"!E122"))) -> 94.16666667 | O105: =IF(ISERROR(INDIRECT(CONCATENATE($B105,"!E129"))),"",INDIRECT(CONCATENATE($B105,"!E129"))) -> N/A | R105: =IF(ISERROR(INDIRECT(CONCATENATE($B105,"!E127"))),"",INDIRECT(CONCATENATE($B105,"!E127"))) -> 5 | S105: =IF(ISERROR(INDIRECT(CONCATENATE($B105,"!F122"))),"",INDIRECT(CONCATENATE($B105,"!F122"))) -> 95.8677686 | T105: =IF(ISERROR(INDIRECT(CONCATENATE($B105,"!F129"))),"",INDIRECT(CONCATENATE($B105,"!F129"))) -> N/A | W105: =IF(ISERROR(INDIRECT(CONCATENATE($B105,"!F127"))),"",INDIRECT(CONCATENATE($B105,"!F127"))) -> 3.305785124 | X105: =IF(ISERROR(INDIRECT(CONCATENATE($B105,"!G122"))),"",INDIRECT(CONCATENATE($B105,"!G122"))) -> 100 | Y105: =IF(ISERROR(INDIRECT(CONCATENATE($B105,"!G129"))),"",INDIRECT(CONCATENATE($B105,"!G129"))) -> N/A | AB105: =IF(ISERROR(INDIRECT(CONCATENATE($B105,"!G2127"))),"",INDIRECT(CONCATENATE($B105,"!G127"))) -> 0
B106: MICS12 | C106: 2012 | D106: 91.92495427 | E106: 78.11150542 | H106: 7.061097029 | I106: 98.00368084 | J106: 88.15899483 | M106: 1.006132013 | N106: 99.30772963 | O106: 95.5937636 | R106: 0.6922703699 | S106: 100 | T106: 97.52474773 | W106: 0 | X106: 100 | Y106: 98.96370209 | AB106: 0
B118: =CONCATENATE("National use of sanitation facilities, ",C99,"–",C100) -> National use of sanitation facilities, 2000–2018 | S118: Data points used for regression
A197: URBAN | D197: Poorest | I197: Poor | N197: Middle | S197: Rich | X197: Richest
D198: Improved | E198: Basic | F198: Limited | G198: Unimproved | H198: Open defecation | I198: Improved | J198: Basic | K198: Limited | L198: Unimproved | M198: Open defecation | N198: Improved | O198: Basic | P198: Limited | Q198: Unimproved | R198: Open defecation | S198: Improved | T198: Basic | U198: Limited | V198: Unimproved | W198: Open defecation | X198: Improved | Y198: Basic | Z198: Limited | AA198: Unimproved | AB198: Open defecation
A199: Forecast period: | C199: =MinBase(C205:C216) -> 2000 | D199: =IF((D201+H201)>100,D201*100/(D201+H201),D201) -> 59.49484791 | E199: =D199*AVERAGEIF(E205:E216,">0")/100 -> 42.59622714 | F199: =D199*(100-AVERAGEIF(E205:E216,">0"))/100 -> 16.89862076 | G199: =100-(E199+F199+H199) -> 5.218761318 | H199: =IF((D201+H201)>100,H201*100/(D201+H201),H201) -> 35.28639078 | I199: =IF((I201+M201)>100,I201*100/(I201+M201),I201) -> 88.19856507 | J199: =I199*AVERAGEIF(J205:J216,">0")/100 -> 80.11104004 | K199: =I199*(100-AVERAGEIF(J205:J216,">0"))/100 -> 8.087525026 | L199: =100-(J199+K199+M199) -> 5.387849266 | M199: =IF((I201+M201)>100,M201*100/(I201+M201),M201) -> 6.413585665 | N199: =IF((N201+R201)>100,N201*100/(N201+R201),N201) -> 94.47875316 | O199: =N199*AVERAGEIF(O205:O216,">0")/100 -> 88.40042014 | P199: =N199*(100-AVERAGEIF(O205:O216,">0"))/100 -> 6.078333015 | Q199: =100-(O199+P199+R199) -> 0 | R199: =IF((N201+R201)>100,R201*100/(N201+R201),R201) -> 5.521246843 | S199: =IF((S201+W201)>100,S201*100/(S201+W201),S201) -> 100 | T199: =S199*AVERAGEIF(T205:T216,">0")/100 -> 95.44308292 | U199: =S199*(100-AVERAGEIF(T205:T216,">0"))/100 -> 4.556917082 | V199: =100-(T199+U199+W199) -> 0 | W199: =IF((S201+W201)>100,W201*100/(S201+W201),W201) -> 0 | X199: =IF((X201+AB201)>100,X201*100/(X201+AB201),X201) -> 100 | Y199: =X199*AVERAGEIF(Y205:Y216,">0")/100 -> 97.90955351 | Z199: =X199*(100-AVERAGEIF(Y205:Y216,">0"))/100 -> 2.090446494 | AA199: =100-(Y199+Z199+AB199) -> 0 | AB199: =IF((X201+AB201)>100,AB201*100/(X201+AB201),AB201) -> 0
C200: =MaxTarget(C205:C216) -> 2018 | D200: =IF((D202+H202)>100,D202*100/(D202+H202),D202) -> 85.84461299 | E200: =D200*AVERAGEIF(E205:E216,">0")/100 -> 61.46173598 | F200: =D200*(100-AVERAGEIF(E205:E216,">0"))/100 -> 24.38287701 | G200: =100-(E200+F200+H200) -> 2.70605026 | H200: =IF((D202+H202)>100,H202*100/(D202+H202),H202) -> 11.44933675 | I200: =IF((I202+M202)>100,I202*100/(I202+M202),I202) -> 89.15296882 | J200: =I200*AVERAGEIF(J205:J216,">0")/100 -> 80.97792803 | K200: =I200*(100-AVERAGEIF(J205:J216,">0"))/100 -> 8.175040783 | L200: =100-(J200+K200+M200) -> 1.336073654 | M200: =IF((I202+M202)>100,M202*100/(I202+M202),M202) -> 9.510957531 | N200: =IF((N202+R202)>100,N202*100/(N202+R202),N202) -> 97.20181917 | O200: =N200*AVERAGEIF(O205:O216,">0")/100 -> 90.94829648 | P200: =N200*(100-AVERAGEIF(O205:O216,">0"))/100 -> 6.253522689 | Q200: =100-(O200+P200+R200) -> 2.182920722 | R200: =IF((N202+R202)>100,R202*100/(N202+R202),R202) -> 0.6152601132 | S200: =IF((S202+W202)>100,S202*100/(S202+W202),S202) -> 100 | T200: =S200*AVERAGEIF(T205:T216,">0")/100 -> 95.44308292 | U200: =S200*(100-AVERAGEIF(T205:T216,">0"))/100 -> 4.556917082 | V200: =100-(T200+U200+W200) -> 0 | W200: =IF((S202+W202)>100,W202*100/(S202+W202),W202) -> 0 | X200: =IF((X202+AB202)>100,X202*100/(X202+AB202),X202) -> 100 | Y200: =X200*AVERAGEIF(Y205:Y216,">0")/100 -> 97.90955351 | Z200: =X200*(100-AVERAGEIF(Y205:Y216,">0"))/100 -> 2.090446494 | AA200: =100-(Y200+Z200+AB200) -> 0 | AB200: =IF((X202+AB202)>100,AB202*100/(X202+AB202),AB202) -> 0
A201: Regression period: | C201: =MinRegYear(C199,C205:C216) -> 2003 | D201: =IF(MAX(C205:C216)-MIN(C205:C216)<5,AVERAGEIF(C205:C216,">0",D205:D216), IF(FORECAST($C201,D$205:D$216,$C$205:$C$216)<0,0, IF(FORECAST($C201,D$205:D$216,$C$205:$C$216)>100,100, FORECAST($C201,D$205:D$216,$C$205:$C$216)))) -> 59.49484791 | H201: =IF(MAX(C205:C216)-MIN(C205:C216)<5,AVERAGEIF(C205:C216,">0",H205:H216), IF(FORECAST($C201,H$205:H$216,$C$205:$C$216)<0,0, IF(FORECAST($C201,H$205:H$216,$C$205:$C$216)>100,100, FORECAST($C201,H$205:H$216,$C$205:$C$216)))) -> 35.28639078 | I201: =IF(MAX(C205:C216)-MIN(C205:C216)<5,AVERAGEIF(C205:C216,">0",I205:I216), IF(FORECAST($C201,I$205:I$216,$C$205:$C$216)<0,0, IF(FORECAST($C201,I$205:I$216,$C$205:$C$216)>100,100, FORECAST($C201,I$205:I$216,$C$205:$C$216)))) -> 88.19856507 | M201: =IF(MAX(C205:C216)-MIN(C205:C216)<5,AVERAGEIF(C205:C216,">0",M205:M216), IF(FORECAST($C201,M$205:M$216,$C$205:$C$216)<0,0, IF(FORECAST($C201,M$205:M$216,$C$205:$C$216)>100,100, FORECAST($C201,M$205:M$216,$C$205:$C$216)))) -> 6.413585665 | N201: =IF(MAX(C205:C216)-MIN(C205:C216)<5,AVERAGEIF(C205:C216,">0",N205:N216), IF(FORECAST($C201,N$205:N$216,$C$205:$C$216)<0,0, IF(FORECAST($C201,N$205:N$216,$C$205:$C$216)>100,100, FORECAST($C201,N$205:N$216,$C$205:$C$216)))) -> 94.93706344 | R201: =IF(MAX(C205:C216)-MIN(C205:C216)<5,AVERAGEIF(C205:C216,">0",R205:R216), IF(FORECAST($C201,R$205:R$216,$C$205:$C$216)<0,0, IF(FORECAST($C201,R$205:R$216,$C$205:$C$216)>100,100, FORECAST($C201,R$205:R$216,$C$205:$C$216)))) -> 5.548030052 | S201: =IF(MAX(C205:C216)-MIN(C205:C216)<5,AVERAGEIF(C205:C216,">0",S205:S216), IF(FORECAST($C201,S$205:S$216,$C$205:$C$216)<0,0, IF(FORECAST($C201,S$205:S$216,$C$205:$C$216)>100,100, FORECAST($C201,S$205:S$216,$C$205:$C$216)))) -> 100 | W201: =IF(MAX(C205:C216)-MIN(C205:C216)<5,AVERAGEIF(C205:C216,">0",W205:W216), IF(FORECAST($C201,W$205:W$216,$C$205:$C$216)<0,0, IF(FORECAST($C201,W$205:W$216,$C$205:$C$216)>100,100, FORECAST($C201,W$205:W$216,$C$205:$C$216)))) -> 0 | X201: =IF(MAX(C205:C216)-MIN(C205:C216)<5,AVERAGEIF(C205:C216,">0",X205:X216), IF(FORECAST($C201,X$205:X$216,$C$205:$C$216)<0,0, IF(FORECAST($C201,X$205:X$216,$C$205:$C$216)>100,100, FORECAST($C201,X$205:X$216,$C$205:$C$216)))) -> 100 | AB201: =IF(MAX(C205:C216)-MIN(C205:C216)<5,AVERAGEIF(C205:C216,">0",AB205:AB216), IF(FORECAST($C201,AB$205:AB$216,$C$205:$C$216)<0,0, IF(FORECAST($C201,AB$205:AB$216,$C$205:$C$216)>100,100, FORECAST($C201,AB$205:AB$216,$C$205:$C$216)))) -> 0
C202: =MaxRegYear(C200,C205:C216) -> 2014 | D202: =IF(MAX(C205:C216)-MIN(C205:C216)<5,AVERAGEIF(C205:C216,">0",D205:D216), IF(FORECAST($C202,D$205:D$216,$C$205:$C$216)<0,0, IF(FORECAST($C202,D$205:D$216,$C$205:$C$216)>100,100, FORECAST($C202,D$205:D$216,$C$205:$C$216)))) -> 85.84461299 | H202: =IF(MAX(C205:C216)-MIN(C205:C216)<5,AVERAGEIF(C205:C216,">0",H205:H216), IF(FORECAST($C202,H$205:H$216,$C$205:$C$216)<0,0, IF(FORECAST($C202,H$205:H$216,$C$205:$C$216)>100,100, FORECAST($C202,H$205:H$216,$C$205:$C$216)))) -> 11.44933675 | I202: =IF(MAX(C205:C216)-MIN(C205:C216)<5,AVERAGEIF(C205:C216,">0",I205:I216), IF(FORECAST($C202,I$205:I$216,$C$205:$C$216)<0,0, IF(FORECAST($C202,I$205:I$216,$C$205:$C$216)>100,100, FORECAST($C202,I$205:I$216,$C$205:$C$216)))) -> 89.15296882 | M202: =IF(MAX(C205:C216)-MIN(C205:C216)<5,AVERAGEIF(C205:C216,">0",M205:M216), IF(FORECAST($C202,M$205:M$216,$C$205:$C$216)<0,0, IF(FORECAST($C202,M$205:M$216,$C$205:$C$216)>100,100, FORECAST($C202,M$205:M$216,$C$205:$C$216)))) -> 9.510957531 | N202: =IF(MAX(C205:C216)-MIN(C205:C216)<5,AVERAGEIF(C205:C216,">0",N205:N216), IF(FORECAST($C202,N$205:N$216,$C$205:$C$216)<0,0, IF(FORECAST($C202,N$205:N$216,$C$205:$C$216)>100,100, FORECAST($C202,N$205:N$216,$C$205:$C$216)))) -> 97.20181917 | R202: =IF(MAX(C205:C216)-MIN(C205:C216)<5,AVERAGEIF(C205:C216,">0",R205:R216), IF(FORECAST($C202,R$205:R$216,$C$205:$C$216)<0,0, IF(FORECAST($C202,R$205:R$216,$C$205:$C$216)>100,100, FORECAST($C202,R$205:R$216,$C$205:$C$216)))) -> 0.6152601132 | S202: =IF(MAX(C205:C216)-MIN(C205:C216)<5,AVERAGEIF(C205:C216,">0",S205:S216), IF(FORECAST($C202,S$205:S$216,$C$205:$C$216)<0,0, IF(FORECAST($C202,S$205:S$216,$C$205:$C$216)>100,100, FORECAST($C202,S$205:S$216,$C$205:$C$216)))) -> 100 | W202: =IF(MAX(C205:C216)-MIN(C205:C216)<5,AVERAGEIF(C205:C216,">0",W205:W216), IF(FORECAST($C202,W$205:W$216,$C$205:$C$216)<0,0, IF(FORECAST($C202,W$205:W$216,$C$205:$C$216)>100,100, FORECAST($C202,W$205:W$216,$C$205:$C$216)))) -> 0 | X202: =IF(MAX(C205:C216)-MIN(C205:C216)<5,AVERAGEIF(C205:C216,">0",X205:X216), IF(FORECAST($C202,X$205:X$216,$C$205:$C$216)<0,0, IF(FORECAST($C202,X$205:X$216,$C$205:$C$216)>100,100, FORECAST($C202,X$205:X$216,$C$205:$C$216)))) -> 100 | AB202: =IF(MAX(C205:C216)-MIN(C205:C216)<5,AVERAGEIF(C205:C216,">0",AB205:AB216), IF(FORECAST($C202,AB$205:AB$216,$C$205:$C$216)<0,0, IF(FORECAST($C202,AB$205:AB$216,$C$205:$C$216)>100,100, FORECAST($C202,AB$205:AB$216,$C$205:$C$216)))) -> 0
B204: Survey | C204: Year | D204: Improved | E204: Not shared | H204: Open defecation | I204: Improved | J204: Not shared | M204: Open defecation | N204: Improved | O204: Not shared | R204: Open defecation | S204: Improved | T204: Not shared | W204: Open defecation | X204: Improved | Y204: Not shared | AB204: Open defecation
B205: SLC05 | C205: 2005 | D205: =IF(ISERROR(INDIRECT(CONCATENATE($B205,"!H122"))),"",INDIRECT(CONCATENATE($B205,"!H122"))) -> 64.28571429 | E205: =IF(ISERROR(INDIRECT(CONCATENATE($B205,"!H129"))),"",INDIRECT(CONCATENATE($B205,"!H129"))) -> N/A | H205: =IF(ISERROR(INDIRECT(CONCATENATE($B205,"!H127"))),"",INDIRECT(CONCATENATE($B205,"!H127"))) -> 30.95238095 | I205: =IF(ISERROR(INDIRECT(CONCATENATE($B205,"!I122"))),"",INDIRECT(CONCATENATE($B205,"!I122"))) -> 88.37209302 | J205: =IF(ISERROR(INDIRECT(CONCATENATE($B205,"!I129"))),"",INDIRECT(CONCATENATE($B205,"!I129"))) -> N/A | M205: =IF(ISERROR(INDIRECT(CONCATENATE($B205,"!I127"))),"",INDIRECT(CONCATENATE($B205,"!I127"))) -> 6.976744186 | N205: =IF(ISERROR(INDIRECT(CONCATENATE($B205,"!J122"))),"",INDIRECT(CONCATENATE($B205,"!J122"))) -> 95.34883721 | O205: =IF(ISERROR(INDIRECT(CONCATENATE($B205,"!J129"))),"",INDIRECT(CONCATENATE($B205,"!J129"))) -> N/A | R205: =IF(ISERROR(INDIRECT(CONCATENATE($B205,"!J127"))),"",INDIRECT(CONCATENATE($B205,"!J127"))) -> 4.651162791 | S205: =IF(ISERROR(INDIRECT(CONCATENATE($B205,"!K122"))),"",INDIRECT(CONCATENATE($B205,"!K122"))) -> 100 | T205: =IF(ISERROR(INDIRECT(CONCATENATE($B205,"!K129"))),"",INDIRECT(CONCATENATE($B205,"!K129"))) -> N/A | W205: =IF(ISERROR(INDIRECT(CONCATENATE($B205,"!K127"))),"",INDIRECT(CONCATENATE($B205,"!K127"))) -> 0 | X205: =IF(ISERROR(INDIRECT(CONCATENATE($B205,"!L122"))),"",INDIRECT(CONCATENATE($B205,"!L122"))) -> 100 | Y205: =IF(ISERROR(INDIRECT(CONCATENATE($B205,"!L129"))),"",INDIRECT(CONCATENATE($B205,"!L129"))) -> N/A | AB205: =IF(ISERROR(INDIRECT(CONCATENATE($B205,"!L2127"))),"",INDIRECT(CONCATENATE($B205,"!L127"))) -> 0
B206: MICS12 | C206: 2012 | D206: 81.05374661 | E206: 71.59649725 | H206: 15.78334657 | I206: 88.97944086 | J206: 90.83032131 | M206: 8.94779901 | N206: 96.7900454 | O206: 93.56645509 | R206: 1.512127375 | S206: 100 | T206: 95.44308292 | W206: 0 | X206: 100 | Y206: 97.90955351 | AB206: 0
B218: =CONCATENATE("Urban use of sanitation facilities, ",C199,"–",C200) -> Urban use of sanitation facilities, 2000–2018 | S218: Data points used for regression
A297: RURAL | D297: Poorest | I297: Poor | N297: Middle | S297: Rich | X297: Richest
D298: Improved | E298: Basic | F298: Limited | G298: Unimproved | H298: Open defecation | I298: Improved | J298: Basic | K298: Limited | L298: Unimproved | M298: Open defecation | N298: Improved | O298: Basic | P298: Limited | Q298: Unimproved | R298: Open defecation | S298: Improved | T298: Basic | U298: Limited | V298: Unimproved | W298: Open defecation | X298: Improved | Y298: Basic | Z298: Limited | AA298: Unimproved | AB298: Open defecation
A299: Forecast period: | C299: =MinBase(C305:C316) -> 2000 | D299: =IF((D301+H301)>100,D301*100/(D301+H301),D301) -> 62.89105512 | E299: =D299*AVERAGEIF(E305:E316,">0")/100 -> 50.12740315 | F299: =D299*(100-AVERAGEIF(E305:E316,">0"))/100 -> 12.76365197 | G299: =100-(E299+F299+H299) -> 1.524272104 | H299: =IF((D301+H301)>100,H301*100/(D301+H301),H301) -> 35.58467278 | I299: =IF((I301+M301)>100,I301*100/(I301+M301),I301) -> 92.57904739 | J299: =I299*AVERAGEIF(J305:J316,">0")/100 -> 80.57232482 | K299: =I299*(100-AVERAGEIF(J305:J316,">0"))/100 -> 12.00672257 | L299: =100-(J299+K299+M299) -> 0.92997855 | M299: =IF((I301+M301)>100,M301*100/(I301+M301),M301) -> 6.490974064 | N299: =IF((N301+R301)>100,N301*100/(N301+R301),N301) -> 91.75824176 | O299: =N299*AVERAGEIF(O305:O316,">0")/100 -> 89.02440794 | P299: =N299*(100-AVERAGEIF(O305:O316,">0"))/100 -> 2.733833823 | Q299: =100-(O299+P299+R299) -> 1.648351648 | R299: =IF((N301+R301)>100,R301*100/(N301+R301),R301) -> 6.593406593 | S299: =IF((S301+W301)>100,S301*100/(S301+W301),S301) -> 91.65120594 | T299: =S299*AVERAGEIF(T305:T316,">0")/100 -> 89.20965964 | U299: =S299*(100-AVERAGEIF(T305:T316,">0"))/100 -> 2.441546299 | V299: =100-(T299+U299+W299) -> 1.669758813 | W299: =IF((S301+W301)>100,W301*100/(S301+W301),W301) -> 6.67903525 | X299: =IF((X301+AB301)>100,X301*100/(X301+AB301),X301) -> 98.33024119 | Y299: =X299*AVERAGEIF(Y305:Y316,">0")/100 -> 97.56157794 | Z299: =X299*(100-AVERAGEIF(Y305:Y316,">0"))/100 -> 0.7686632455 | AA299: =100-(Y299+Z299+AB299) -> 0 | AB299: =IF((X301+AB301)>100,AB301*100/(X301+AB301),AB301) -> 1.669758813
C300: =MaxTarget(C305:C316) -> 2018 | D300: =IF((D302+H302)>100,D302*100/(D302+H302),D302) -> 100 | E300: =D300*AVERAGEIF(E305:E316,">0")/100 -> 79.70513939 | F300: =D300*(100-AVERAGEIF(E305:E316,">0"))/100 -> 20.29486061 | G300: =100-(E300+F300+H300) -> 0 | H300: =IF((D302+H302)>100,H302*100/(D302+H302),H302) -> 0 | I300: =IF((I302+M302)>100,I302*100/(I302+M302),I302) -> 100 | J300: =I300*AVERAGEIF(J305:J316,">0")/100 -> 87.03084239 | K300: =I300*(100-AVERAGEIF(J305:J316,">0"))/100 -> 12.96915761 | L300: =100-(J300+K300+M300) -> 0 | M300: =IF((I302+M302)>100,M302*100/(I302+M302),M302) -> 0 | N300: =IF((N302+R302)>100,N302*100/(N302+R302),N302) -> 100 | O300: =N300*AVERAGEIF(O305:O316,">0")/100 -> 97.02061224 | P300: =N300*(100-AVERAGEIF(O305:O316,">0"))/100 -> 2.979387759 | Q300: =100-(O300+P300+R300) -> 0 | R300: =IF((N302+R302)>100,R302*100/(N302+R302),R302) -> 0 | S300: =IF((S302+W302)>100,S302*100/(S302+W302),S302) -> 100 | T300: =S300*AVERAGEIF(T305:T316,">0")/100 -> 97.33604564 | U300: =S300*(100-AVERAGEIF(T305:T316,">0"))/100 -> 2.663954362 | V300: =100-(T300+U300+W300) -> 0 | W300: =IF((S302+W302)>100,W302*100/(S302+W302),W302) -> 0 | X300: =IF((X302+AB302)>100,X302*100/(X302+AB302),X302) -> 100 | Y300: =X300*AVERAGEIF(Y305:Y316,">0")/100 -> 99.21828398 | Z300: =X300*(100-AVERAGEIF(Y305:Y316,">0"))/100 -> 0.7817160176 | AA300: =100-(Y300+Z300+AB300) -> 0 | AB300: =IF((X302+AB302)>100,AB302*100/(X302+AB302),AB302) -> 0
A301: Regression period: | C301: =MinRegYear(C299,C305:C316) -> 2003 | D301: =IF(MAX(C305:C316)-MIN(C305:C316)<5,AVERAGEIF(C305:C316,">0",D305:D316), IF(FORECAST($C301,D$305:D$316,$C$305:$C$316)<0,0, IF(FORECAST($C301,D$305:D$316,$C$305:$C$316)>100,100, FORECAST($C301,D$305:D$316,$C$305:$C$316)))) -> 62.89105512 | H301: =IF(MAX(C305:C316)-MIN(C305:C316)<5,AVERAGEIF(C305:C316,">0",H305:H316), IF(FORECAST($C301,H$305:H$316,$C$305:$C$316)<0,0, IF(FORECAST($C301,H$305:H$316,$C$305:$C$316)>100,100, FORECAST($C301,H$305:H$316,$C$305:$C$316)))) -> 35.58467278 | I301: =IF(MAX(C305:C316)-MIN(C305:C316)<5,AVERAGEIF(C305:C316,">0",I305:I316), IF(FORECAST($C301,I$305:I$316,$C$305:$C$316)<0,0, IF(FORECAST($C301,I$305:I$316,$C$305:$C$316)>100,100, FORECAST($C301,I$305:I$316,$C$305:$C$316)))) -> 92.57904739 | M301: =IF(MAX(C305:C316)-MIN(C305:C316)<5,AVERAGEIF(C305:C316,">0",M305:M316), IF(FORECAST($C301,M$305:M$316,$C$305:$C$316)<0,0, IF(FORECAST($C301,M$305:M$316,$C$305:$C$316)>100,100, FORECAST($C301,M$305:M$316,$C$305:$C$316)))) -> 6.490974064 | N301: =IF(MAX(C305:C316)-MIN(C305:C316)<5,AVERAGEIF(C305:C316,">0",N305:N316), IF(FORECAST($C301,N$305:N$316,$C$305:$C$316)<0,0, IF(FORECAST($C301,N$305:N$316,$C$305:$C$316)>100,100, FORECAST($C301,N$305:N$316,$C$305:$C$316)))) -> 91.75824176 | R301: =IF(MAX(C305:C316)-MIN(C305:C316)<5,AVERAGEIF(C305:C316,">0",R305:R316), IF(FORECAST($C301,R$305:R$316,$C$305:$C$316)<0,0, IF(FORECAST($C301,R$305:R$316,$C$305:$C$316)>100,100, FORECAST($C301,R$305:R$316,$C$305:$C$316)))) -> 6.593406593 | S301: =IF(MAX(C305:C316)-MIN(C305:C316)<5,AVERAGEIF(C305:C316,">0",S305:S316), IF(FORECAST($C301,S$305:S$316,$C$305:$C$316)<0,0, IF(FORECAST($C301,S$305:S$316,$C$305:$C$316)>100,100, FORECAST($C301,S$305:S$316,$C$305:$C$316)))) -> 91.65120594 | W301: =IF(MAX(C305:C316)-MIN(C305:C316)<5,AVERAGEIF(C305:C316,">0",W305:W316), IF(FORECAST($C301,W$305:W$316,$C$305:$C$316)<0,0, IF(FORECAST($C301,W$305:W$316,$C$305:$C$316)>100,100, FORECAST($C301,W$305:W$316,$C$305:$C$316)))) -> 6.67903525 | X301: =IF(MAX(C305:C316)-MIN(C305:C316)<5,AVERAGEIF(C305:C316,">0",X305:X316), IF(FORECAST($C301,X$305:X$316,$C$305:$C$316)<0,0, IF(FORECAST($C301,X$305:X$316,$C$305:$C$316)>100,100, FORECAST($C301,X$305:X$316,$C$305:$C$316)))) -> 98.33024119 | AB301: =IF(MAX(C305:C316)-MIN(C305:C316)<5,AVERAGEIF(C305:C316,">0",AB305:AB316), IF(FORECAST($C301,AB$305:AB$316,$C$305:$C$316)<0,0, IF(FORECAST($C301,AB$305:AB$316,$C$305:$C$316)>100,100, FORECAST($C301,AB$305:AB$316,$C$305:$C$316)))) -> 1.669758813
C302: =MaxRegYear(C300,C305:C316) -> 2014 | D302: =IF(MAX(C305:C316)-MIN(C305:C316)<5,AVERAGEIF(C305:C316,">0",D305:D316), IF(FORECAST($C302,D$305:D$316,$C$305:$C$316)<0,0, IF(FORECAST($C302,D$305:D$316,$C$305:$C$316)>100,100, FORECAST($C302,D$305:D$316,$C$305:$C$316)))) -> 100 | H302: =IF(MAX(C305:C316)-MIN(C305:C316)<5,AVERAGEIF(C305:C316,">0",H305:H316), IF(FORECAST($C302,H$305:H$316,$C$305:$C$316)<0,0, IF(FORECAST($C302,H$305:H$316,$C$305:$C$316)>100,100, FORECAST($C302,H$305:H$316,$C$305:$C$316)))) -> 0 | I302: =IF(MAX(C305:C316)-MIN(C305:C316)<5,AVERAGEIF(C305:C316,">0",I305:I316), IF(FORECAST($C302,I$305:I$316,$C$305:$C$316)<0,0, IF(FORECAST($C302,I$305:I$316,$C$305:$C$316)>100,100, FORECAST($C302,I$305:I$316,$C$305:$C$316)))) -> 100 | M302: =IF(MAX(C305:C316)-MIN(C305:C316)<5,AVERAGEIF(C305:C316,">0",M305:M316), IF(FORECAST($C302,M$305:M$316,$C$305:$C$316)<0,0, IF(FORECAST($C302,M$305:M$316,$C$305:$C$316)>100,100, FORECAST($C302,M$305:M$316,$C$305:$C$316)))) -> 0 | N302: =IF(MAX(C305:C316)-MIN(C305:C316)<5,AVERAGEIF(C305:C316,">0",N305:N316), IF(FORECAST($C302,N$305:N$316,$C$305:$C$316)<0,0, IF(FORECAST($C302,N$305:N$316,$C$305:$C$316)>100,100, FORECAST($C302,N$305:N$316,$C$305:$C$316)))) -> 100 | R302: =IF(MAX(C305:C316)-MIN(C305:C316)<5,AVERAGEIF(C305:C316,">0",R305:R316), IF(FORECAST($C302,R$305:R$316,$C$305:$C$316)<0,0, IF(FORECAST($C302,R$305:R$316,$C$305:$C$316)>100,100, FORECAST($C302,R$305:R$316,$C$305:$C$316)))) -> 0 | S302: =IF(MAX(C305:C316)-MIN(C305:C316)<5,AVERAGEIF(C305:C316,">0",S305:S316), IF(FORECAST($C302,S$305:S$316,$C$305:$C$316)<0,0, IF(FORECAST($C302,S$305:S$316,$C$305:$C$316)>100,100, FORECAST($C302,S$305:S$316,$C$305:$C$316)))) -> 100 | W302: =IF(MAX(C305:C316)-MIN(C305:C316)<5,AVERAGEIF(C305:C316,">0",W305:W316), IF(FORECAST($C302,W$305:W$316,$C$305:$C$316)<0,0, IF(FORECAST($C302,W$305:W$316,$C$305:$C$316)>100,100, FORECAST($C302,W$305:W$316,$C$305:$C$316)))) -> 0 | X302: =IF(MAX(C305:C316)-MIN(C305:C316)<5,AVERAGEIF(C305:C316,">0",X305:X316), IF(FORECAST($C302,X$305:X$316,$C$305:$C$316)<0,0, IF(FORECAST($C302,X$305:X$316,$C$305:$C$316)>100,100, FORECAST($C302,X$305:X$316,$C$305:$C$316)))) -> 100 | AB302: =IF(MAX(C305:C316)-MIN(C305:C316)<5,AVERAGEIF(C305:C316,">0",AB305:AB316), IF(FORECAST($C302,AB$305:AB$316,$C$305:$C$316)<0,0, IF(FORECAST($C302,AB$305:AB$316,$C$305:$C$316)>100,100, FORECAST($C302,AB$305:AB$316,$C$305:$C$316)))) -> 0
B304: Survey | C304: Year | D304: Improved | E304: Not shared | H304: Open defecation | I304: Improved | J304: Not shared | M304: Open defecation | N304: Improved | O304: Not shared | R304: Open defecation | S304: Improved | T304: Not shared | W304: Open defecation | X304: Improved | Y304: Not shared | AB304: Open defecation
B305: SLC05 | C305: 2005 | D305: =IF(ISERROR(INDIRECT(CONCATENATE($B305,"!M122"))),"",INDIRECT(CONCATENATE($B305,"!M122"))) -> 70.12987013 | E305: =IF(ISERROR(INDIRECT(CONCATENATE($B305,"!M129"))),"",INDIRECT(CONCATENATE($B305,"!M129"))) -> N/A | H305: =IF(ISERROR(INDIRECT(CONCATENATE($B305,"!M127"))),"",INDIRECT(CONCATENATE($B305,"!M127"))) -> 28.57142857 | I305: =IF(ISERROR(INDIRECT(CONCATENATE($B305,"!N122"))),"",INDIRECT(CONCATENATE($B305,"!N122"))) -> 94.00765168 | J305: =IF(ISERROR(INDIRECT(CONCATENATE($B305,"!N129"))),"",INDIRECT(CONCATENATE($B305,"!N129"))) -> N/A | M305: =IF(ISERROR(INDIRECT(CONCATENATE($B305,"!N127"))),"",INDIRECT(CONCATENATE($B305,"!N127"))) -> 5.194805195 | N305: =IF(ISERROR(INDIRECT(CONCATENATE($B305,"!O122"))),"",INDIRECT(CONCATENATE($B305,"!O122"))) -> 93.58974359 | O305: =IF(ISERROR(INDIRECT(CONCATENATE($B305,"!O129"))),"",INDIRECT(CONCATENATE($B305,"!O129"))) -> N/A | R305: =IF(ISERROR(INDIRECT(CONCATENATE($B305,"!O127"))),"",INDIRECT(CONCATENATE($B305,"!O127"))) -> 5.128205128 | S305: =IF(ISERROR(INDIRECT(CONCATENATE($B305,"!P122"))),"",INDIRECT(CONCATENATE($B305,"!P122"))) -> 93.50649351 | T305: =IF(ISERROR(INDIRECT(CONCATENATE($B305,"!P129"))),"",INDIRECT(CONCATENATE($B305,"!P129"))) -> N/A | W305: =IF(ISERROR(INDIRECT(CONCATENATE($B305,"!P127"))),"",INDIRECT(CONCATENATE($B305,"!P127"))) -> 5.194805195 | X305: =IF(ISERROR(INDIRECT(CONCATENATE($B305,"!Q122"))),"",INDIRECT(CONCATENATE($B305,"!Q122"))) -> 98.7012987 | Y305: =IF(ISERROR(INDIRECT(CONCATENATE($B305,"!Q129"))),"",INDIRECT(CONCATENATE($B305,"!Q129"))) -> N/A | AB305: =IF(ISERROR(INDIRECT(CONCATENATE($B305,"!Q2127"))),"",INDIRECT(CONCATENATE($B305,"!Q127"))) -> 1.298701299
B306: MICS12 | C306: 2012 | D306: 95.46572266 | E306: 79.70513939 | H306: 4.025073858 | I306: 99.00776672 | J306: 87.03084239 | M306: 0.6582141541 | N306: 100 | O306: 97.02061224 | R306: 0 | S306: 100 | T306: 97.33604564 | W306: 0 | X306: 100 | Y306: 99.21828398 | AB306: 0
B318: =CONCATENATE("Rural use of sanitation facilities, ",C299,"–",C300) -> Rural use of sanitation facilities, 2000–2018 | S318: Data points used for regression

Sheet Hygiene
B4: Access to hygiene facilities by wealth quintile (%)
B5: =IF(ISERROR(INDIRECT(CONCATENATE($E$32,"!A2"))),"",INDIRECT(CONCATENATE($E$32,"!A2"))) -> Saint Lucia
B7: =CONCATENATE("National ",IF(ISERROR(INDIRECT(CONCATENATE($E$32,"!A2"))),"",INDIRECT(CONCATENATE($E$32,"!A210")))) -> National Access to hygiene facilities | K7: =CONCATENATE("Urban ",IF(ISERROR(INDIRECT(CONCATENATE($E$32,"!A2"))),"",INDIRECT(CONCATENATE($E$32,"!A210")))) -> Urban Access to hygiene facilities | S7: =CONCATENATE("Rural ",IF(ISERROR(INDIRECT(CONCATENATE($E$32,"!A2"))),"",INDIRECT(CONCATENATE($E$32,"!A210")))) -> Rural Access to hygiene facilities
E32: =INDEX(B88:B100,A88) -> MICS12 | G32: =IF(ISERROR(INDIRECT(CONCATENATE($E$32,"!A2"))),"",INDIRECT(CONCATENATE($E$32,"!A2"))) -> Saint Lucia | K32: Poorest | N32: Poor | Q32: Middle | T32: Rich | W32: Richest
K33: Basic | L33: Limited | M33: No facility | N33: Basic | O33: Limited | P33: No facility | Q33: Basic | R33: Limited | S33: No facility | T33: Basic | U33: Limited | V33: No facility | W33: Basic | X33: Limited | Y33: No facility
B34: >>> Select Survey : | G34: NATIONAL | J34: =IF(ISERROR(INDIRECT(CONCATENATE(#REF!,"!A2"))),"",INDIRECT(CONCATENATE(#REF!,"!A210"))) ->  | K34: =IF(ISERROR(INDIRECT(CONCATENATE($E$32,"!C222"))),"",INDIRECT(CONCATENATE($E$32,"!C222"))) -> 69.68906407 | L34: =IF(ISERROR(INDIRECT(CONCATENATE($E$32,"!C223"))),"",INDIRECT(CONCATENATE($E$32,"!C223"))) -> 15.63194298 | M34: =IF(ISERROR(INDIRECT(CONCATENATE($E$32,"!C224"))),"",INDIRECT(CONCATENATE($E$32,"!C224"))) -> 14.67899295 | N34: =IF(ISERROR(INDIRECT(CONCATENATE($E$32,"!D222"))),"",INDIRECT(CONCATENATE($E$32,"!D222"))) -> 85.20066099 | O34: =IF(ISERROR(INDIRECT(CONCATENATE($E$32,"!D223"))),"",INDIRECT(CONCATENATE($E$32,"!D223"))) -> 11.06455159 | P34: =IF(ISERROR(INDIRECT(CONCATENATE($E$32,"!D224"))),"",INDIRECT(CONCATENATE($E$32,"!D224"))) -> 3.734787414 | Q34: =IF(ISERROR(INDIRECT(CONCATENATE($E$32,"!E222"))),"",INDIRECT(CONCATENATE($E$32,"!E222"))) -> 90.75416782 | R34: =IF(ISERROR(INDIRECT(CONCATENATE($E$32,"!E223"))),"",INDIRECT(CONCATENATE($E$32,"!E223"))) -> 5.436142448 | S34: =IF(ISERROR(INDIRECT(CONCATENATE($E$32,"!E224"))),"",INDIRECT(CONCATENATE($E$32,"!E224"))) -> 3.809689729 | T34: =IF(ISERROR(INDIRECT(CONCATENATE($E$32,"!F222"))),"",INDIRECT(CONCATENATE($E$32,"!F222"))) -> 95.11956514 | U34: =IF(ISERROR(INDIRECT(CONCATENATE($E$32,"!F223"))),"",INDIRECT(CONCATENATE($E$32,"!F223"))) -> 3.155841065 | V34: =IF(ISERROR(INDIRECT(CONCATENATE($E$32,"!F224"))),"",INDIRECT(CONCATENATE($E$32,"!F224"))) -> 1.724593791 | W34: =IF(ISERROR(INDIRECT(CONCATENATE($E$32,"!G222"))),"",INDIRECT(CONCATENATE($E$32,"!G222"))) -> 95.69936993 | X34: =IF(ISERROR(INDIRECT(CONCATENATE($E$32,"!G223"))),"",INDIRECT(CONCATENATE($E$32,"!G223"))) -> 2.316865944 | Y34: =IF(ISERROR(INDIRECT(CONCATENATE($E$32,"!G224"))),"",INDIRECT(CONCATENATE($E$32,"!G224"))) -> 1.983764127
G37: URBAN | J37: =IF(ISERROR(INDIRECT(CONCATENATE(#REF!,"!A2"))),"",INDIRECT(CONCATENATE(#REF!,"!A210"))) ->  | K37: =IF(ISERROR(INDIRECT(CONCATENATE($E$32,"!H222"))),"",INDIRECT(CONCATENATE($E$32,"!H222"))) -> 66.77810562 | L37: =IF(ISERROR(INDIRECT(CONCATENATE($E$32,"!H223"))),"",INDIRECT(CONCATENATE($E$32,"!H223"))) -> 17.99825707 | M37: =IF(ISERROR(INDIRECT(CONCATENATE($E$32,"!H224"))),"",INDIRECT(CONCATENATE($E$32,"!H224"))) -> 15.22363731 | N37: =IF(ISERROR(INDIRECT(CONCATENATE($E$32,"!I222"))),"",INDIRECT(CONCATENATE($E$32,"!I222"))) -> 88.28401651 | O37: =IF(ISERROR(INDIRECT(CONCATENATE($E$32,"!I223"))),"",INDIRECT(CONCATENATE($E$32,"!I223"))) -> 8.99028872 | P37: =IF(ISERROR(INDIRECT(CONCATENATE($E$32,"!I224"))),"",INDIRECT(CONCATENATE($E$32,"!I224"))) -> 2.725694774 | Q37: =IF(ISERROR(INDIRECT(CONCATENATE($E$32,"!J222"))),"",INDIRECT(CONCATENATE($E$32,"!J222"))) -> 88.83541529 | R37: =IF(ISERROR(INDIRECT(CONCATENATE($E$32,"!J223"))),"",INDIRECT(CONCATENATE($E$32,"!J223"))) -> 8.728523969 | S37: =IF(ISERROR(INDIRECT(CONCATENATE($E$32,"!J224"))),"",INDIRECT(CONCATENATE($E$32,"!J224"))) -> 2.436060738 | T37: =IF(ISERROR(INDIRECT(CONCATENATE($E$32,"!K222"))),"",INDIRECT(CONCATENATE($E$32,"!K222"))) -> 98.37454514 | U37: =IF(ISERROR(INDIRECT(CONCATENATE($E$32,"!K223"))),"",INDIRECT(CONCATENATE($E$32,"!K223"))) -> 0 | V37: =IF(ISERROR(INDIRECT(CONCATENATE($E$32,"!K224"))),"",INDIRECT(CONCATENATE($E$32,"!K224"))) -> 1.62545486 | W37: =IF(ISERROR(INDIRECT(CONCATENATE($E$32,"!L222"))),"",INDIRECT(CONCATENATE($E$32,"!L222"))) -> 96.51012434 | X37: =IF(ISERROR(INDIRECT(CONCATENATE($E$32,"!L223"))),"",INDIRECT(CONCATENATE($E$32,"!L223"))) -> 1.294438996 | Y37: =IF(ISERROR(INDIRECT(CONCATENATE($E$32,"!L224"))),"",INDIRECT(CONCATENATE($E$32,"!L224"))) -> 2.195436666
G40: RURAL | J40: =IF(ISERROR(INDIRECT(CONCATENATE(#REF!,"!A2"))),"",INDIRECT(CONCATENATE(#REF!,"!A210"))) ->  | K40: =IF(ISERROR(INDIRECT(CONCATENATE($E$32,"!M222"))),"",INDIRECT(CONCATENATE($E$32,"!M222"))) -> 70.53857853 | L40: =IF(ISERROR(INDIRECT(CONCATENATE($E$32,"!M223"))),"",INDIRECT(CONCATENATE($E$32,"!M223"))) -> 15.0235217 | M40: =IF(ISERROR(INDIRECT(CONCATENATE($E$32,"!M224"))),"",INDIRECT(CONCATENATE($E$32,"!M224"))) -> 14.43789976 | N40: =IF(ISERROR(INDIRECT(CONCATENATE($E$32,"!N222"))),"",INDIRECT(CONCATENATE($E$32,"!N222"))) -> 84.58311422 | O40: =IF(ISERROR(INDIRECT(CONCATENATE($E$32,"!N223"))),"",INDIRECT(CONCATENATE($E$32,"!N223"))) -> 11.40937532 | P40: =IF(ISERROR(INDIRECT(CONCATENATE($E$32,"!N224"))),"",INDIRECT(CONCATENATE($E$32,"!N224"))) -> 4.007510466 | Q40: =IF(ISERROR(INDIRECT(CONCATENATE($E$32,"!O222"))),"",INDIRECT(CONCATENATE($E$32,"!O222"))) -> 90.88141077 | R40: =IF(ISERROR(INDIRECT(CONCATENATE($E$32,"!O223"))),"",INDIRECT(CONCATENATE($E$32,"!O223"))) -> 4.884603018 | S40: =IF(ISERROR(INDIRECT(CONCATENATE($E$32,"!O224"))),"",INDIRECT(CONCATENATE($E$32,"!O224"))) -> 4.233986217 | T40: =IF(ISERROR(INDIRECT(CONCATENATE($E$32,"!P222"))),"",INDIRECT(CONCATENATE($E$32,"!P222"))) -> 94.43430444 | U40: =IF(ISERROR(INDIRECT(CONCATENATE($E$32,"!P223"))),"",INDIRECT(CONCATENATE($E$32,"!P223"))) -> 3.921846803 | V40: =IF(ISERROR(INDIRECT(CONCATENATE($E$32,"!P224"))),"",INDIRECT(CONCATENATE($E$32,"!P224"))) -> 1.643848758 | W40: =IF(ISERROR(INDIRECT(CONCATENATE($E$32,"!Q222"))),"",INDIRECT(CONCATENATE($E$32,"!Q222"))) -> 95.40906364 | X40: =IF(ISERROR(INDIRECT(CONCATENATE($E$32,"!Q223"))),"",INDIRECT(CONCATENATE($E$32,"!Q223"))) -> 2.545076704 | Y40: =IF(ISERROR(INDIRECT(CONCATENATE($E$32,"!Q224"))),"",INDIRECT(CONCATENATE($E$32,"!Q224"))) -> 2.04585966
A88: 2 | B88: SLC05
B89: MICS12
B90: Template

Sheet SLC05
A2: =A1026 -> Saint Lucia
A3: =A1034 -> 2005
A4: Use of drinking water sources
A5: by wealth quintile and sub-national region
A6: Notes:
A7: WHO/UNICEF JMP customised wealth index excludes water,
A8: sanitation and hygiene assets.
A9: Survey used for analysis: | B9: =A1025 -> 0
A10: =B1028 -> 0
A11: =B1027 -> 0
A14: Use of drinking water sources | C14: NATIONAL wealth index quintile | H14: URBAN wealth index quintile | M14: RURAL wealth index quintile | BA14: Raw numbers of respondents: | BB14: Use of drinking water sources | BC14: NATIONAL wealth index quintile | BH14: URBAN wealth index quintile | BM14: RURAL wealth index quintile
A15: Weighted percentage (used in graphs) | C15: Poorest | D15: Poor | E15: Middle | F15: Rich | G15: Richest | H15: Poorest | I15: Poor | J15: Middle | K15: Rich | L15: Richest | M15: Poorest | N15: Poor | O15: Middle | P15: Rich | Q15: Richest | BA15: Water data, raw numbers (weighted) | BC15: Poorest | BD15: Poor | BE15: Middle | BF15: Rich | BG15: Richest | BH15: Poorest | BI15: Poor | BJ15: Middle | BK15: Rich | BL15: Richest | BM15: Poorest | BN15: Poor | BO15: Middle | BP15: Rich | BQ15: Richest
A16: Water | B16: Improved | C16: =C58+C59+C60+C61+C62+C63*MICS12!C24/100 -> 87.34319912 | D16: =D58+D59+D60+D61+D62+D63*MICS12!D24/100 -> 96.66666667 | E16: =E58+E59+E60+E61+E62+E63*MICS12!E24/100 -> 96.20251909 | F16: =F58+F59+F60+F61+F62+F63*MICS12!F24/100 -> 99.09847038 | G16: =G58+G59+G60+G61+G62+G63*MICS12!G24/100 -> 100 | H16: =H58+H59+H60+H61+H62+H63*MICS12!H24/100 -> 92.85714286 | I16: =I58+I59+I60+I61+I62+I63*MICS12!I24/100 -> 95.34883721 | J16: =J58+J59+J60+J61+J62+J63*MICS12!J24/100 -> 100 | K16: =K58+K59+K60+K61+K62+K63*MICS12!K24/100 -> 100 | L16: =L58+L59+L60+L61+L62+L63*MICS12!L24/100 -> 100 | M16: =M58+M59+M60+M61+M62+M63*MICS12!M24/100 -> 85.49773627 | N16: =N58+N59+N60+N61+N62+N63*MICS12!N24/100 -> 94.80519481 | O16: =O58+O59+O60+O61+O62+O63*MICS12!O24/100 -> 96.72182424 | P16: =P58+P59+P60+P61+P62+P63*MICS12!P24/100 -> 97.4025974 | Q16: =Q58+Q59+Q60+Q61+Q62+Q63*MICS12!Q24/100 -> 100 | BA16: Water | BB16: Improved | BC16: N/A | BD16: N/A | BE16: N/A | BF16: N/A | BG16: N/A | BH16: N/A | BI16: N/A | BJ16: N/A | BK16: N/A | BL16: N/A | BM16: N/A | BN16: N/A | BO16: N/A | BP16: N/A | BQ16: N/A
B17: Not Improved | C17: =100-C16 -> 12.65680088 | D17: =100-D16 -> 3.333333333 | E17: 3.797480908 | F17: 0.901529623 | G17: 0 | H17: 7.142857143 | I17: 4.651162791 | J17: 0 | K17: 0 | L17: 0 | M17: 14.50226373 | N17: 5.194805195 | O17: 3.278175757 | P17: 2.597402597 | Q17: 0 | BB17: Not Improved | BC17: N/A | BD17: N/A | BE17: N/A | BF17: N/A | BG17: N/A | BH17: N/A | BI17: N/A | BJ17: N/A | BK17: N/A | BL17: N/A | BM17: N/A | BN17: N/A | BO17: N/A | BP17: N/A | BQ17: N/A
A18: Water ladder | B18: Basic | C18: =C16*MICS12!C23/100 -> 87.04562816 | D18: =D16*MICS12!D23/100 -> 96.66666667 | E18: =E16*MICS12!E23/100 -> 96.20251909 | F18: =F16*MICS12!F23/100 -> 99.09847038 | G18: =G16*MICS12!G23/100 -> 99.85432546 | H18: =H16*MICS12!H23/100 -> 92.54745475 | I18: =I16*MICS12!I23/100 -> 95.34883721 | J18: =J16*MICS12!J23/100 -> 100 | K18: =K16*MICS12!K23/100 -> 100 | L18: =L16*MICS12!L23/100 -> 99.23823027 | M18: =M16*MICS12!M23/100 -> 85.20329947 | N18: =N16*MICS12!N23/100 -> 94.80519481 | O18: =O16*MICS12!O23/100 -> 96.72182424 | P18: =P16*MICS12!P23/100 -> 97.4025974 | Q18: =Q16*MICS12!Q23/100 -> 100 | BA18: Water ladder | BB18: Basic | BC18: N/A | BD18: N/A | BE18: N/A | BF18: N/A | BG18: N/A | BH18: N/A | BI18: N/A | BJ18: N/A | BK18: N/A | BL18: N/A | BM18: N/A | BN18: N/A | BO18: N/A | BP18: N/A | BQ18: N/A
B19: Limited | C19: =C16*MICS12!C22/100 -> 0.2975709604 | D19: =D16*MICS12!D22/100 -> 0 | E19: =E16*MICS12!E22/100 -> 0 | F19: =F16*MICS12!F22/100 -> 0 | G19: =G16*MICS12!G22/100 -> 0.145674536 | H19: =H16*MICS12!H22/100 -> 0.3096881041 | I19: =I16*MICS12!I22/100 -> 0 | J19: =J16*MICS12!J22/100 -> 0 | K19: =K16*MICS12!K22/100 -> 0 | L19: =L16*MICS12!L22/100 -> 0.7617697288 | M19: =M16*MICS12!M22/100 -> 0.2944367977 | N19: =N16*MICS12!N22/100 -> 0 | O19: =O16*MICS12!O22/100 -> 0 | P19: =P16*MICS12!P22/100 -> 0 | Q19: =Q16*MICS12!Q22/100 -> 0 | BB19: Limited | BC19: N/A | BD19: N/A | BE19: N/A | BF19: N/A | BG19: N/A | BH19: N/A | BI19: N/A | BJ19: N/A | BK19: N/A | BL19: N/A | BM19: N/A | BN19: N/A | BO19: N/A | BP19: N/A | BQ19: N/A
B20: Unimproved | C20: =100-(C18+C19+C21) -> 12.65680088 | D20: =100-(D18+D19+D21) -> 3.333333333 | E20: 3.797480908 | F20: 0.901529623 | G20: 0 | H20: 7.142857143 | I20: 4.651162791 | J20: 0 | K20: 0 | L20: 0 | M20: 14.50226373 | N20: 5.194805195 | O20: 3.278175757 | P20: 2.597402597 | Q20: 0 | BB20: Unimproved | BC20: N/A | BD20: N/A | BE20: N/A | BF20: N/A | BG20: N/A | BH20: N/A | BI20: N/A | BJ20: N/A | BK20: N/A | BL20: N/A | BM20: N/A | BN20: N/A | BO20: N/A | BP20: N/A | BQ20: N/A
B21: Surface water | C21: 0 | D21: 0 | E21: 0 | F21: 0 | G21: 0 | H21: 0 | I21: 0 | J21: 0 | K21: 0 | L21: 0 | M21: 0 | N21: 0 | O21: 0 | P21: 0 | Q21: 0 | BB21: Surface water | BC21: N/A | BD21: N/A | BE21: N/A | BF21: N/A | BG21: N/A | BH21: N/A | BI21: N/A | BJ21: N/A | BK21: N/A | BL21: N/A | BM21: N/A | BN21: N/A | BO21: N/A | BP21: N/A | BQ21: N/A
A22: Improved water point at more than 30 minutes | B22: Yes | C22: N/A | D22: N/A | E22: N/A | F22: N/A | G22: N/A | H22: N/A | I22: N/A | J22: N/A | K22: N/A | L22: N/A | M22: N/A | N22: N/A | O22: N/A | P22: N/A | Q22: N/A | BA22: Improved water point at more than 30 minutes | BB22: Yes | BC22: N/A | BD22: N/A | BE22: N/A | BF22: N/A | BG22: N/A | BH22: N/A | BI22: N/A | BJ22: N/A | BK22: N/A | BL22: N/A | BM22: N/A | BN22: N/A | BO22: N/A | BP22: N/A | BQ22: N/A
B23: No | C23: N/A | D23: N/A | E23: N/A | F23: N/A | G23: N/A | H23: N/A | I23: N/A | J23: N/A | K23: N/A | L23: N/A | M23: N/A | N23: N/A | O23: N/A | P23: N/A | Q23: N/A | BB23: No | BC23: N/A | BD23: N/A | BE23: N/A | BF23: N/A | BG23: N/A | BH23: N/A | BI23: N/A | BJ23: N/A | BK23: N/A | BL23: N/A | BM23: N/A | BN23: N/A | BO23: N/A | BP23: N/A | BQ23: N/A
A24: Manually calculated ratios | B24: Improved wells
B25: Improved springs
B26: Other
C27: NATIONAL wealth index quintile | H27: URBAN wealth index quintile | M27: RURAL wealth index quintile | BA27: Raw numbers of respondents: | BB27: Use of drinking water sources | BC27: NATIONAL wealth index quintile | BH27: URBAN wealth index quintile | BM27: RURAL wealth index quintile
A28: Percentage based on weighted population | C28: Poorest | D28: Poor | E28: Middle | F28: Rich | G28: Richest | H28: Poorest | I28: Poor | J28: Middle | K28: Rich | L28: Richest | M28: Poorest | N28: Poor | O28: Middle | P28: Rich | Q28: Richest | BA28: Water data, raw numbers (weighted) | BC28: Poorest | BD28: Poor | BE28: Middle | BF28: Rich | BG28: Richest | BH28: Poorest | BI28: Poor | BJ28: Middle | BK28: Rich | BL28: Richest | BM28: Poorest | BN28: Poor | BO28: Middle | BP28: Rich | BQ28: Richest
A29: Piped water | B29: Yes | C29: N/A | D29: N/A | E29: N/A | F29: N/A | G29: N/A | H29: N/A | I29: N/A | J29: N/A | K29: N/A | L29: N/A | M29: N/A | N29: N/A | O29: N/A | P29: N/A | Q29: N/A | BA29: Piped water | BB29: Yes | BC29: N/A | BD29: N/A | BE29: N/A | BF29: N/A | BG29: N/A | BH29: N/A | BI29: N/A | BJ29: N/A | BK29: N/A | BL29: N/A | BM29: N/A | BN29: N/A | BO29: N/A | BP29: N/A | BQ29: N/A
B30: No | C30: N/A | D30: N/A | E30: N/A | F30: N/A | G30: N/A | H30: N/A | I30: N/A | J30: N/A | K30: N/A | L30: N/A | M30: N/A | N30: N/A | O30: N/A | P30: N/A | Q30: N/A | BB30: No | BC30: N/A | BD30: N/A | BE30: N/A | BF30: N/A | BG30: N/A | BH30: N/A | BI30: N/A | BJ30: N/A | BK30: N/A | BL30: N/A | BM30: N/A | BN30: N/A | BO30: N/A | BP30: N/A | BQ30: N/A
A31: Piped water on premises | B31: Yes | C31: N/A | D31: N/A | E31: N/A | F31: N/A | G31: N/A | H31: N/A | I31: N/A | J31: N/A | K31: N/A | L31: N/A | M31: N/A | N31: N/A | O31: N/A | P31: N/A | Q31: N/A | BA31: Piped water on premises | BB31: Yes | BC31: N/A | BD31: N/A | BE31: N/A | BF31: N/A | BG31: N/A | BH31: N/A | BI31: N/A | BJ31: N/A | BK31: N/A | BL31: N/A | BM31: N/A | BN31: N/A | BO31: N/A | BP31: N/A | BQ31: N/A
B32: No | C32: N/A | D32: N/A | E32: N/A | F32: N/A | G32: N/A | H32: N/A | I32: N/A | J32: N/A | K32: N/A | L32: N/A | M32: N/A | N32: N/A | O32: N/A | P32: N/A | Q32: N/A | BB32: No | BC32: N/A | BD32: N/A | BE32: N/A | BF32: N/A | BG32: N/A | BH32: N/A | BI32: N/A | BJ32: N/A | BK32: N/A | BL32: N/A | BM32: N/A | BN32: N/A | BO32: N/A | BP32: N/A | BQ32: N/A
A33: Piped water into dwelling | B33: Yes | C33: N/A | D33: N/A | E33: N/A | F33: N/A | G33: N/A | H33: N/A | I33: N/A | J33: N/A | K33: N/A | L33: N/A | M33: N/A | N33: N/A | O33: N/A | P33: N/A | Q33: N/A | BA33: Piped water into dwelling | BB33: Yes | BC33: N/A | BD33: N/A | BE33: N/A | BF33: N/A | BG33: N/A | BH33: N/A | BI33: N/A | BJ33: N/A | BK33: N/A | BL33: N/A | BM33: N/A | BN33: N/A | BO33: N/A | BP33: N/A | BQ33: N/A
B34: No | C34: N/A | D34: N/A | E34: N/A | F34: N/A | G34: N/A | H34: N/A | I34: N/A | J34: N/A | K34: N/A | L34: N/A | M34: N/A | N34: N/A | O34: N/A | P34: N/A | Q34: N/A | BB34: No | BC34: N/A | BD34: N/A | BE34: N/A | BF34: N/A | BG34: N/A | BH34: N/A | BI34: N/A | BJ34: N/A | BK34: N/A | BL34: N/A | BM34: N/A | BN34: N/A | BO34: N/A | BP34: N/A | BQ34: N/A
A35: Water source on premises | B35: Yes | C35: N/A | D35: N/A | E35: N/A | F35: N/A | G35: N/A | H35: N/A | I35: N/A | J35: N/A | K35: N/A | L35: N/A | M35: N/A | N35: N/A | O35: N/A | P35: N/A | Q35: N/A | BA35: Water source on premises | BB35: Yes | BC35: N/A | BD35: N/A | BE35: N/A | BF35: N/A | BG35: N/A | BH35: N/A | BI35: N/A | BJ35: N/A | BK35: N/A | BL35: N/A | BM35: N/A | BN35: N/A | BO35: N/A | BP35: N/A | BQ35: N/A
B36: No | C36: N/A | D36: N/A | E36: N/A | F36: N/A | G36: N/A | H36: N/A | I36: N/A | J36: N/A | K36: N/A | L36: N/A | M36: N/A | N36: N/A | O36: N/A | P36: N/A | Q36: N/A | BB36: No | BC36: N/A | BD36: N/A | BE36: N/A | BF36: N/A | BG36: N/A | BH36: N/A | BI36: N/A | BJ36: N/A | BK36: N/A | BL36: N/A | BM36: N/A | BN36: N/A | BO36: N/A | BP36: N/A | BQ36: N/A
A37: Improved Water source on premises | B37: Yes | C37: N/A | D37: N/A | E37: N/A | F37: N/A | G37: N/A | H37: N/A | I37: N/A | J37: N/A | K37: N/A | L37: N/A | M37: N/A | N37: N/A | O37: N/A | P37: N/A | Q37: N/A | BA37: Improved water source on premises | BB37: Yes | BC37: N/A | BD37: N/A | BE37: N/A | BF37: N/A | BG37: N/A | BH37: N/A | BI37: N/A | BJ37: N/A | BK37: N/A | BL37: N/A | BM37: N/A | BN37: N/A | BO37: N/A | BP37: N/A | BQ37: N/A
B38: No | C38: N/A | D38: N/A | E38: N/A | F38: N/A | G38: N/A | H38: N/A | I38: N/A | J38: N/A | K38: N/A | L38: N/A | M38: N/A | N38: N/A | O38: N/A | P38: N/A | Q38: N/A | BB38: No | BC38: N/A | BD38: N/A | BE38: N/A | BF38: N/A | BG38: N/A | BH38: N/A | BI38: N/A | BJ38: N/A | BK38: N/A | BL38: N/A | BM38: N/A | BN38: N/A | BO38: N/A | BP38: N/A | BQ38: N/A
A39: Piped water on premises available when needed | B39: Yes | C39: N/A | D39: N/A | E39: N/A | F39: N/A | G39: N/A | H39: N/A | I39: N/A | J39: N/A | K39: N/A | L39: N/A | M39: N/A | N39: N/A | O39: N/A | P39: N/A | Q39: N/A | BA39: Piped water on premises available when needed | BB39: Yes | BC39: N/A | BD39: N/A | BE39: N/A | BF39: N/A | BG39: N/A | BH39: N/A | BI39: N/A | BJ39: N/A | BK39: N/A | BL39: N/A | BM39: N/A | BN39: N/A | BO39: N/A | BP39: N/A | BQ39: N/A
B40: No | C40: N/A | D40: N/A | E40: N/A | F40: N/A | G40: N/A | H40: N/A | I40: N/A | J40: N/A | K40: N/A | L40: N/A | M40: N/A | N40: N/A | O40: N/A | P40: N/A | Q40: N/A | BB40: No | BC40: N/A | BD40: N/A | BE40: N/A | BF40: N/A | BG40: N/A | BH40: N/A | BI40: N/A | BJ40: N/A | BK40: N/A | BL40: N/A | BM40: N/A | BN40: N/A | BO40: N/A | BP40: N/A | BQ40: N/A
A41: Water point at more than 30 minutes | B41: Yes | C41: N/A | D41: N/A | E41: N/A | F41: N/A | G41: N/A | H41: N/A | I41: N/A | J41: N/A | K41: N/A | L41: N/A | M41: N/A | N41: N/A | O41: N/A | P41: N/A | Q41: N/A | BA41: Water point at more than 30 minutes | BB41: Yes | BC41: N/A | BD41: N/A | BE41: N/A | BF41: N/A | BG41: N/A | BH41: N/A | BI41: N/A | BJ41: N/A | BK41: N/A | BL41: N/A | BM41: N/A | BN41: N/A | BO41: N/A | BP41: N/A | BQ41: N/A
B42: No | C42: N/A | D42: N/A | E42: N/A | F42: N/A | G42: N/A | H42: N/A | I42: N/A | J42: N/A | K42: N/A | L42: N/A | M42: N/A | N42: N/A | O42: N/A | P42: N/A | Q42: N/A | BB42: No | BC42: N/A | BD42: N/A | BE42: N/A | BF42: N/A | BG42: N/A | BH42: N/A | BI42: N/A | BJ42: N/A | BK42: N/A | BL42: N/A | BM42: N/A | BN42: N/A | BO42: N/A | BP42: N/A | BQ42: N/A
A43: Water source available when needed | B43: Yes | C43: N/A | D43: N/A | E43: N/A | F43: N/A | G43: N/A | H43: N/A | I43: N/A | J43: N/A | K43: N/A | L43: N/A | M43: N/A | N43: N/A | O43: N/A | P43: N/A | Q43: N/A | BA43: Water source available when needed | BB43: Yes | BC43: N/A | BD43: N/A | BE43: N/A | BF43: N/A | BG43: N/A | BH43: N/A | BI43: N/A | BJ43: N/A | BK43: N/A | BL43: N/A | BM43: N/A | BN43: N/A | BO43: N/A | BP43: N/A | BQ43: N/A
B44: No | C44: N/A | D44: N/A | E44: N/A | F44: N/A | G44: N/A | H44: N/A | I44: N/A | J44: N/A | K44: N/A | L44: N/A | M44: N/A | N44: N/A | O44: N/A | P44: N/A | Q44: N/A | BB44: No | BC44: N/A | BD44: N/A | BE44: N/A | BF44: N/A | BG44: N/A | BH44: N/A | BI44: N/A | BJ44: N/A | BK44: N/A | BL44: N/A | BM44: N/A | BN44: N/A | BO44: N/A | BP44: N/A | BQ44: N/A
A45: Improved water source available when needed | B45: Yes | C45: N/A | D45: N/A | E45: N/A | F45: N/A | G45: N/A | H45: N/A | I45: N/A | J45: N/A | K45: N/A | L45: N/A | M45: N/A | N45: N/A | O45: N/A | P45: N/A | Q45: N/A | BA45: Improved water source available when needed | BB45: Yes | BC45: N/A | BD45: N/A | BE45: N/A | BF45: N/A | BG45: N/A | BH45: N/A | BI45: N/A | BJ45: N/A | BK45: N/A | BL45: N/A | BM45: N/A | BN45: N/A | BO45: N/A | BP45: N/A | BQ45: N/A
B46: No | C46: N/A | D46: N/A | E46: N/A | F46: N/A | G46: N/A | H46: N/A | I46: N/A | J46: N/A | K46: N/A | L46: N/A | M46: N/A | N46: N/A | O46: N/A | P46: N/A | Q46: N/A | BB46: No | BC46: N/A | BD46: N/A | BE46: N/A | BF46: N/A | BG46: N/A | BH46: N/A | BI46: N/A | BJ46: N/A | BK46: N/A | BL46: N/A | BM46: N/A | BN46: N/A | BO46: N/A | BP46: N/A | BQ46: N/A
A47: Microbiological quality at point of collection | B47: Not contaminated (No E. coli in 100 mL) | C47: N/A | D47: N/A | E47: N/A | F47: N/A | G47: N/A | H47: N/A | I47: N/A | J47: N/A | K47: N/A | L47: N/A | M47: N/A | N47: N/A | O47: N/A | P47: N/A | Q47: N/A | BA47: Microbiological quality at point of collection | BB47: Not contaminated (No E. coli in 100 mL) | BC47: N/A | BD47: N/A | BE47: N/A | BF47: N/A | BG47: N/A | BH47: N/A | BI47: N/A | BJ47: N/A | BK47: N/A | BL47: N/A | BM47: N/A | BN47: N/A | BO47: N/A | BP47: N/A | BQ47: N/A
B48: Contaminated (E. coli detected in 100 mL) | C48: N/A | D48: N/A | E48: N/A | F48: N/A | G48: N/A | H48: N/A | I48: N/A | J48: N/A | K48: N/A | L48: N/A | M48: N/A | N48: N/A | O48: N/A | P48: N/A | Q48: N/A | BB48: Contaminated (E. coli detected in 100 mL) | BC48: N/A | BD48: N/A | BE48: N/A | BF48: N/A | BG48: N/A | BH48: N/A | BI48: N/A | BJ48: N/A | BK48: N/A | BL48: N/A | BM48: N/A | BN48: N/A | BO48: N/A | BP48: N/A | BQ48: N/A
B49: Highly contaminated (>100 CFU/100 mL) | C49: N/A | D49: N/A | E49: N/A | F49: N/A | G49: N/A | H49: N/A | I49: N/A | J49: N/A | K49: N/A | L49: N/A | M49: N/A | N49: N/A | O49: N/A | P49: N/A | Q49: N/A | BB49: Highly contaminated (>100 CFU/100 mL) | BC49: N/A | BD49: N/A | BE49: N/A | BF49: N/A | BG49: N/A | BH49: N/A | BI49: N/A | BJ49: N/A | BK49: N/A | BL49: N/A | BM49: N/A | BN49: N/A | BO49: N/A | BP49: N/A | BQ49: N/A
A50: Microbiological quality of improved water sources at point of collection | B50: Not contaminated (No E. coli in 100 mL) | C50: N/A | D50: N/A | E50: N/A | F50: N/A | G50: N/A | H50: N/A | I50: N/A | J50: N/A | K50: N/A | L50: N/A | M50: N/A | N50: N/A | O50: N/A | P50: N/A | Q50: N/A | BA50: Microbiological quality of improved water sources at point of collection | BB50: Not contaminated (No E. coli in 100 mL) | BC50: N/A | BD50: N/A | BE50: N/A | BF50: N/A | BG50: N/A | BH50: N/A | BI50: N/A | BJ50: N/A | BK50: N/A | BL50: N/A | BM50: N/A | BN50: N/A | BO50: N/A | BP50: N/A | BQ50: N/A
B51: Contaminated (E. coli detected in 100 mL) | C51: N/A | D51: N/A | E51: N/A | F51: N/A | G51: N/A | H51: N/A | I51: N/A | J51: N/A | K51: N/A | L51: N/A | M51: N/A | N51: N/A | O51: N/A | P51: N/A | Q51: N/A | BB51: Contaminated (E. coli detected in 100 mL) | BC51: N/A | BD51: N/A | BE51: N/A | BF51: N/A | BG51: N/A | BH51: N/A | BI51: N/A | BJ51: N/A | BK51: N/A | BL51: N/A | BM51: N/A | BN51: N/A | BO51: N/A | BP51: N/A | BQ51: N/A
B52: Highly contaminated (>100 CFU/100 mL) | C52: N/A | D52: N/A | E52: N/A | F52: N/A | G52: N/A | H52: N/A | I52: N/A | J52: N/A | K52: N/A | L52: N/A | M52: N/A | N52: N/A | O52: N/A | P52: N/A | Q52: N/A | BB52: Highly contaminated (>100 CFU/100 mL) | BC52: N/A | BD52: N/A | BE52: N/A | BF52: N/A | BG52: N/A | BH52: N/A | BI52: N/A | BJ52: N/A | BK52: N/A | BL52: N/A | BM52: N/A | BN52: N/A | BO52: N/A | BP52: N/A | BQ52: N/A
A53: Microbiological quality of piped on premises at point of collection | B53: Not contaminated (No E. coli in 100 mL) | C53: N/A | D53: N/A | E53: N/A | F53: N/A | G53: N/A | H53: N/A | I53: N/A | J53: N/A | K53: N/A | L53: N/A | M53: N/A | N53: N/A | O53: N/A | P53: N/A | Q53: N/A | BA53: Microbiological quality of piped on premises at point of collection | BB53: Not contaminated (No E. coli in 100 mL) | BC53: N/A | BD53: N/A | BE53: N/A | BF53: N/A | BG53: N/A | BH53: N/A | BI53: N/A | BJ53: N/A | BK53: N/A | BL53: N/A | BM53: N/A | BN53: N/A | BO53: N/A | BP53: N/A | BQ53: N/A
B54: Contaminated (E. coli detected in 100 mL) | C54: N/A | D54: N/A | E54: N/A | F54: N/A | G54: N/A | H54: N/A | I54: N/A | J54: N/A | K54: N/A | L54: N/A | M54: N/A | N54: N/A | O54: N/A | P54: N/A | Q54: N/A | BB54: Contaminated (E. coli detected in 100 mL) | BC54: N/A | BD54: N/A | BE54: N/A | BF54: N/A | BG54: N/A | BH54: N/A | BI54: N/A | BJ54: N/A | BK54: N/A | BL54: N/A | BM54: N/A | BN54: N/A | BO54: N/A | BP54: N/A | BQ54: N/A
B55: Highly contaminated (>100 CFU/100 mL) | C55: N/A | D55: N/A | E55: N/A | F55: N/A | G55: N/A | H55: N/A | I55: N/A | J55: N/A | K55: N/A | L55: N/A | M55: N/A | N55: N/A | O55: N/A | P55: N/A | Q55: N/A | BB55: Highly contaminated (>100 CFU/100 mL) | BC55: N/A | BD55: N/A | BE55: N/A | BF55: N/A | BG55: N/A | BH55: N/A | BI55: N/A | BJ55: N/A | BK55: N/A | BL55: N/A | BM55: N/A | BN55: N/A | BO55: N/A | BP55: N/A | BQ55: N/A
C56: NATIONAL wealth index quintile | H56: URBAN wealth index quintile | M56: RURAL wealth index quintile | BA56: Raw numbers of respondents: | BB56: Use of drinking water sources | BC56: NATIONAL wealth index quintile | BH56: URBAN wealth index quintile | BM56: RURAL wealth index quintile
A57: Percentage based on weighted population | C57: Poorest | D57: Poor | E57: Middle | F57: Rich | G57: Richest | H57: Poorest | I57: Poor | J57: Middle | K57: Rich | L57: Richest | M57: Poorest | N57: Poor | O57: Middle | P57: Rich | Q57: Richest | BA57: Water data, raw numbers (weighted) | BC57: Poorest | BD57: Poor | BE57: Middle | BF57: Rich | BG57: Richest | BH57: Poorest | BI57: Poor | BJ57: Middle | BK57: Rich | BL57: Richest | BM57: Poorest | BN57: Poor | BO57: Middle | BP57: Rich | BQ57: Richest
A58: Main source of Water | B58: Private piped | C58: 9.166666667 | D58: 20 | E58: 25 | F58: 24.79338843 | G58: 22.68907563 | H58: 16.66666667 | I58: 25.58139535 | J58: 32.55813953 | K58: 30.23255814 | L58: 32.55813953 | M58: 6.493506494 | N58: 16.88311688 | O58: 25.64102564 | P58: 14.28571429 | Q58: 18.18181818
B59: Private Not Piped | C59: 3.333333333 | D59: 2.5 | E59: 3.333333333 | F59: 4.132231405 | G59: 0 | H59: 2.380952381 | I59: 0 | J59: 2.325581395 | K59: 0 | L59: 0 | M59: 3.896103896 | N59: 2.597402597 | O59: 5.128205128 | P59: 6.493506494 | Q59: 0
B60: Public Piped | C60: 9.166666667 | D60: 40.83333333 | E60: 55 | F60: 55.37190083 | G60: 74.78991597 | H60: 21.42857143 | I60: 44.18604651 | J60: 60.46511628 | K60: 62.79069767 | L60: 65.11627907 | M60: 6.493506494 | N60: 35.06493506 | O60: 48.71794872 | P60: 58.44155844 | Q60: 75.32467532
B61: Public Yard | C61: 10.83333333 | D61: 9.166666667 | E61: 4.166666667 | F61: 5.785123967 | G61: 1.680672269 | H61: 14.28571429 | I61: 9.302325581 | J61: 2.325581395 | K61: 0 | L61: 2.325581395 | M61: 7.792207792 | N61: 10.38961039 | O61: 5.128205128 | P61: 6.493506494 | Q61: 3.896103896
B62: Public Standpipe | C62: 54.16666667 | D62: 24.16666667 | E62: 6.666666667 | F62: 7.438016529 | G62: 0.8403361345 | H62: 38.0952381 | I62: 16.27906977 | J62: 2.325581395 | K62: 6.976744186 | L62: 0 | M62: 59.74025974 | N62: 29.87012987 | O62: 8.974358974 | P62: 9.090909091 | Q62: 2.597402597
B63: Public Well-Tank | C63: 1.666666667 | D63: 0 | E63: 2.5 | F63: 1.652892562 | G63: 0 | H63: 0 | I63: 0 | J63: 0 | K63: 0 | L63: 0 | M63: 2.597402597 | N63: 0 | O63: 3.846153846 | P63: 2.597402597 | Q63: 0
B64: Other | C64: 11.66666667 | D64: 3.333333333 | E64: 3.333333333 | F64: 0.826446281 | G64: 0 | H64: 7.142857143 | I64: 4.651162791 | J64: 0 | K64: 0 | L64: 0 | M64: 12.98701299 | N64: 5.194805195 | O64: 2.564102564 | P64: 2.597402597 | Q64: 0
A108: =A1026 -> Saint Lucia
A109: =A1034 -> 2005
A110: Use of sanitation facilities
A111: by wealth quintile and sub-national region
A112: Notes:
A113: WHO/UNICEF JMP customised wealth index excludes water,
A114: sanitation and hygiene assets.
A115: Survey used for analysis: | B115: =A1025 -> 0
A116: =B1030 -> 0
A117: =B1029 -> 0
A120: Use of sanitation facilities | C120: NATIONAL wealth index quintile | H120: URBAN wealth index quintile | M120: RURAL wealth index quintile | BA120: Raw numbers of respondents: | BB120: Use of sanitation facilities | BC120: NATIONAL wealth index quintile | BH120: URBAN wealth index quintile | BM120: RURAL wealth index quintile
A121: Weighted percentage (used in graphs) | C121: Poorest | D121: Poor | E121: Middle | F121: Rich | G121: Richest | H121: Poorest | I121: Poor | J121: Middle | K121: Rich | L121: Richest | M121: Poorest | N121: Poor | O121: Middle | P121: Rich | Q121: Richest | BA121: Sanitation data, raw numbers (weighted) | BC121: Poorest | BD121: Poor | BE121: Middle | BF121: Rich | BG121: Richest | BH121: Poorest | BI121: Poor | BJ121: Middle | BK121: Rich | BL121: Richest | BM121: Poorest | BN121: Poor | BO121: Middle | BP121: Rich | BQ121: Richest
A122: Sanitation | B122: Improved | C122: =C153+C154+C156+C155*MICS12!C130/100 -> 70.83333333 | D122: =D153+D154+D156+D155*MICS12!D130/100 -> 88.53979572 | E122: =E153+E154+E156+E155*MICS12!E130/100 -> 94.16666667 | F122: =F153+F154+F156+F155*MICS12!F130/100 -> 95.8677686 | G122: =G153+G154+G156+G155*MICS12!G130/100 -> 100 | H122: =H153+H154+H156+H155*MICS12!H130/100 -> 64.28571429 | I122: =I153+I154+I156+I155*MICS12!I130/100 -> 88.37209302 | J122: =J153+J154+J156+J155*MICS12!J130/100 -> 95.34883721 | K122: =K153+K154+K156+K155*MICS12!K130/100 -> 100 | L122: =L153+L154+L156+L155*MICS12!L130/100 -> 100 | M122: =M153+M154+M156+M155*MICS12!M130/100 -> 70.12987013 | N122: =N153+N154+N156+N155*MICS12!N130/100 -> 94.00765168 | O122: =O153+O154+O156+O155*MICS12!O130/100 -> 93.58974359 | P122: =P153+P154+P156+P155*MICS12!P130/100 -> 93.50649351 | Q122: =Q153+Q154+Q156+Q155*MICS12!Q130/100 -> 98.7012987 | BA122: Sanitation | BB122: Improved | BC122: N/A | BD122: N/A | BE122: N/A | BF122: N/A | BG122: N/A | BH122: N/A | BI122: N/A | BJ122: N/A | BK122: N/A | BL122: N/A | BM122: N/A | BN122: N/A | BO122: N/A | BP122: N/A | BQ122: N/A
B123: Not Improved | C123: =100-C122 -> 29.16666667 | D123: =100-D122 -> 11.46020428 | E123: 5.833333333 | F123: 4.132231405 | G123: 0 | H123: 35.71428571 | I123: 11.62790698 | J123: 4.651162791 | K123: 0 | L123: 0 | M123: 29.87012987 | N123: 5.992348317 | O123: 6.41025641 | P123: 6.493506494 | Q123: 1.298701299 | BB123: Not Improved | BC123: N/A | BD123: N/A | BE123: N/A | BF123: N/A | BG123: N/A | BH123: N/A | BI123: N/A | BJ123: N/A | BK123: N/A | BL123: N/A | BM123: N/A | BN123: N/A | BO123: N/A | BP123: N/A | BQ123: N/A
A124: Sanitation ladder | B124: Basic | C124: =C122*MICS12!C129/100 -> 55.328983 | D124: =D122*MICS12!D129/100 -> 78.05579393 | E124: =E122*MICS12!E129/100 -> 90.01746072 | F124: =F122*MICS12!F129/100 -> 93.49479948 | G124: =G122*MICS12!G129/100 -> 98.96370209 | H124: =H122*MICS12!H129/100 -> 46.02631966 | I124: =I122*MICS12!I129/100 -> 80.26865604 | J124: =J122*MICS12!J129/100 -> 89.21452695 | K124: =K122*MICS12!K129/100 -> 95.44308292 | L124: =L122*MICS12!L129/100 -> 97.90955351 | M124: =M122*MICS12!M129/100 -> 55.89711074 | N124: =N122*MICS12!N129/100 -> 81.81565117 | O124: =O122*MICS12!O129/100 -> 90.80134223 | P124: =P122*MICS12!P129/100 -> 91.01552319 | Q124: =Q122*MICS12!Q129/100 -> 97.92973484 | BA124: Sanitation ladder | BB124: Basic | BC124: N/A | BD124: N/A | BE124: N/A | BF124: N/A | BG124: N/A | BH124: N/A | BI124: N/A | BJ124: N/A | BK124: N/A | BL124: N/A | BM124: N/A | BN124: N/A | BO124: N/A | BP124: N/A | BQ124: N/A
B125: Limited | C125: =C122*MICS12!C128/100 -> 15.50435033 | D125: =D122*MICS12!D128/100 -> 10.48400179 | E125: =E122*MICS12!E128/100 -> 4.149205947 | F125: =F122*MICS12!F128/100 -> 2.372969117 | G125: =G122*MICS12!G128/100 -> 1.036297915 | H125: =H122*MICS12!H128/100 -> 18.25939463 | I125: =I122*MICS12!I128/100 -> 8.103436981 | J125: =J122*MICS12!J128/100 -> 6.134310263 | K125: =K122*MICS12!K128/100 -> 4.556917082 | L125: =L122*MICS12!L128/100 -> 2.090446494 | M125: =M122*MICS12!M128/100 -> 14.23275939 | N125: =N122*MICS12!N128/100 -> 12.19200051 | O125: =O122*MICS12!O128/100 -> 2.788401364 | P125: =P122*MICS12!P128/100 -> 2.490970313 | Q125: =Q122*MICS12!Q128/100 -> 0.7715638616 | BB125: Limited | BC125: N/A | BD125: N/A | BE125: N/A | BF125: N/A | BG125: N/A | BH125: N/A | BI125: N/A | BJ125: N/A | BK125: N/A | BL125: N/A | BM125: N/A | BN125: N/A | BO125: N/A | BP125: N/A | BQ125: N/A
B126: Unimproved | C126: =100-(C124+C125+C127) -> 1.666666667 | D126: =100-(D124+D125+D127) -> 3.126870948 | E126: 0.8333333333 | F126: 0.826446281 | G126: 0 | H126: 4.761904762 | I126: 4.651162791 | J126: 0 | K126: 0 | L126: 0 | M126: 1.298701299 | N126: 0.7975431217 | O126: 1.282051282 | P126: 1.298701299 | Q126: 0 | BB126: Unimproved | BC126: N/A | BD126: N/A | BE126: N/A | BF126: N/A | BG126: N/A | BH126: N/A | BI126: N/A | BJ126: N/A | BK126: N/A | BL126: N/A | BM126: N/A | BN126: N/A | BO126: N/A | BP126: N/A | BQ126: N/A
B127: Open defecation | C127: =C157 -> 27.5 | D127: =D157 -> 8.333333333 | E127: 5 | F127: 3.305785124 | G127: 0 | H127: 30.95238095 | I127: 6.976744186 | J127: 4.651162791 | K127: 0 | L127: 0 | M127: 28.57142857 | N127: 5.194805195 | O127: 5.128205128 | P127: 5.194805195 | Q127: 1.298701299 | BB127: Open defecation | BC127: N/A | BD127: N/A | BE127: N/A | BF127: N/A | BG127: N/A | BH127: N/A | BI127: N/A | BJ127: N/A | BK127: N/A | BL127: N/A | BM127: N/A | BN127: N/A | BO127: N/A | BP127: N/A | BQ127: N/A
A128: Shared among Improved Sanitation | B128: Yes | C128: N/A | D128: N/A | E128: N/A | F128: N/A | G128: N/A | H128: N/A | I128: N/A | J128: N/A | K128: N/A | L128: N/A | M128: N/A | N128: N/A | O128: N/A | P128: N/A | Q128: N/A | BA128: Shared among improved sanitation facilities | BB128: Yes | BC128: N/A | BD128: N/A | BE128: N/A | BF128: N/A | BG128: N/A | BH128: N/A | BI128: N/A | BJ128: N/A | BK128: N/A | BL128: N/A | BM128: N/A | BN128: N/A | BO128: N/A | BP128: N/A | BQ128: N/A
B129: No | C129: N/A | D129: N/A | E129: N/A | F129: N/A | G129: N/A | H129: N/A | I129: N/A | J129: N/A | K129: N/A | L129: N/A | M129: N/A | N129: N/A | O129: N/A | P129: N/A | Q129: N/A | BB129: No | BC129: N/A | BD129: N/A | BE129: N/A | BF129: N/A | BG129: N/A | BH129: N/A | BI129: N/A | BJ129: N/A | BK129: N/A | BL129: N/A | BM129: N/A | BN129: N/A | BO129: N/A | BP129: N/A | BQ129: N/A
A130: Manually calculated ratios | B130: Improved latrines
B131: Other
B132: Other
C133: NATIONAL wealth index quintile | H133: URBAN wealth index quintile | M133: RURAL wealth index quintile | BA133: Raw numbers of respondents: | BB133: Use of sanitation facilities | BC133: NATIONAL wealth index quintile | BH133: URBAN wealth index quintile | BM133: RURAL wealth index quintile
A134: Percentage based on weighted population | C134: Poorest | D134: Poor | E134: Middle | F134: Rich | G134: Richest | H134: Poorest | I134: Poor | J134: Middle | K134: Rich | L134: Richest | M134: Poorest | N134: Poor | O134: Middle | P134: Rich | Q134: Richest | BA134: Sanitation data, raw numbers (weighted) | BC134: Poorest | BD134: Poor | BE134: Middle | BF134: Rich | BG134: Richest | BH134: Poorest | BI134: Poor | BJ134: Middle | BK134: Rich | BL134: Richest | BM134: Poorest | BN134: Poor | BO134: Middle | BP134: Rich | BQ134: Richest
A135: Sanitation type | B135: Sewer connection | C135: 0.8333333333 | D135: 4.166666667 | E135: 9.166666667 | F135: 7.438016529 | G135: 12.60504202 | H135: 2.380952381 | I135: 4.651162791 | J135: 18.60465116 | K135: 16.27906977 | L135: 16.27906977 | M135: 1.298701299 | N135: 1.298701299 | O135: 3.846153846 | P135: 5.194805195 | Q135: 9.090909091 | BA135: Sanitation type | BB135: Sewer connection | BC135: N/A | BD135: N/A | BE135: N/A | BF135: N/A | BG135: N/A | BH135: N/A | BI135: N/A | BJ135: N/A | BK135: N/A | BL135: N/A | BM135: N/A | BN135: N/A | BO135: N/A | BP135: N/A | BQ135: N/A
B136: Septic tank connection | C136: 5.833333333 | D136: 10.83333333 | E136: 33.33333333 | F136: 57.85123967 | G136: 82.35294118 | H136: 11.9047619 | I136: 13.95348837 | J136: 39.53488372 | K136: 74.41860465 | L136: 83.72093023 | M136: 5.194805195 | N136: 6.493506494 | O136: 29.48717949 | P136: 48.05194805 | Q136: 81.81818182 | BB136: Septic tank connection | BC136: N/A | BD136: N/A | BE136: N/A | BF136: N/A | BG136: N/A | BH136: N/A | BI136: N/A | BJ136: N/A | BK136: N/A | BL136: N/A | BM136: N/A | BN136: N/A | BO136: N/A | BP136: N/A | BQ136: N/A
B137: Improved latrines | C137: N/A | D137: N/A | E137: N/A | F137: N/A | G137: N/A | H137: N/A | I137: N/A | J137: N/A | K137: N/A | L137: N/A | M137: N/A | N137: N/A | O137: N/A | P137: N/A | Q137: N/A | BB137: Improved latrines | BC137: N/A | BD137: N/A | BE137: N/A | BF137: N/A | BG137: N/A | BH137: N/A | BI137: N/A | BJ137: N/A | BK137: N/A | BL137: N/A | BM137: N/A | BN137: N/A | BO137: N/A | BP137: N/A | BQ137: N/A
B138: Unimproved facilities | C138: N/A | D138: N/A | E138: N/A | F138: N/A | G138: N/A | H138: N/A | I138: N/A | J138: N/A | K138: N/A | L138: N/A | M138: N/A | N138: N/A | O138: N/A | P138: N/A | Q138: N/A | BB138: Unimproved facilities | BC138: N/A | BD138: N/A | BE138: N/A | BF138: N/A | BG138: N/A | BH138: N/A | BI138: N/A | BJ138: N/A | BK138: N/A | BL138: N/A | BM138: N/A | BN138: N/A | BO138: N/A | BP138: N/A | BQ138: N/A
B139: Open defecation | C139: 27.5 | D139: 8.333333333 | E139: 5 | F139: 3.305785124 | G139: 0 | H139: 30.95238095 | I139: 6.976744186 | J139: 4.651162791 | K139: 0 | L139: 0 | M139: 28.57142857 | N139: 5.194805195 | O139: 5.128205128 | P139: 5.194805195 | Q139: 1.298701299 | BB139: Open defecation | BC139: N/A | BD139: N/A | BE139: N/A | BF139: N/A | BG139: N/A | BH139: N/A | BI139: N/A | BJ139: N/A | BK139: N/A | BL139: N/A | BM139: N/A | BN139: N/A | BO139: N/A | BP139: N/A | BQ139: N/A
A140: Septic tank emptying practices | B140: Not emptied/treated and disposed in situ | C140: N/A | D140: N/A | E140: N/A | F140: N/A | G140: N/A | H140: N/A | I140: N/A | J140: N/A | K140: N/A | L140: N/A | M140: N/A | N140: N/A | O140: N/A | P140: N/A | Q140: N/A | BA140: Septic tank emptying practices | BB140: Not emptied/treated and disposed in situ | BC140: N/A | BD140: N/A | BE140: N/A | BF140: N/A | BG140: N/A | BH140: N/A | BI140: N/A | BJ140: N/A | BK140: N/A | BL140: N/A | BM140: N/A | BN140: N/A | BO140: N/A | BP140: N/A | BQ140: N/A
B141: Emptied and buried on site | C141: N/A | D141: N/A | E141: N/A | F141: N/A | G141: N/A | H141: N/A | I141: N/A | J141: N/A | K141: N/A | L141: N/A | M141: N/A | N141: N/A | O141: N/A | P141: N/A | Q141: N/A | BB141: Emptied and buried on site | BC141: N/A | BD141: N/A | BE141: N/A | BF141: N/A | BG141: N/A | BH141: N/A | BI141: N/A | BJ141: N/A | BK141: N/A | BL141: N/A | BM141: N/A | BN141: N/A | BO141: N/A | BP141: N/A | BQ141: N/A
B142: Emptied and discharged locally | C142: N/A | D142: N/A | E142: N/A | F142: N/A | G142: N/A | H142: N/A | I142: N/A | J142: N/A | K142: N/A | L142: N/A | M142: N/A | N142: N/A | O142: N/A | P142: N/A | Q142: N/A | BB142: Emptied and discharged locally | BC142: N/A | BD142: N/A | BE142: N/A | BF142: N/A | BG142: N/A | BH142: N/A | BI142: N/A | BJ142: N/A | BK142: N/A | BL142: N/A | BM142: N/A | BN142: N/A | BO142: N/A | BP142: N/A | BQ142: N/A
B143: Emptied and removed offsite | C143: N/A | D143: N/A | E143: N/A | F143: N/A | G143: N/A | H143: N/A | I143: N/A | J143: N/A | K143: N/A | L143: N/A | M143: N/A | N143: N/A | O143: N/A | P143: N/A | Q143: N/A | BB143: Emptied and removed offsite | BC143: N/A | BD143: N/A | BE143: N/A | BF143: N/A | BG143: N/A | BH143: N/A | BI143: N/A | BJ143: N/A | BK143: N/A | BL143: N/A | BM143: N/A | BN143: N/A | BO143: N/A | BP143: N/A | BQ143: N/A
A144: Latrine emptying practices | B144: Not emptied/treated and disposed in situ | C144: N/A | D144: N/A | E144: N/A | F144: N/A | G144: N/A | H144: N/A | I144: N/A | J144: N/A | K144: N/A | L144: N/A | M144: N/A | N144: N/A | O144: N/A | P144: N/A | Q144: N/A | BA144: Latrine emptying practices | BB144: Not emptied/treated and disposed in situ | BC144: N/A | BD144: N/A | BE144: N/A | BF144: N/A | BG144: N/A | BH144: N/A | BI144: N/A | BJ144: N/A | BK144: N/A | BL144: N/A | BM144: N/A | BN144: N/A | BO144: N/A | BP144: N/A | BQ144: N/A
B145: Emptied and buried on site | C145: N/A | D145: N/A | E145: N/A | F145: N/A | G145: N/A | H145: N/A | I145: N/A | J145: N/A | K145: N/A | L145: N/A | M145: N/A | N145: N/A | O145: N/A | P145: N/A | Q145: N/A | BB145: Emptied and buried on site | BC145: N/A | BD145: N/A | BE145: N/A | BF145: N/A | BG145: N/A | BH145: N/A | BI145: N/A | BJ145: N/A | BK145: N/A | BL145: N/A | BM145: N/A | BN145: N/A | BO145: N/A | BP145: N/A | BQ145: N/A
B146: Emptied and discharged locally | C146: N/A | D146: N/A | E146: N/A | F146: N/A | G146: N/A | H146: N/A | I146: N/A | J146: N/A | K146: N/A | L146: N/A | M146: N/A | N146: N/A | O146: N/A | P146: N/A | Q146: N/A | BB146: Emptied and discharged locally | BC146: N/A | BD146: N/A | BE146: N/A | BF146: N/A | BG146: N/A | BH146: N/A | BI146: N/A | BJ146: N/A | BK146: N/A | BL146: N/A | BM146: N/A | BN146: N/A | BO146: N/A | BP146: N/A | BQ146: N/A
B147: Emptied and removed offsite | C147: N/A | D147: N/A | E147: N/A | F147: N/A | G147: N/A | H147: N/A | I147: N/A | J147: N/A | K147: N/A | L147: N/A | M147: N/A | N147: N/A | O147: N/A | P147: N/A | Q147: N/A | BB147: Emptied and removed offsite | BC147: N/A | BD147: N/A | BE147: N/A | BF147: N/A | BG147: N/A | BH147: N/A | BI147: N/A | BJ147: N/A | BK147: N/A | BL147: N/A | BM147: N/A | BN147: N/A | BO147: N/A | BP147: N/A | BQ147: N/A
A148: Shared among improved sanitation facilities | B148: Yes | C148: N/A | D148: N/A | E148: N/A | F148: N/A | G148: N/A | H148: N/A | I148: N/A | J148: N/A | K148: N/A | L148: N/A | M148: N/A | N148: N/A | O148: N/A | P148: N/A | Q148: N/A | BA148: Shared among improved sanitation facilities | BB148: Yes | BC148: N/A | BD148: N/A | BE148: N/A | BF148: N/A | BG148: N/A | BH148: N/A | BI148: N/A | BJ148: N/A | BK148: N/A | BL148: N/A | BM148: N/A | BN148: N/A | BO148: N/A | BP148: N/A | BQ148: N/A
B149: No | C149: N/A | D149: N/A | E149: N/A | F149: N/A | G149: N/A | H149: N/A | I149: N/A | J149: N/A | K149: N/A | L149: N/A | M149: N/A | N149: N/A | O149: N/A | P149: N/A | Q149: N/A | BB149: No | BC149: N/A | BD149: N/A | BE149: N/A | BF149: N/A | BG149: N/A | BH149: N/A | BI149: N/A | BJ149: N/A | BK149: N/A | BL149: N/A | BM149: N/A | BN149: N/A | BO149: N/A | BP149: N/A | BQ149: N/A
B150: DK/missing | C150: N/A | D150: N/A | E150: N/A | F150: N/A | G150: N/A | H150: N/A | I150: N/A | J150: N/A | K150: N/A | L150: N/A | M150: N/A | N150: N/A | O150: N/A | P150: N/A | Q150: N/A | BB150: DK/missing | BC150: N/A | BD150: N/A | BE150: N/A | BF150: N/A | BG150: N/A | BH150: N/A | BI150: N/A | BJ150: N/A | BK150: N/A | BL150: N/A | BM150: N/A | BN150: N/A | BO150: N/A | BP150: N/A | BQ150: N/A
A151: Shared among all sanitation facilities | B151: Yes | C151: 65.88235294 | D151: 81.48148148 | E151: 92.92035398 | F151: 92.24137931 | G151: 97.4137931 | H151: 64.28571429 | I151: 87.17948718 | J151: 90.24390244 | K151: 95.34883721 | L151: 95.34883721 | M151: 64.1509434 | N151: 79.45205479 | O151: 91.78082192 | P151: 94.44444444 | Q151: 97.26027397 | BA151: Shared among all sanitation facilities | BB151: Yes | BC151: N/A | BD151: N/A | BE151: N/A | BF151: N/A | BG151: N/A | BH151: N/A | BI151: N/A | BJ151: N/A | BK151: N/A | BL151: N/A | BM151: N/A | BN151: N/A | BO151: N/A | BP151: N/A | BQ151: N/A
B152: No | C152: 34.11764706 | D152: 18.51851852 | E152: 7.079646018 | F152: 7.75862069 | G152: 2.586206897 | H152: 35.71428571 | I152: 12.82051282 | J152: 9.756097561 | K152: 4.651162791 | L152: 4.651162791 | M152: 35.8490566 | N152: 20.54794521 | O152: 8.219178082 | P152: 5.555555556 | Q152: 2.739726027 | BB152: No | BC152: N/A | BD152: N/A | BE152: N/A | BF152: N/A | BG152: N/A | BH152: N/A | BI152: N/A | BJ152: N/A | BK152: N/A | BL152: N/A | BM152: N/A | BN152: N/A | BO152: N/A | BP152: N/A | BQ152: N/A
A153: Type of toilet | B153: WC Sewer | C153: 0.8333333333 | D153: 4.166666667 | E153: 9.166666667 | F153: 7.438016529 | G153: 12.60504202 | H153: 2.380952381 | I153: 4.651162791 | J153: 18.60465116 | K153: 16.27906977 | L153: 16.27906977 | M153: 1.298701299 | N153: 1.298701299 | O153: 3.846153846 | P153: 5.194805195 | Q153: 9.090909091 | BA153: Type of toilet | BB153: WC Sewer | BC153: 1 | BD153: 5 | BE153: 11 | BF153: 9 | BG153: 15 | BH153: 1 | BI153: 2 | BJ153: 8 | BK153: 7 | BL153: 7 | BM153: 1 | BN153: 1 | BO153: 3 | BP153: 4 | BQ153: 7
B154: WC Cesspit | C154: 5.833333333 | D154: 10.83333333 | E154: 33.33333333 | F154: 57.85123967 | G154: 82.35294118 | H154: 11.9047619 | I154: 13.95348837 | J154: 39.53488372 | K154: 74.41860465 | L154: 83.72093023 | M154: 5.194805195 | N154: 6.493506494 | O154: 29.48717949 | P154: 48.05194805 | Q154: 81.81818182 | BB154: WC Cesspit | BC154: 7 | BD154: 13 | BE154: 40 | BF154: 70 | BG154: 98 | BH154: 5 | BI154: 6 | BJ154: 17 | BK154: 32 | BL154: 36 | BM154: 4 | BN154: 5 | BO154: 23 | BP154: 37 | BQ154: 63
B155: Pit Latrine | C155: 62.5 | D155: 73.33333333 | E155: 50.83333333 | F155: 30.5785124 | G155: 5.042016807 | H155: 50 | I155: 67.44186047 | J155: 37.20930233 | K155: 9.302325581 | L155: 0 | M155: 61.03896104 | N155: 87.01298701 | O155: 58.97435897 | P155: 40.25974026 | Q155: 7.792207792 | BB155: Pit Latrine | BC155: 75 | BD155: 88 | BE155: 61 | BF155: 37 | BG155: 6 | BH155: 21 | BI155: 29 | BJ155: 16 | BK155: 4 | BL155: 0 | BM155: 47 | BN155: 67 | BO155: 46 | BP155: 31 | BQ155: 6
B156: Ven. Pit Latrine | C156: 1.666666667 | D156: 0.8333333333 | E156: 0.8333333333 | F156: 0 | G156: 0 | H156: 0 | I156: 2.325581395 | J156: 0 | K156: 0 | L156: 0 | M156: 2.597402597 | N156: 0 | O156: 1.282051282 | P156: 0 | Q156: 0 | BB156: Ven. Pit Latrine | BC156: 2 | BD156: 1 | BE156: 1 | BF156: 0 | BG156: 0 | BH156: 0 | BI156: 1 | BJ156: 0 | BK156: 0 | BL156: 0 | BM156: 2 | BN156: 0 | BO156: 1 | BP156: 0 | BQ156: 0
B157: None | C157: 27.5 | D157: 8.333333333 | E157: 5 | F157: 3.305785124 | G157: 0 | H157: 30.95238095 | I157: 6.976744186 | J157: 4.651162791 | K157: 0 | L157: 0 | M157: 28.57142857 | N157: 5.194805195 | O157: 5.128205128 | P157: 5.194805195 | Q157: 1.298701299 | BB157: None | BC157: 33 | BD157: 10 | BE157: 6 | BF157: 4 | BG157: 0 | BH157: 13 | BI157: 3 | BJ157: 2 | BK157: 0 | BL157: 0 | BM157: 22 | BN157: 4 | BO157: 4 | BP157: 4 | BQ157: 1
B158: Other | C158: 1.666666667 | D158: 2.5 | E158: 0.8333333333 | F158: 0.826446281 | G158: 0 | H158: 4.761904762 | I158: 4.651162791 | J158: 0 | K158: 0 | L158: 0 | M158: 1.298701299 | N158: 0 | O158: 1.282051282 | P158: 1.298701299 | Q158: 0 | BB158: Other | BC158: 2 | BD158: 3 | BE158: 1 | BF158: 1 | BG158: 0 | BH158: 2 | BI158: 2 | BJ158: 0 | BK158: 0 | BL158: 0 | BM158: 1 | BN158: 0 | BO158: 1 | BP158: 1 | BQ158: 0
BB159: Total | BC159: 120 | BD159: 120 | BE159: 120 | BF159: 121 | BG159: 119 | BH159: 42 | BI159: 43 | BJ159: 43 | BK159: 43 | BL159: 43 | BM159: 77 | BN159: 77 | BO159: 78 | BP159: 77 | BQ159: 77
A208: =A1026 -> Saint Lucia
A209: =A1034 -> 2005
A210: Access to hygiene facilities
A211: by wealth quintile and sub-national region
A212: Notes:
A213: WHO/UNICEF JMP customised wealth index excludes water,
A214: sanitation and hygiene assets.
A215: Survey used for analysis: | B215: =A1025 -> 0
A220: Access to handwashing | C220: NATIONAL wealth index quintile | H220: URBAN wealth index quintile | M220: RURAL wealth index quintile | BA220: Raw numbers of respondents: | BB220: Access to handwashing | BC220: NATIONAL wealth index quintile | BH220: URBAN wealth index quintile | BM220: RURAL wealth index quintile
A221: Weighted percentage (used in graphs) | C221: Poorest | D221: Poor | E221: Middle | F221: Rich | G221: Richest | H221: Poorest | I221: Poor | J221: Middle | K221: Rich | L221: Richest | M221: Poorest | N221: Poor | O221: Middle | P221: Rich | Q221: Richest | BA221: Hygiene data, raw numbers (weighted) | BC221: Poorest | BD221: Poor | BE221: Middle | BF221: Rich | BG221: Richest | BH221: Poorest | BI221: Poor | BJ221: Middle | BK221: Rich | BL221: Richest | BM221: Poorest | BN221: Poor | BO221: Middle | BP221: Rich | BQ221: Richest
A222: Hygiene ladder | B222: Basic | C222: N/A | D222: N/A | E222: N/A | F222: N/A | G222: N/A | H222: N/A | I222: N/A | J222: N/A | K222: N/A | L222: N/A | M222: N/A | N222: N/A | O222: N/A | P222: N/A | Q222: N/A | BA222: Hygiene ladder | BB222: Basic | BC222: N/A | BD222: N/A | BE222: N/A | BF222: N/A | BG222: N/A | BH222: N/A | BI222: N/A | BJ222: N/A | BK222: N/A | BL222: N/A | BM222: N/A | BN222: N/A | BO222: N/A | BP222: N/A | BQ222: N/A
B223: Limited | C223: N/A | D223: N/A | E223: N/A | F223: N/A | G223: N/A | H223: N/A | I223: N/A | J223: N/A | K223: N/A | L223: N/A | M223: N/A | N223: N/A | O223: N/A | P223: N/A | Q223: N/A | BB223: Limited | BC223: N/A | BD223: N/A | BE223: N/A | BF223: N/A | BG223: N/A | BH223: N/A | BI223: N/A | BJ223: N/A | BK223: N/A | BL223: N/A | BM223: N/A | BN223: N/A | BO223: N/A | BP223: N/A | BQ223: N/A
B224: No facility | C224: N/A | D224: N/A | E224: N/A | F224: N/A | G224: N/A | H224: N/A | I224: N/A | J224: N/A | K224: N/A | L224: N/A | M224: N/A | N224: N/A | O224: N/A | P224: N/A | Q224: N/A | BB224: No facility | BC224: N/A | BD224: N/A | BE224: N/A | BF224: N/A | BG224: N/A | BH224: N/A | BI224: N/A | BJ224: N/A | BK224: N/A | BL224: N/A | BM224: N/A | BN224: N/A | BO224: N/A | BP224: N/A | BQ224: N/A
BA225: Observed handwashing place | BB225: Fixed | BC225: N/A | BD225: N/A | BE225: N/A | BF225: N/A | BG225: N/A | BH225: N/A | BI225: N/A | BJ225: N/A | BK225: N/A | BL225: N/A | BM225: N/A | BN225: N/A | BO225: N/A | BP225: N/A | BQ225: N/A
BB226: Mobile | BC226: N/A | BD226: N/A | BE226: N/A | BF226: N/A | BG226: N/A | BH226: N/A | BI226: N/A | BJ226: N/A | BK226: N/A | BL226: N/A | BM226: N/A | BN226: N/A | BO226: N/A | BP226: N/A | BQ226: N/A
BA227: Water / Soap | BB227: Water and soap | BC227: N/A | BD227: N/A | BE227: N/A | BF227: N/A | BG227: N/A | BH227: N/A | BI227: N/A | BJ227: N/A | BK227: N/A | BL227: N/A | BM227: N/A | BN227: N/A | BO227: N/A | BP227: N/A | BQ227: N/A
BB228: Water only | BC228: N/A | BD228: N/A | BE228: N/A | BF228: N/A | BG228: N/A | BH228: N/A | BI228: N/A | BJ228: N/A | BK228: N/A | BL228: N/A | BM228: N/A | BN228: N/A | BO228: N/A | BP228: N/A | BQ228: N/A
BB229: Soap only | BC229: N/A | BD229: N/A | BE229: N/A | BF229: N/A | BG229: N/A | BH229: N/A | BI229: N/A | BJ229: N/A | BK229: N/A | BL229: N/A | BM229: N/A | BN229: N/A | BO229: N/A | BP229: N/A | BQ229: N/A
BB230: Neither | BC230: N/A | BD230: N/A | BE230: N/A | BF230: N/A | BG230: N/A | BH230: N/A | BI230: N/A | BJ230: N/A | BK230: N/A | BL230: N/A | BM230: N/A | BN230: N/A | BO230: N/A | BP230: N/A | BQ230: N/A
BA259: Raw numbers of respondents: | BB259: Menstrual health and hygiene | BC259: NATIONAL wealth index quintile | BH259: URBAN wealth index quintile | BM259: RURAL wealth index quintile
BA260: MHH data, raw numbers (weighted) | BC260: Poorest | BD260: Poor | BE260: Middle | BF260: Rich | BG260: Richest | BH260: Poorest | BI260: Poor | BJ260: Middle | BK260: Rich | BL260: Richest | BM260: Poorest | BN260: Poor | BO260: Middle | BP260: Rich | BQ260: Richest
BA261: Private place to wash and change | BB261: Yes | BC261: N/A | BD261: N/A | BE261: N/A | BF261: N/A | BG261: N/A | BH261: N/A | BI261: N/A | BJ261: N/A | BK261: N/A | BL261: N/A | BM261: N/A | BN261: N/A | BO261: N/A | BP261: N/A | BQ261: N/A
BB262: No | BC262: N/A | BD262: N/A | BE262: N/A | BF262: N/A | BG262: N/A | BH262: N/A | BI262: N/A | BJ262: N/A | BK262: N/A | BL262: N/A | BM262: N/A | BN262: N/A | BO262: N/A | BP262: N/A | BQ262: N/A
BB263: DK/not sure/missing | BC263: N/A | BD263: N/A | BE263: N/A | BF263: N/A | BG263: N/A | BH263: N/A | BI263: N/A | BJ263: N/A | BK263: N/A | BL263: N/A | BM263: N/A | BN263: N/A | BO263: N/A | BP263: N/A | BQ263: N/A
BA264: Use of menstrual materials | BB264: Materials reusable | BC264: N/A | BD264: N/A | BE264: N/A | BF264: N/A | BG264: N/A | BH264: N/A | BI264: N/A | BJ264: N/A | BK264: N/A | BL264: N/A | BM264: N/A | BN264: N/A | BO264: N/A | BP264: N/A | BQ264: N/A
BB265: Materials not reusable | BC265: N/A | BD265: N/A | BE265: N/A | BF265: N/A | BG265: N/A | BH265: N/A | BI265: N/A | BJ265: N/A | BK265: N/A | BL265: N/A | BM265: N/A | BN265: N/A | BO265: N/A | BP265: N/A | BQ265: N/A
BB266: No materials used | BC266: N/A | BD266: N/A | BE266: N/A | BF266: N/A | BG266: N/A | BH266: N/A | BI266: N/A | BJ266: N/A | BK266: N/A | BL266: N/A | BM266: N/A | BN266: N/A | BO266: N/A | BP266: N/A | BQ266: N/A
BB267: DK/not sure/missing | BC267: N/A | BD267: N/A | BE267: N/A | BF267: N/A | BG267: N/A | BH267: N/A | BI267: N/A | BJ267: N/A | BK267: N/A | BL267: N/A | BM267: N/A | BN267: N/A | BO267: N/A | BP267: N/A | BQ267: N/A
BA268: Use of menstrual materials with private place to wash and change | BB268: Materials reusable | BC268: N/A | BD268: N/A | BE268: N/A | BF268: N/A | BG268: N/A | BH268: N/A | BI268: N/A | BJ268: N/A | BK268: N/A | BL268: N/A | BM268: N/A | BN268: N/A | BO268: N/A | BP268: N/A | BQ268: N/A
BB269: Materials not reusable | BC269: N/A | BD269: N/A | BE269: N/A | BF269: N/A | BG269: N/A | BH269: N/A | BI269: N/A | BJ269: N/A | BK269: N/A | BL269: N/A | BM269: N/A | BN269: N/A | BO269: N/A | BP269: N/A | BQ269: N/A
BB270: No materials used | BC270: N/A | BD270: N/A | BE270: N/A | BF270: N/A | BG270: N/A | BH270: N/A | BI270: N/A | BJ270: N/A | BK270: N/A | BL270: N/A | BM270: N/A | BN270: N/A | BO270: N/A | BP270: N/A | BQ270: N/A
BA271: Awareness of menstruation before menarche | BB271: Yes | BC271: N/A | BD271: N/A | BE271: N/A | BF271: N/A | BG271: N/A | BH271: N/A | BI271: N/A | BJ271: N/A | BK271: N/A | BL271: N/A | BM271: N/A | BN271: N/A | BO271: N/A | BP271: N/A | BQ271: N/A
BB272: No | BC272: N/A | BD272: N/A | BE272: N/A | BF272: N/A | BG272: N/A | BH272: N/A | BI272: N/A | BJ272: N/A | BK272: N/A | BL272: N/A | BM272: N/A | BN272: N/A | BO272: N/A | BP272: N/A | BQ272: N/A
BB273: DK/not sure/missing | BC273: N/A | BD273: N/A | BE273: N/A | BF273: N/A | BG273: N/A | BH273: N/A | BI273: N/A | BJ273: N/A | BK273: N/A | BL273: N/A | BM273: N/A | BN273: N/A | BO273: N/A | BP273: N/A | BQ273: N/A
BA274: Participation in (all) activities during menstruation | BB274: Yes | BC274: N/A | BD274: N/A | BE274: N/A | BF274: N/A | BG274: N/A | BH274: N/A | BI274: N/A | BJ274: N/A | BK274: N/A | BL274: N/A | BM274: N/A | BN274: N/A | BO274: N/A | BP274: N/A | BQ274: N/A
BB275: No | BC275: N/A | BD275: N/A | BE275: N/A | BF275: N/A | BG275: N/A | BH275: N/A | BI275: N/A | BJ275: N/A | BK275: N/A | BL275: N/A | BM275: N/A | BN275: N/A | BO275: N/A | BP275: N/A | BQ275: N/A
BB276: DK/not sure/missing/no such activity | BC276: N/A | BD276: N/A | BE276: N/A | BF276: N/A | BG276: N/A | BH276: N/A | BI276: N/A | BJ276: N/A | BK276: N/A | BL276: N/A | BM276: N/A | BN276: N/A | BO276: N/A | BP276: N/A | BQ276: N/A
BA277: Participation in specific activities during menstruation | BB277: Did not go to school (amongst those usually attending school) | BC277: N/A | BD277: N/A | BE277: N/A | BF277: N/A | BG277: N/A | BH277: N/A | BI277: N/A | BJ277: N/A | BK277: N/A | BL277: N/A | BM277: N/A | BN277: N/A | BO277: N/A | BP277: N/A | BQ277: N/A
BB278: Did not go to work (amongst those who usually work) | BC278: N/A | BD278: N/A | BE278: N/A | BF278: N/A | BG278: N/A | BH278: N/A | BI278: N/A | BJ278: N/A | BK278: N/A | BL278: N/A | BM278: N/A | BN278: N/A | BO278: N/A | BP278: N/A | BQ278: N/A
BB279: Did not participate in social activities | BC279: N/A | BD279: N/A | BE279: N/A | BF279: N/A | BG279: N/A | BH279: N/A | BI279: N/A | BJ279: N/A | BK279: N/A | BL279: N/A | BM279: N/A | BN279: N/A | BO279: N/A | BP279: N/A | BQ279: N/A
BB280: Did not cook food | BC280: N/A | BD280: N/A | BE280: N/A | BF280: N/A | BG280: N/A | BH280: N/A | BI280: N/A | BJ280: N/A | BK280: N/A | BL280: N/A | BM280: N/A | BN280: N/A | BO280: N/A | BP280: N/A | BQ280: N/A
BB281: Did not eat with others | BC281: N/A | BD281: N/A | BE281: N/A | BF281: N/A | BG281: N/A | BH281: N/A | BI281: N/A | BJ281: N/A | BK281: N/A | BL281: N/A | BM281: N/A | BN281: N/A | BO281: N/A | BP281: N/A | BQ281: N/A
BB282: Did not bathe in regular place | BC282: N/A | BD282: N/A | BE282: N/A | BF282: N/A | BG282: N/A | BH282: N/A | BI282: N/A | BJ282: N/A | BK282: N/A | BL282: N/A | BM282: N/A | BN282: N/A | BO282: N/A | BP282: N/A | BQ282: N/A
BB283: Did not participate in other activities | BC283: N/A | BD283: N/A | BE283: N/A | BF283: N/A | BG283: N/A | BH283: N/A | BI283: N/A | BJ283: N/A | BK283: N/A | BL283: N/A | BM283: N/A | BN283: N/A | BO283: N/A | BP283: N/A | BQ283: N/A
BB284: DK/not sure/missing/no such activity | BC284: N/A | BD284: N/A | BE284: N/A | BF284: N/A | BG284: N/A | BH284: N/A | BI284: N/A | BJ284: N/A | BK284: N/A | BL284: N/A | BM284: N/A | BN284: N/A | BO284: N/A | BP284: N/A | BQ284: N/A
BA339: Raw numbers of respondents: | BB339: Basic water, sanitation and hygiene | BC339: NATIONAL wealth index quintile | BH339: URBAN wealth index quintile | BM339: RURAL wealth index quintile
BA340: WatSan data, raw numbers (weighted) | BC340: Poorest | BD340: Poor | BE340: Middle | BF340: Rich | BG340: Richest | BH340: Poorest | BI340: Poor | BJ340: Middle | BK340: Rich | BL340: Richest | BM340: Poorest | BN340: Poor | BO340: Middle | BP340: Rich | BQ340: Richest
BA341: Use of Basic Water Sanitation and Hygiene | BB341: Yes | BC341: N/A | BD341: N/A | BE341: N/A | BF341: N/A | BG341: N/A | BH341: N/A | BI341: N/A | BJ341: N/A | BK341: N/A | BL341: N/A | BM341: N/A | BN341: N/A | BO341: N/A | BP341: N/A | BQ341: N/A
BB342: No | BC342: N/A | BD342: N/A | BE342: N/A | BF342: N/A | BG342: N/A | BH342: N/A | BI342: N/A | BJ342: N/A | BK342: N/A | BL342: N/A | BM342: N/A | BN342: N/A | BO342: N/A | BP342: N/A | BQ342: N/A
BA343: Use of Basic Water and Sanitation | BB343: Yes | BC343: N/A | BD343: N/A | BE343: N/A | BF343: N/A | BG343: N/A | BH343: N/A | BI343: N/A | BJ343: N/A | BK343: N/A | BL343: N/A | BM343: N/A | BN343: N/A | BO343: N/A | BP343: N/A | BQ343: N/A
BB344: No | BC344: N/A | BD344: N/A | BE344: N/A | BF344: N/A | BG344: N/A | BH344: N/A | BI344: N/A | BJ344: N/A | BK344: N/A | BL344: N/A | BM344: N/A | BN344: N/A | BO344: N/A | BP344: N/A | BQ344: N/A
BA345: Use of Basic Water and Hygiene | BB345: Yes | BC345: N/A | BD345: N/A | BE345: N/A | BF345: N/A | BG345: N/A | BH345: N/A | BI345: N/A | BJ345: N/A | BK345: N/A | BL345: N/A | BM345: N/A | BN345: N/A | BO345: N/A | BP345: N/A | BQ345: N/A
BB346: No | BC346: N/A | BD346: N/A | BE346: N/A | BF346: N/A | BG346: N/A | BH346: N/A | BI346: N/A | BJ346: N/A | BK346: N/A | BL346: N/A | BM346: N/A | BN346: N/A | BO346: N/A | BP346: N/A | BQ346: N/A
BA347: Use of Basic Sanitation and Hygiene | BB347: Yes | BC347: N/A | BD347: N/A | BE347: N/A | BF347: N/A | BG347: N/A | BH347: N/A | BI347: N/A | BJ347: N/A | BK347: N/A | BL347: N/A | BM347: N/A | BN347: N/A | BO347: N/A | BP347: N/A | BQ347: N/A
BB348: No | BC348: N/A | BD348: N/A | BE348: N/A | BF348: N/A | BG348: N/A | BH348: N/A | BI348: N/A | BJ348: N/A | BK348: N/A | BL348: N/A | BM348: N/A | BN348: N/A | BO348: N/A | BP348: N/A | BQ348: N/A
BA349: Use of Basic Water | BB349: Yes | BC349: N/A | BD349: N/A | BE349: N/A | BF349: N/A | BG349: N/A | BH349: N/A | BI349: N/A | BJ349: N/A | BK349: N/A | BL349: N/A | BM349: N/A | BN349: N/A | BO349: N/A | BP349: N/A | BQ349: N/A
BB350: No | BC350: N/A | BD350: N/A | BE350: N/A | BF350: N/A | BG350: N/A | BH350: N/A | BI350: N/A | BJ350: N/A | BK350: N/A | BL350: N/A | BM350: N/A | BN350: N/A | BO350: N/A | BP350: N/A | BQ350: N/A
BA351: Use of Basic Sanitation | BB351: Yes | BC351: N/A | BD351: N/A | BE351: N/A | BF351: N/A | BG351: N/A | BH351: N/A | BI351: N/A | BJ351: N/A | BK351: N/A | BL351: N/A | BM351: N/A | BN351: N/A | BO351: N/A | BP351: N/A | BQ351: N/A
BB352: No | BC352: N/A | BD352: N/A | BE352: N/A | BF352: N/A | BG352: N/A | BH352: N/A | BI352: N/A | BJ352: N/A | BK352: N/A | BL352: N/A | BM352: N/A | BN352: N/A | BO352: N/A | BP352: N/A | BQ352: N/A
BA353: Access to Basic Hygiene | BB353: Yes | BC353: N/A | BD353: N/A | BE353: N/A | BF353: N/A | BG353: N/A | BH353: N/A | BI353: N/A | BJ353: N/A | BK353: N/A | BL353: N/A | BM353: N/A | BN353: N/A | BO353: N/A | BP353: N/A | BQ353: N/A
BB354: No | BC354: N/A | BD354: N/A | BE354: N/A | BF354: N/A | BG354: N/A | BH354: N/A | BI354: N/A | BJ354: N/A | BK354: N/A | BL354: N/A | BM354: N/A | BN354: N/A | BO354: N/A | BP354: N/A | BQ354: N/A
C399: INITIAL (national) Wealth Index | H399: URBAN Wealth Index | M399: RURAL Wealth Index
C400: Component Matrix | H400: Component Matrix | M400: Component Matrix
E401: Component | J401: Component | O401: Component
B402: Note: The INITIAL (national) Wealth Index is based on the first component of the Principal Component Analysis (PCA) which has been obtained at national level. The final national-level (NATIONAL) Wealth Index is based on the URBAN and RURAL specific wealth indexes. Regression procedures are used to establish the relationships between the two sets of scores (urban and rural) and the initial (national) wealth factors. This allows best use of the available information for each area and a better precision of the FINAL (NATIONAL) Wealth Index. For dependency reasons, all WASH variables (contained in the generic MICS and DHS scripts) have been excluded from the sets of asset variables used in the PCAs. The PCA can extracts as many components as there are asset variables in the input. Only the first of the components is used to represent the Wealth Index. The scores represent the weights of the asset variables on the Wealth Index (correlations between the variables and the component). The communalities are the proportion of each variable's variance that can be explained by the component. Proportion of explained variance is the part of the model's total variance that is explained by the component. For more information on the procedure used: The DHS Wealth Index, DHS Comparative Reports No. 6, Shea Oscar Rutstein, Kiersten Johnson, ORC Macro International Inc., 2004. The DHS Wealth Index: Approaches for Rural and Urban Areas, Shea O. Rutstein, ORC Macro International Inc., 2008. MICS Methodological Paper No. 4, Review of options for reporting water, sanitation and hygiene coverage by wealth quintile, UNICEF, 2016. | E402: 1 | J402: 1 | O402: 1
C403: Has wood floor | E403: 0.7697098851 | H403: Has wood floor | J403: 0.7548509621 | M403: Has wood floor | O403: 0.783789808
C404: Has concrete floor | E404: -0.7413276066 | H404: Has brick concrete wall | J404: -0.7422239869 | M404: Has concrete floor | O404: -0.7826860425
C405: Has wood and concrete floor | E405: -0.7413276066 | H405: Has concrete floor | J405: -0.7027974404 | M405: Has wood and concrete floor | O405: -0.7826860425
C406: Has mud floor | E406: -0.7413276066 | H406: Has mud floor | J406: -0.7027974404 | M406: Has mud floor | O406: -0.7826860425
C407: Has brick concrete wall | E407: -0.7319127154 | H407: Has wood and concrete floor | J407: -0.7027974404 | M407: Has no wall | O407: 0.7520586651
C408: Has no wall | E408: 0.7306374411 | H408: Has no wall | J408: 0.6971914097 | M408: Has brick concrete wall | O408: -0.7452337715
C409: Owns Refrigerator | E409: 0.6681215098 | H409: Owns Refrigerator | J409: 0.6745621562 | M409: Number of Rooms | O409: -0.6561597054
C410: Number of Rooms | E410: -0.6305953761 | H410: Owns telephone | J410: 0.6077713674 | M410: Owns Television | O410: 0.6531526098
C411: Owns Television | E411: 0.6144182231 | H411: Number of Rooms | J411: -0.5888158918 | M411: Owns Refrigerator | O411: 0.6513534235
C412: Owns telephone | E412: 0.5892344074 | H412: Owns Washing machine | J412: 0.5841450332 | M412: :electric light | O412: -0.5710907252
C413: Owns stove | E413: 0.5549775744 | H413: Owns sewing machine | J413: 0.5662453267 | M413: Owns Video | O413: 0.5687929313
C414: Owns Washing machine | E414: 0.5510086745 | H414: Owns stove | J414: 0.5390776748 | M414: Owns telephone | O414: 0.5663471665
C415: :electric light | E415: -0.5487895013 | H415: Owns Motor vehicle | J415: 0.5372839771 | M415: kerozene light | O415: 0.5601096207
C416: Owns Video | E416: 0.5430038747 | H416: Household fuel type: natural gas | J416: -0.5276261726 | M416: Owns stove | O416: 0.5593215953
C417: kerozene light | E417: 0.5394322525 | H417: Household fuel type: coal | J417: 0.5049726747 | M417: Owns Washing machine | O417: 0.5204533629
C418: Household fuel type: natural gas | E418: -0.5251400282 | H418: Owns Radio | J418: 0.4914150688 | M418: Household fuel type: natural gas | O418: -0.5092783386
C419: Household fuel type: coal | E419: 0.4959075763 | H419: Owns Television | J419: 0.4900284681 | M419: Household fuel type: coal | O419: 0.4840607797
C420: Owns sewing machine | E420: 0.4617873776 | H420: Land purchased | J420: -0.4839550019 | M420: Has galvanized roof | O420: 0.4003584644
C421: Owns Motor vehicle | E421: 0.4506897859 | H421: Owns Video | J421: 0.4711142388 | M421: Owns Motor vehicle | O421: 0.3979020213
C422: Owns Radio | E422: 0.4276557999 | H422: :electric light | J422: -0.4420698033 | M422: Owns Radio | O422: 0.3895899025
C423: Has galvanized roof | E423: 0.3837056771 | H423: kerozene light | J423: 0.4384778318 | M423: Owns sewing machine | O423: 0.3795135483
C424: Land purchased | E424: -0.3793458334 | H424: Has galvanized roof | J424: 0.3657641354 | M424: Land purchased | O424: -0.3154892865
C425: Number of members per sleeping room | E425: 0.3087675052 | H425: Number of members per sleeping room | J425: 0.342616804 | M425: Has shingle asphalt roof | O425: -0.2899183382
C426: Has shingle asphalt roof | E426: -0.2585958563 | H426: Kitchen shared | J426: -0.2775940593 | M426: Number of members per sleeping room | O426: 0.2812869543
... 152 more rows

Sheet MICS12
A2: =A1026 -> Saint Lucia
A3: =A1034 -> 2012
A4: Use of drinking water sources
A5: by wealth quintile and sub-national region
A6: Notes:
A7: WHO/UNICEF JMP customised wealth index excludes water,
A8: sanitation and hygiene assets.
A9: Survey used for analysis: | B9: =A1025 -> MICS12
A10: =B1028 -> 
A11: =B1027 -> 
A14: Use of drinking water sources | C14: NATIONAL wealth index quintile | H14: URBAN wealth index quintile | M14: RURAL wealth index quintile | BA14: Raw numbers of respondents: | BB14: Use of drinking water sources | BC14: NATIONAL wealth index quintile | BH14: URBAN wealth index quintile | BM14: RURAL wealth index quintile
A15: Weighted percentage (used in graphs) | C15: Poorest | D15: Poor | E15: Middle | F15: Rich | G15: Richest | H15: Poorest | I15: Poor | J15: Middle | K15: Rich | L15: Richest | M15: Poorest | N15: Poor | O15: Middle | P15: Rich | Q15: Richest | BA15: Water data, raw numbers (weighted) | BC15: Poorest | BD15: Poor | BE15: Middle | BF15: Rich | BG15: Richest | BH15: Poorest | BI15: Poor | BJ15: Middle | BK15: Rich | BL15: Richest | BM15: Poorest | BN15: Poor | BO15: Middle | BP15: Rich | BQ15: Richest
A16: Water | B16: Improved | C16: 97.64639882 | D16: 99.61642931 | E16: 99.70851301 | F16: 99.95203016 | G16: 99.45618885 | H16: 99.46223456 | I16: 100 | J16: 100 | K16: 99.74683794 | L16: 100 | M16: 97.20706281 | N16: 99.52844359 | O16: 99.64009172 | P16: 100 | Q16: 99.33554139 | BA16: Water | BB16: Improved | BC16: N/A | BD16: N/A | BE16: N/A | BF16: N/A | BG16: N/A | BH16: N/A | BI16: N/A | BJ16: N/A | BK16: N/A | BL16: N/A | BM16: N/A | BN16: N/A | BO16: N/A | BP16: N/A | BQ16: N/A
B17: Not Improved | C17: 2.353601185 | D17: 0.3835706947 | E17: 0.2914869854 | F17: 0.04796984092 | G17: 0.5438111486 | H17: 0.5377654372 | I17: 0 | J17: 0 | K17: 0.2531620601 | L17: 0 | M17: 2.792937187 | N17: 0.4715564089 | O17: 0.359908277 | P17: 0 | Q17: 0.664458615 | BB17: Not Improved | BC17: N/A | BD17: N/A | BE17: N/A | BF17: N/A | BG17: N/A | BH17: N/A | BI17: N/A | BJ17: N/A | BK17: N/A | BL17: N/A | BM17: N/A | BN17: N/A | BO17: N/A | BP17: N/A | BQ17: N/A
A18: Water ladder | B18: Basic | C18: =C16*C23/100 -> 97.31372572 | D18: =D16*D23/100 -> 99.61642931 | E18: =E16*E23/100 -> 99.70851301 | F18: 99.95203016 | G18: 99.31130651 | H18: 99.1305178 | I18: 100 | J18: 100 | K18: 99.74683794 | L18: 99.23823027 | M18: 96.87230148 | N18: 99.52844359 | O18: 99.64009172 | P18: 100 | Q18: 99.33554139 | BA18: Water ladder | BB18: Basic | BC18: N/A | BD18: N/A | BE18: N/A | BF18: N/A | BG18: N/A | BH18: N/A | BI18: N/A | BJ18: N/A | BK18: N/A | BL18: N/A | BM18: N/A | BN18: N/A | BO18: N/A | BP18: N/A | BQ18: N/A
B19: Limited | C19: =C16*C22/100 -> 0.3326730984 | D19: =D16*D22/100 -> 0 | E19: =E16*E22/100 -> 0 | F19: 0 | G19: 0.1448823416 | H19: 0.331716763 | I19: 0 | J19: 0 | K19: 0 | L19: 0.7617697288 | M19: 0.3347613345 | N19: 0 | O19: 0 | P19: 0 | Q19: 0 | BB19: Limited | BC19: N/A | BD19: N/A | BE19: N/A | BF19: N/A | BG19: N/A | BH19: N/A | BI19: N/A | BJ19: N/A | BK19: N/A | BL19: N/A | BM19: N/A | BN19: N/A | BO19: N/A | BP19: N/A | BQ19: N/A
B20: Unimproved | C20: =100-C18-C19-C21 -> 2.353601185 | D20: =100-D18-D19-D21 -> 0.3835706947 | E20: =100-E18-E19-E21 -> 0.2914869854 | F20: 0.04796984092 | G20: 0.5438111486 | H20: 0.5377654372 | I20: 0 | J20: 0 | K20: 0.2531620601 | L20: 1.265654248e-14 | M20: 2.792937187 | N20: 0.4715564089 | O20: 0.359908277 | P20: 0 | Q20: 0.664458615 | BB20: Unimproved | BC20: N/A | BD20: N/A | BE20: N/A | BF20: N/A | BG20: N/A | BH20: N/A | BI20: N/A | BJ20: N/A | BK20: N/A | BL20: N/A | BM20: N/A | BN20: N/A | BO20: N/A | BP20: N/A | BQ20: N/A
B21: Surface water | C21: 0 | D21: 0 | E21: 0 | F21: 0 | G21: 0 | H21: 0 | I21: 0 | J21: 0 | K21: 0 | L21: 0 | M21: 0 | N21: 0 | O21: 0 | P21: 0 | Q21: 0 | BB21: Surface water | BC21: N/A | BD21: N/A | BE21: N/A | BF21: N/A | BG21: N/A | BH21: N/A | BI21: N/A | BJ21: N/A | BK21: N/A | BL21: N/A | BM21: N/A | BN21: N/A | BO21: N/A | BP21: N/A | BQ21: N/A
A22: Improved water point at more than 30 minutes | B22: Yes | C22: 0.3406916204 | D22: 0 | E22: 0 | F22: 0 | G22: 0.145674536 | H22: 0.3335102659 | I22: 0 | J22: 0 | K22: 0 | L22: 0.7617697288 | M22: 0.3443796416 | N22: 0 | O22: 0 | P22: 0 | Q22: 0 | BA22: Improved water point at more than 30 minutes | BB22: Yes | BC22: N/A | BD22: N/A | BE22: N/A | BF22: N/A | BG22: N/A | BH22: N/A | BI22: N/A | BJ22: N/A | BK22: N/A | BL22: N/A | BM22: N/A | BN22: N/A | BO22: N/A | BP22: N/A | BQ22: N/A
B23: No | C23: 99.65930838 | D23: 100 | E23: 100 | F23: 100 | G23: 99.85432546 | H23: 99.66648973 | I23: 100 | J23: 100 | K23: 100 | L23: 99.23823027 | M23: 99.65562036 | N23: 100 | O23: 100 | P23: 100 | Q23: 100 | BB23: No | BC23: N/A | BD23: N/A | BE23: N/A | BF23: N/A | BG23: N/A | BH23: N/A | BI23: N/A | BJ23: N/A | BK23: N/A | BL23: N/A | BM23: N/A | BN23: N/A | BO23: N/A | BP23: N/A | BQ23: N/A
A24: Manually calculated ratios | B24: Improved wells | C24: =C63/(C62+C63+C64)*100 -> 40.59194749 | D24: 64.1894897 | E24: 81.43409699 | F24: 95.45745781 | G24: 21.03727474 | H24: 0 | I24: 50 | J24: =J63/(J62+J63+J64)*100 -> 100 | K24: 66.66666667 | L24: 100 | M24: 41.66284629 | N24: 62.5 | O24: 81.43409699 | P24: 100 | Q24: 0
B25: Improved springs
B26: Other
C27: NATIONAL wealth index quintile | H27: URBAN wealth index quintile | M27: RURAL wealth index quintile | BA27: Raw numbers of respondents: | BB27: Use of drinking water sources | BC27: NATIONAL wealth index quintile | BH27: URBAN wealth index quintile | BM27: RURAL wealth index quintile
A28: Percentage based on weighted population | C28: Poorest | D28: Poor | E28: Middle | F28: Rich | G28: Richest | H28: Poorest | I28: Poor | J28: Middle | K28: Rich | L28: Richest | M28: Poorest | N28: Poor | O28: Middle | P28: Rich | Q28: Richest | BA28: Water data, raw numbers (weighted) | BC28: Poorest | BD28: Poor | BE28: Middle | BF28: Rich | BG28: Richest | BH28: Poorest | BI28: Poor | BJ28: Middle | BK28: Rich | BL28: Richest | BM28: Poorest | BN28: Poor | BO28: Middle | BP28: Rich | BQ28: Richest
A29: Piped water | B29: Yes | C29: 89.52049936 | D29: 92.23161802 | E29: 95.12632759 | F29: 97.71751557 | G29: 97.04322971 | H29: 95.75509707 | I29: 98.2185467 | J29: 98.94109197 | K29: 97.27850785 | L29: 97.9876583 | M29: 87.637757 | N29: 90.50158 | O29: 95.13558359 | P29: 97.61947335 | Q29: 96.85489589 | BA29: Piped water | BB29: Yes | BC29: N/A | BD29: N/A | BE29: N/A | BF29: N/A | BG29: N/A | BH29: N/A | BI29: N/A | BJ29: N/A | BK29: N/A | BL29: N/A | BM29: N/A | BN29: N/A | BO29: N/A | BP29: N/A | BQ29: N/A
B30: No | C30: 10.47950064 | D30: 7.768381985 | E30: 4.873672415 | F30: 2.282484432 | G30: 2.956770289 | H30: 4.244902931 | I30: 1.7814533 | J30: 1.058908034 | K30: 2.721492146 | L30: 2.0123417 | M30: 12.362243 | N30: 9.498419996 | O30: 4.864416407 | P30: 2.380526651 | Q30: 3.145104111 | BB30: No | BC30: N/A | BD30: N/A | BE30: N/A | BF30: N/A | BG30: N/A | BH30: N/A | BI30: N/A | BJ30: N/A | BK30: N/A | BL30: N/A | BM30: N/A | BN30: N/A | BO30: N/A | BP30: N/A | BQ30: N/A
A31: Piped water on premises | B31: Yes | C31: 78.47795723 | D31: 87.20397494 | E31: 93.94568668 | F31: 97.71751557 | G31: 96.63678262 | H31: 76.4851154 | I31: 90.71621648 | J31: 97.15837338 | K31: 97.27850785 | L31: 97.9876583 | M31: 78.96437603 | N31: 85.09081694 | O31: 94.59572118 | P31: 97.61947335 | Q31: 96.3582763 | BA31: Piped water on premises | BB31: Yes | BC31: N/A | BD31: N/A | BE31: N/A | BF31: N/A | BG31: N/A | BH31: N/A | BI31: N/A | BJ31: N/A | BK31: N/A | BL31: N/A | BM31: N/A | BN31: N/A | BO31: N/A | BP31: N/A | BQ31: N/A
B32: No | C32: 21.52204277 | D32: 12.79602506 | E32: 6.054313318 | F32: 2.282484432 | G32: 3.363217376 | H32: 23.5148846 | I32: 9.283783523 | J32: 2.841626624 | K32: 2.721492146 | L32: 2.0123417 | M32: 21.03562397 | N32: 14.90918306 | O32: 5.404278823 | P32: 2.380526651 | Q32: 3.641723699 | BB32: No | BC32: N/A | BD32: N/A | BE32: N/A | BF32: N/A | BG32: N/A | BH32: N/A | BI32: N/A | BJ32: N/A | BK32: N/A | BL32: N/A | BM32: N/A | BN32: N/A | BO32: N/A | BP32: N/A | BQ32: N/A
A33: Piped water into dwelling | B33: Yes | C33: N/A | D33: N/A | E33: N/A | F33: N/A | G33: N/A | H33: N/A | I33: N/A | J33: N/A | K33: N/A | L33: N/A | M33: N/A | N33: N/A | O33: N/A | P33: N/A | Q33: N/A | BA33: Piped water into dwelling | BB33: Yes | BC33: N/A | BD33: N/A | BE33: N/A | BF33: N/A | BG33: N/A | BH33: N/A | BI33: N/A | BJ33: N/A | BK33: N/A | BL33: N/A | BM33: N/A | BN33: N/A | BO33: N/A | BP33: N/A | BQ33: N/A
B34: No | C34: N/A | D34: N/A | E34: N/A | F34: N/A | G34: N/A | H34: N/A | I34: N/A | J34: N/A | K34: N/A | L34: N/A | M34: N/A | N34: N/A | O34: N/A | P34: N/A | Q34: N/A | BB34: No | BC34: N/A | BD34: N/A | BE34: N/A | BF34: N/A | BG34: N/A | BH34: N/A | BI34: N/A | BJ34: N/A | BK34: N/A | BL34: N/A | BM34: N/A | BN34: N/A | BO34: N/A | BP34: N/A | BQ34: N/A
A35: Water source on premises | B35: Yes | C35: 84.5041785 | D35: 92.87838968 | E35: 98.40034656 | F35: 98.94398689 | G35: 98.58070533 | H35: 80.44619768 | I35: 92.49766978 | J35: 97.96260733 | K35: 99.24051382 | L35: 99.23823027 | M35: 85.86974238 | N35: 92.07426943 | O35: 98.94276944 | P35: 98.86362786 | Q35: 98.44285235 | BA35: Water source on premises | BB35: Yes | BC35: N/A | BD35: N/A | BE35: N/A | BF35: N/A | BG35: N/A | BH35: N/A | BI35: N/A | BJ35: N/A | BK35: N/A | BL35: N/A | BM35: N/A | BN35: N/A | BO35: N/A | BP35: N/A | BQ35: N/A
B36: No | C36: 15.4958215 | D36: 7.121610318 | E36: 1.599653444 | F36: 1.056013107 | G36: 1.419294674 | H36: 19.55380232 | I36: 7.502330224 | J36: 2.037392674 | K36: 0.7594861803 | L36: 0.7617697288 | M36: 14.13025762 | N36: 7.925730573 | O36: 1.057230564 | P36: 1.136372141 | Q36: 1.557147652 | BB36: No | BC36: N/A | BD36: N/A | BE36: N/A | BF36: N/A | BG36: N/A | BH36: N/A | BI36: N/A | BJ36: N/A | BK36: N/A | BL36: N/A | BM36: N/A | BN36: N/A | BO36: N/A | BP36: N/A | BQ36: N/A
A37: Improved Water source on premises | B37: Yes | C37: 84.5041785 | D37: 92.87838968 | E37: 98.40034656 | F37: 98.94398689 | G37: 98.58070533 | H37: 80.44619768 | I37: 92.49766978 | J37: 97.96260733 | K37: 99.24051382 | L37: 99.23823027 | M37: 85.86974238 | N37: 92.07426943 | O37: 98.94276944 | P37: 98.86362786 | Q37: 98.44285235 | BA37: Improved water source on premises | BB37: Yes | BC37: N/A | BD37: N/A | BE37: N/A | BF37: N/A | BG37: N/A | BH37: N/A | BI37: N/A | BJ37: N/A | BK37: N/A | BL37: N/A | BM37: N/A | BN37: N/A | BO37: N/A | BP37: N/A | BQ37: N/A
B38: No | C38: 15.4958215 | D38: 7.121610318 | E38: 1.599653444 | F38: 1.056013107 | G38: 1.419294674 | H38: 19.55380232 | I38: 7.502330224 | J38: 2.037392674 | K38: 0.7594861803 | L38: 0.7617697288 | M38: 14.13025762 | N38: 7.925730573 | O38: 1.057230564 | P38: 1.136372141 | Q38: 1.557147652 | BB38: No | BC38: N/A | BD38: N/A | BE38: N/A | BF38: N/A | BG38: N/A | BH38: N/A | BI38: N/A | BJ38: N/A | BK38: N/A | BL38: N/A | BM38: N/A | BN38: N/A | BO38: N/A | BP38: N/A | BQ38: N/A
A39: Piped water on premises available when needed | B39: Yes | C39: N/A | D39: N/A | E39: N/A | F39: N/A | G39: N/A | H39: N/A | I39: N/A | J39: N/A | K39: N/A | L39: N/A | M39: N/A | N39: N/A | O39: N/A | P39: N/A | Q39: N/A | BA39: Piped water on premises available when needed | BB39: Yes | BC39: N/A | BD39: N/A | BE39: N/A | BF39: N/A | BG39: N/A | BH39: N/A | BI39: N/A | BJ39: N/A | BK39: N/A | BL39: N/A | BM39: N/A | BN39: N/A | BO39: N/A | BP39: N/A | BQ39: N/A
B40: No | C40: N/A | D40: N/A | E40: N/A | F40: N/A | G40: N/A | H40: N/A | I40: N/A | J40: N/A | K40: N/A | L40: N/A | M40: N/A | N40: N/A | O40: N/A | P40: N/A | Q40: N/A | BB40: No | BC40: N/A | BD40: N/A | BE40: N/A | BF40: N/A | BG40: N/A | BH40: N/A | BI40: N/A | BJ40: N/A | BK40: N/A | BL40: N/A | BM40: N/A | BN40: N/A | BO40: N/A | BP40: N/A | BQ40: N/A
A41: Water point at more than 30 minutes | B41: Yes | C41: 0.4777634811 | D41: 0 | E41: 0.2930519215 | F41: 0 | G41: 0.1448823416 | H41: 0.3315384649 | I41: 0 | J41: 0 | K41: 0 | L41: 0.7617697288 | M41: 0.5136888355 | N41: 0 | O41: 0.3604758819 | P41: 0 | Q41: 0 | BA41: Water point at more than 30 minutes | BB41: Yes | BC41: N/A | BD41: N/A | BE41: N/A | BF41: N/A | BG41: N/A | BH41: N/A | BI41: N/A | BJ41: N/A | BK41: N/A | BL41: N/A | BM41: N/A | BN41: N/A | BO41: N/A | BP41: N/A | BQ41: N/A
B42: No | C42: 99.52223652 | D42: 100 | E42: 99.70694808 | F42: 100 | G42: 99.85511766 | H42: 99.66846154 | I42: 100 | J42: 100 | K42: 100 | L42: 99.23823027 | M42: 99.48631116 | N42: 100 | O42: 99.63952412 | P42: 100 | Q42: 100 | BB42: No | BC42: N/A | BD42: N/A | BE42: N/A | BF42: N/A | BG42: N/A | BH42: N/A | BI42: N/A | BJ42: N/A | BK42: N/A | BL42: N/A | BM42: N/A | BN42: N/A | BO42: N/A | BP42: N/A | BQ42: N/A
A43: Water source available when needed | B43: Yes | C43: N/A | D43: N/A | E43: N/A | F43: N/A | G43: N/A | H43: N/A | I43: N/A | J43: N/A | K43: N/A | L43: N/A | M43: N/A | N43: N/A | O43: N/A | P43: N/A | Q43: N/A | BA43: Water source available when needed | BB43: Yes | BC43: N/A | BD43: N/A | BE43: N/A | BF43: N/A | BG43: N/A | BH43: N/A | BI43: N/A | BJ43: N/A | BK43: N/A | BL43: N/A | BM43: N/A | BN43: N/A | BO43: N/A | BP43: N/A | BQ43: N/A
B44: No | C44: N/A | D44: N/A | E44: N/A | F44: N/A | G44: N/A | H44: N/A | I44: N/A | J44: N/A | K44: N/A | L44: N/A | M44: N/A | N44: N/A | O44: N/A | P44: N/A | Q44: N/A | BB44: No | BC44: N/A | BD44: N/A | BE44: N/A | BF44: N/A | BG44: N/A | BH44: N/A | BI44: N/A | BJ44: N/A | BK44: N/A | BL44: N/A | BM44: N/A | BN44: N/A | BO44: N/A | BP44: N/A | BQ44: N/A
A45: Improved water source available when needed | B45: Yes | C45: N/A | D45: N/A | E45: N/A | F45: N/A | G45: N/A | H45: N/A | I45: N/A | J45: N/A | K45: N/A | L45: N/A | M45: N/A | N45: N/A | O45: N/A | P45: N/A | Q45: N/A | BA45: Improved water source available when needed | BB45: Yes | BC45: N/A | BD45: N/A | BE45: N/A | BF45: N/A | BG45: N/A | BH45: N/A | BI45: N/A | BJ45: N/A | BK45: N/A | BL45: N/A | BM45: N/A | BN45: N/A | BO45: N/A | BP45: N/A | BQ45: N/A
B46: No | C46: N/A | D46: N/A | E46: N/A | F46: N/A | G46: N/A | H46: N/A | I46: N/A | J46: N/A | K46: N/A | L46: N/A | M46: N/A | N46: N/A | O46: N/A | P46: N/A | Q46: N/A | BB46: No | BC46: N/A | BD46: N/A | BE46: N/A | BF46: N/A | BG46: N/A | BH46: N/A | BI46: N/A | BJ46: N/A | BK46: N/A | BL46: N/A | BM46: N/A | BN46: N/A | BO46: N/A | BP46: N/A | BQ46: N/A
A47: Microbiological quality at point of collection | B47: Not contaminated (No E. coli in 100 mL) | C47: N/A | D47: N/A | E47: N/A | F47: N/A | G47: N/A | H47: N/A | I47: N/A | J47: N/A | K47: N/A | L47: N/A | M47: N/A | N47: N/A | O47: N/A | P47: N/A | Q47: N/A | BA47: Microbiological quality at point of collection | BB47: Not contaminated (No E. coli in 100 mL) | BC47: N/A | BD47: N/A | BE47: N/A | BF47: N/A | BG47: N/A | BH47: N/A | BI47: N/A | BJ47: N/A | BK47: N/A | BL47: N/A | BM47: N/A | BN47: N/A | BO47: N/A | BP47: N/A | BQ47: N/A
B48: Contaminated (E. coli detected in 100 mL) | C48: N/A | D48: N/A | E48: N/A | F48: N/A | G48: N/A | H48: N/A | I48: N/A | J48: N/A | K48: N/A | L48: N/A | M48: N/A | N48: N/A | O48: N/A | P48: N/A | Q48: N/A | BB48: Contaminated (E. coli detected in 100 mL) | BC48: N/A | BD48: N/A | BE48: N/A | BF48: N/A | BG48: N/A | BH48: N/A | BI48: N/A | BJ48: N/A | BK48: N/A | BL48: N/A | BM48: N/A | BN48: N/A | BO48: N/A | BP48: N/A | BQ48: N/A
B49: Highly contaminated (>100 CFU/100 mL) | C49: N/A | D49: N/A | E49: N/A | F49: N/A | G49: N/A | H49: N/A | I49: N/A | J49: N/A | K49: N/A | L49: N/A | M49: N/A | N49: N/A | O49: N/A | P49: N/A | Q49: N/A | BB49: Highly contaminated (>100 CFU/100 mL) | BC49: N/A | BD49: N/A | BE49: N/A | BF49: N/A | BG49: N/A | BH49: N/A | BI49: N/A | BJ49: N/A | BK49: N/A | BL49: N/A | BM49: N/A | BN49: N/A | BO49: N/A | BP49: N/A | BQ49: N/A
A50: Microbiological quality of improved water sources at point of collection | B50: Not contaminated (No E. coli in 100 mL) | C50: N/A | D50: N/A | E50: N/A | F50: N/A | G50: N/A | H50: N/A | I50: N/A | J50: N/A | K50: N/A | L50: N/A | M50: N/A | N50: N/A | O50: N/A | P50: N/A | Q50: N/A | BA50: Microbiological quality of improved water sources at point of collection | BB50: Not contaminated (No E. coli in 100 mL) | BC50: N/A | BD50: N/A | BE50: N/A | BF50: N/A | BG50: N/A | BH50: N/A | BI50: N/A | BJ50: N/A | BK50: N/A | BL50: N/A | BM50: N/A | BN50: N/A | BO50: N/A | BP50: N/A | BQ50: N/A
B51: Contaminated (E. coli detected in 100 mL) | C51: N/A | D51: N/A | E51: N/A | F51: N/A | G51: N/A | H51: N/A | I51: N/A | J51: N/A | K51: N/A | L51: N/A | M51: N/A | N51: N/A | O51: N/A | P51: N/A | Q51: N/A | BB51: Contaminated (E. coli detected in 100 mL) | BC51: N/A | BD51: N/A | BE51: N/A | BF51: N/A | BG51: N/A | BH51: N/A | BI51: N/A | BJ51: N/A | BK51: N/A | BL51: N/A | BM51: N/A | BN51: N/A | BO51: N/A | BP51: N/A | BQ51: N/A
B52: Highly contaminated (>100 CFU/100 mL) | C52: N/A | D52: N/A | E52: N/A | F52: N/A | G52: N/A | H52: N/A | I52: N/A | J52: N/A | K52: N/A | L52: N/A | M52: N/A | N52: N/A | O52: N/A | P52: N/A | Q52: N/A | BB52: Highly contaminated (>100 CFU/100 mL) | BC52: N/A | BD52: N/A | BE52: N/A | BF52: N/A | BG52: N/A | BH52: N/A | BI52: N/A | BJ52: N/A | BK52: N/A | BL52: N/A | BM52: N/A | BN52: N/A | BO52: N/A | BP52: N/A | BQ52: N/A
A53: Microbiological quality of piped on premises at point of collection | B53: Not contaminated (No E. coli in 100 mL) | C53: N/A | D53: N/A | E53: N/A | F53: N/A | G53: N/A | H53: N/A | I53: N/A | J53: N/A | K53: N/A | L53: N/A | M53: N/A | N53: N/A | O53: N/A | P53: N/A | Q53: N/A | BA53: Microbiological quality of piped on premises at point of collection | BB53: Not contaminated (No E. coli in 100 mL) | BC53: N/A | BD53: N/A | BE53: N/A | BF53: N/A | BG53: N/A | BH53: N/A | BI53: N/A | BJ53: N/A | BK53: N/A | BL53: N/A | BM53: N/A | BN53: N/A | BO53: N/A | BP53: N/A | BQ53: N/A
B54: Contaminated (E. coli detected in 100 mL) | C54: N/A | D54: N/A | E54: N/A | F54: N/A | G54: N/A | H54: N/A | I54: N/A | J54: N/A | K54: N/A | L54: N/A | M54: N/A | N54: N/A | O54: N/A | P54: N/A | Q54: N/A | BB54: Contaminated (E. coli detected in 100 mL) | BC54: N/A | BD54: N/A | BE54: N/A | BF54: N/A | BG54: N/A | BH54: N/A | BI54: N/A | BJ54: N/A | BK54: N/A | BL54: N/A | BM54: N/A | BN54: N/A | BO54: N/A | BP54: N/A | BQ54: N/A
B55: Highly contaminated (>100 CFU/100 mL) | C55: N/A | D55: N/A | E55: N/A | F55: N/A | G55: N/A | H55: N/A | I55: N/A | J55: N/A | K55: N/A | L55: N/A | M55: N/A | N55: N/A | O55: N/A | P55: N/A | Q55: N/A | BB55: Highly contaminated (>100 CFU/100 mL) | BC55: N/A | BD55: N/A | BE55: N/A | BF55: N/A | BG55: N/A | BH55: N/A | BI55: N/A | BJ55: N/A | BK55: N/A | BL55: N/A | BM55: N/A | BN55: N/A | BO55: N/A | BP55: N/A | BQ55: N/A
C56: NATIONAL wealth index quintile | H56: URBAN wealth index quintile | M56: RURAL wealth index quintile | BA56: Raw numbers of respondents: | BB56: Use of drinking water sources | BC56: NATIONAL wealth index quintile | BH56: URBAN wealth index quintile | BM56: RURAL wealth index quintile
A57: Percentage based on weighted population | C57: Poorest | D57: Poor | E57: Middle | F57: Rich | G57: Richest | H57: Poorest | I57: Poor | J57: Middle | K57: Rich | L57: Richest | M57: Poorest | N57: Poor | O57: Middle | P57: Rich | Q57: Richest | BA57: Water data, raw numbers (weighted) | BC57: Poorest | BD57: Poor | BE57: Middle | BF57: Rich | BG57: Richest | BH57: Poorest | BI57: Poor | BJ57: Middle | BK57: Rich | BL57: Richest | BM57: Poorest | BN57: Poor | BO57: Middle | BP57: Rich | BQ57: Richest
A58: Main source of drinking water | B58: Piped into dwelling | C58: 42.26237503 | D58: 56.73508245 | E58: 64.23924179 | F58: 61.61019822 | G58: 57.68685383 | H58: 39.15250469 | I58: 64.33579867 | J58: 70.33395158 | K58: 69.63656919 | L58: 64.29711456 | M58: 42.04311982 | N58: 55.30699427 | O58: 63.18890892 | P58: 58.3643598 | Q58: 57.6655076
B59: Piped into compound, yard or plot | C59: 25.13905231 | D59: 13.15474427 | E59: 3.648276304 | F59: 0.2700798524 | G59: 0 | H59: 24.38517729 | I59: 10.04716533 | J59: 7.082935706 | K59: 1.2658103 | L59: 0 | M59: 26.17617148 | N59: 12.45600649 | O59: 3.523164618 | P59: 0 | Q59: 0
B60: Piped to neighbour | C60: 5.34004271 | D60: 2.675927313 | E60: 0.4064877101 | F60: 0 | G60: 0 | H60: 8.009689038 | I60: 1.288472512 | J60: 0 | K60: 0 | L60: 0 | M60: 4.742164653 | N60: 3.487552607 | O60: 0 | P60: 0 | Q60: 0
B61: Public tap / standpipe | C61: 5.236734224 | D61: 2.303458884 | E61: 0.7741531928 | F61: 0 | G61: 0 | H61: 10.23040543 | I61: 5.961765263 | J61: 1.782718589 | K61: 0 | L61: 0 | M61: 3.595405402 | N61: 1.923210452 | O61: 0.5398624155 | P61: 0 | Q61: 0
B62: Unprotected well | C62: 0 | D62: 0 | E62: 0 | F62: 0.04796984092 | G62: 0 | H62: 0 | I62: 0 | J62: 0 | K62: 0.2531620601 | L62: 0 | M62: 0 | N62: 0 | O62: 0 | P62: 0 | Q62: 0
B63: Protected spring | C63: 1.6081533 | D63: 0.6875413656 | E63: 1.278525447 | F63: 1.008043266 | G63: 0.1448823416 | H63: 0 | I63: 0 | J63: 0.2546740842 | K63: 0.5063241202 | L63: 0.7617697288 | M63: 1.994641584 | N63: 0.7859273481 | O63: 1.578636145 | P63: 1.136372141 | Q63: 0
B64: Unprotected spring | C64: 2.353601185 | D64: 0.3835706947 | E64: 0.2914869854 | F64: 0 | G64: 0.5438111486 | H64: 0.5377654372 | I64: 0 | J64: 0 | K64: 0 | L64: 0 | M64: 2.792937187 | N64: 0.4715564089 | O64: 0.359908277 | P64: 0 | Q64: 0.664458615
B65: Rainwater collection | C65: 5.959932409 | D65: 5.637884196 | E65: 2.899412304 | F65: 1.226471325 | G65: 1.382180636 | H65: 3.707137494 | I65: 1.7814533 | J65: 0.8042339501 | K65: 1.962005966 | L65: 0.5395868913 | M65: 6.521582444 | N65: 7.297823422 | O65: 2.426734485 | P65: 1.24415451 | Q65: 1.563432035
B66: Tanker-truck | C66: 0.2847955024 | D66: 0 | E66: 0 | F66: 0 | G66: 0 | H66: 0 | I66: 0 | J66: 0 | K66: 0 | L66: 0 | M66: 0.3532405474 | N66: 0 | O66: 0 | P66: 0 | Q66: 0
B67: Bottled water | C67: 11.81531333 | D67: 18.42179083 | E67: 26.46241627 | F67: 35.8372375 | G67: 40.24227205 | H67: 13.97732062 | I67: 16.58534492 | J67: 19.74148609 | K67: 26.37612837 | L67: 34.40152882 | M67: 11.78073688 | N67: 18.270929 | O67: 28.38278514 | P67: 39.25511355 | Q67: 40.10660175
A108: =A1026 -> Saint Lucia
A109: =A1034 -> 2012
A110: Use of sanitation facilities
A111: by wealth quintile and sub-national region
A112: Notes:
A113: WHO/UNICEF JMP customised wealth index excludes water,
A114: sanitation and hygiene assets.
A115: Survey used for analysis: | B115: =A1025 -> MICS12
A116: =B1030 -> 
A117: =B1029 -> 
A120: Use of sanitation facilities | C120: NATIONAL wealth index quintile | H120: URBAN wealth index quintile | M120: RURAL wealth index quintile | BA120: Raw numbers of respondents: | BB120: Use of sanitation facilities | BC120: NATIONAL wealth index quintile | BH120: URBAN wealth index quintile | BM120: RURAL wealth index quintile
A121: Weighted percentage (used in graphs) | C121: Poorest | D121: Poor | E121: Middle | F121: Rich | G121: Richest | H121: Poorest | I121: Poor | J121: Middle | K121: Rich | L121: Richest | M121: Poorest | N121: Poor | O121: Middle | P121: Rich | Q121: Richest | BA121: Sanitation data, raw numbers (weighted) | BC121: Poorest | BD121: Poor | BE121: Middle | BF121: Rich | BG121: Richest | BH121: Poorest | BI121: Poor | BJ121: Middle | BK121: Rich | BL121: Richest | BM121: Poorest | BN121: Poor | BO121: Middle | BP121: Rich | BQ121: Richest
A122: Sanitation | B122: Improved | C122: 91.92495427 | D122: 98.00368084 | E122: 99.30772963 | F122: 100 | G122: 100 | H122: 81.05374661 | I122: 88.97944086 | J122: 96.7900454 | K122: 100 | L122: 100 | M122: 95.46572266 | N122: 99.00776672 | O122: 100 | P122: 100 | Q122: 100 | BA122: Sanitation | BB122: Improved | BC122: 913.1995425 | BD122: 970.1724479 | BE122: 985.6359625 | BF122: 995.8581015 | BG122: 989.1713684 | BH122: 152.4753106 | BI122: 168.6147549 | BJ122: 181.5564488 | BK122: 188.6979222 | BL122: 188.1322645 | BM122: 764.6141036 | BN122: 797.2372481 | BO122: 803.8237283 | BP122: 799.3206728 | BQ122: 809.564969
B123: Not Improved | C123: 8.075045726 | D123: 1.996319163 | E123: 0.6922703699 | F123: 0 | G123: 0 | H123: 18.94625339 | I123: 11.02055914 | J123: 3.209954603 | K123: 0 | L123: 0 | M123: 4.534277337 | N123: 0.992233277 | O123: 0 | P123: 0 | Q123: 0 | BB123: Not Improved | BC123: 80.2190017 | BD123: 19.7622562 | BE123: 6.870830446 | BF123: 0 | BG123: 0 | BH123: 35.6409912 | BI123: 20.88380035 | BJ123: 6.021155958 | BK123: 0 | BL123: 0 | BM123: 36.3164108 | BN123: 7.989730033 | BO123: 0 | BP123: 0 | BQ123: 0
A124: Sanitation ladder | B124: Basic | C124: =C122*C129/100 -> 71.80396564 | D124: =D122*D129/100 -> 86.39905993 | E124: =E122*E129/100 -> 94.9319963 | F124: 97.52474773 | G124: 98.96370209 | H124: 58.03164346 | I124: 80.82031203 | J124: 90.56301436 | K124: 95.44308292 | L124: 97.90955351 | M124: 76.09108732 | N124: 86.16729341 | O124: 97.02061224 | P124: 97.33604564 | Q124: 99.21828398 | BA124: Sanitation ladder | BB124: Basic | BC124: 712.9158859 | BD124: 855.2942782 | BE124: 942.2065119 | BF124: 970.7163316 | BG124: 978.9206062 | BH124: 108.8021552 | BI124: 153.1533237 | BJ124: 169.8759331 | BK124: 180.0991143 | BL124: 183.7057502 | BM124: 609.4367371 | BN124: 693.8422929 | BO124: 779.8747025 | BP124: 778.0271348 | BQ124: 803.23647
B125: Limited | C125: =C122*C128/100 -> 20.12098864 | D125: =D122*D128/100 -> 11.60462091 | E125: =E122*E128/100 -> 4.375733335 | F125: 2.475252269 | G125: 1.036297915 | H125: 23.02210315 | I125: 8.159128827 | J125: 6.227031039 | K125: 4.556917082 | L125: 2.090446494 | M125: 19.37463534 | N125: 12.84047331 | O125: 2.979387759 | P125: 2.663954362 | Q125: 0.7817160176 | BB125: Limited | BC125: 199.7740976 | BD125: 114.8781697 | BE125: 43.42945059 | BF125: 24.63751876 | BG125: 10.25076226 | BH125: 43.16359644 | BI125: 15.46143125 | BJ125: 11.68051567 | BK125: 8.598807848 | BL125: 3.922263229 | BM125: 155.1773665 | BN125: 103.3949552 | BO125: 23.94902576 | BP125: 21.29353793 | BQ125: 6.328499036
B126: Unimproved | C126: =100-C124-C125-C127 -> 1.013948697 | D126: =100-D124-D125-D127 -> 0.9901871503 | E126: =100-E124-E125-E127 -> 2.731148641e-14 | F126: 2.309263891e-14 | G126: -4.440892099e-16 | H126: 3.162906816 | I126: 2.072760129 | J126: 1.697827228 | K126: 2.575717417e-14 | L126: 1.554312234e-14 | M126: 0.5092034792 | N126: 0.334019123 | O126: 2.664535259e-15 | P126: -1.554312234e-14 | Q126: 3.330669074e-16 | BB126: Unimproved | BC126: 10.10873484 | BD126: 9.802206236 | BE126: 0 | BF126: 0 | BG126: 0 | BH126: 6.030368791 | BI126: 3.927850498 | BJ126: 3.184743647 | BK126: 0 | BL126: 0 | BM126: 4.078366045 | BN126: 2.68961209 | BO126: 0 | BP126: 0 | BQ126: 0
B127: Open defecation | C127: 7.061097029 | D127: 1.006132013 | E127: 0.6922703699 | F127: 0 | G127: 0 | H127: 15.78334657 | I127: 8.94779901 | J127: 1.512127375 | K127: 0 | L127: 0 | M127: 4.025073858 | N127: 0.6582141541 | O127: 0 | P127: 0 | Q127: 0 | BB127: Open defecation | BC127: 70.11026686 | BD127: 9.960049965 | BE127: 6.870830446 | BF127: 0 | BG127: 0 | BH127: 29.61062241 | BI127: 16.95594985 | BJ127: 2.836412311 | BK127: 0 | BL127: 0 | BM127: 32.23804476 | BN127: 5.300117943 | BO127: 0 | BP127: 0 | BQ127: 0
A128: Shared among Improved Sanitation | B128: Yes | C128: 21.88849458 | D128: 11.84100517 | E128: 4.406236404 | F128: 2.475252269 | G128: 1.036297915 | H128: 28.40350275 | I128: 9.16967869 | J128: 6.43354491 | K128: 4.556917082 | L128: 2.090446494 | M128: 20.29486061 | N128: 12.96915761 | O128: 2.979387759 | P128: 2.663954362 | Q128: 0.7817160176 | BA128: Shared among improved sanitation facilities | BB128: Yes | BC128: N/A | BD128: N/A | BE128: N/A | BF128: N/A | BG128: N/A | BH128: N/A | BI128: N/A | BJ128: N/A | BK128: N/A | BL128: N/A | BM128: N/A | BN128: N/A | BO128: N/A | BP128: N/A | BQ128: N/A
B129: No | C129: 78.11150542 | D129: 88.15899483 | E129: 95.5937636 | F129: 97.52474773 | G129: 98.96370209 | H129: 71.59649725 | I129: 90.83032131 | J129: 93.56645509 | K129: 95.44308292 | L129: 97.90955351 | M129: 79.70513939 | N129: 87.03084239 | O129: 97.02061224 | P129: 97.33604564 | Q129: 99.21828398 | BB129: No | BC129: N/A | BD129: N/A | BE129: N/A | BF129: N/A | BG129: N/A | BH129: N/A | BI129: N/A | BJ129: N/A | BK129: N/A | BL129: N/A | BM129: N/A | BN129: N/A | BO129: N/A | BP129: N/A | BQ129: N/A
A130: Manually calculated ratios | B130: Improved latrines | C130: =C158/(C158+C159)*100 -> 100 | D130: =D158/(D158+D159)*100 -> 99.14517598 | E130: 100 | F130: 100 | G130: 100 | H130: 100 | I130: 100 | J130: 100 | K130: 100 | L130: 100 | M130: 100 | N130: 99.08342059 | O130: 100 | P130: 100 | Q130: 100
B131: Other
B132: Other
C133: NATIONAL wealth index quintile | H133: URBAN wealth index quintile | M133: RURAL wealth index quintile | BA133: Raw numbers of respondents: | BB133: Use of sanitation facilities | BC133: NATIONAL wealth index quintile | BH133: URBAN wealth index quintile | BM133: RURAL wealth index quintile
A134: Percentage based on weighted population | C134: Poorest | D134: Poor | E134: Middle | F134: Rich | G134: Richest | H134: Poorest | I134: Poor | J134: Middle | K134: Rich | L134: Richest | M134: Poorest | N134: Poor | O134: Middle | P134: Rich | Q134: Richest | BA134: Sanitation data, raw numbers (weighted) | BC134: Poorest | BD134: Poor | BE134: Middle | BF134: Rich | BG134: Richest | BH134: Poorest | BI134: Poor | BJ134: Middle | BK134: Rich | BL134: Richest | BM134: Poorest | BN134: Poor | BO134: Middle | BP134: Rich | BQ134: Richest
A135: Sanitation type | B135: Sewer connection | C135: 1.693232863 | D135: 2.521046838 | E135: 5.792699476 | F135: 4.841921616 | G135: 10.93101522 | H135: 7.521334513 | I135: 5.558841186 | J135: 16.12723638 | K135: 11.51722779 | L135: 14.38074895 | M135: 0.3336160726 | N135: 1.432134279 | O135: 2.889851754 | P135: 3.328390532 | Q135: 10.85230133 | BA135: Sanitation type | BB135: Sewer connection | BC135: N/A | BD135: N/A | BE135: N/A | BF135: N/A | BG135: N/A | BH135: N/A | BI135: N/A | BJ135: N/A | BK135: N/A | BL135: N/A | BM135: N/A | BN135: N/A | BO135: N/A | BP135: N/A | BQ135: N/A
B136: Septic tank connection | C136: 36.59600325 | D136: 56.04141052 | E136: 81.84886582 | F136: 94.48381329 | G136: 88.49507496 | H136: 49.68737743 | I136: 69.7393693 | J136: 77.16029132 | K136: 87.47012397 | L136: 84.85748132 | M136: 33.15031496 | N136: 52.23755552 | O136: 84.88251998 | P136: 95.83155568 | Q136: 88.62348911 | BB136: Septic tank connection | BC136: N/A | BD136: N/A | BE136: N/A | BF136: N/A | BG136: N/A | BH136: N/A | BI136: N/A | BJ136: N/A | BK136: N/A | BL136: N/A | BM136: N/A | BN136: N/A | BO136: N/A | BP136: N/A | BQ136: N/A
B137: Improved latrines | C137: 53.63571816 | D137: 39.44122348 | E137: 11.66616433 | F137: 0.6742650986 | G137: 0.5739098222 | H137: 23.84503467 | I137: 13.68123038 | J137: 3.502517699 | K137: 1.01264824 | L137: 0.7617697288 | M137: 61.98179163 | N137: 45.33807693 | O137: 12.22762826 | P137: 0.8400537904 | Q137: 0.5242095648 | BB137: Improved latrines | BC137: N/A | BD137: N/A | BE137: N/A | BF137: N/A | BG137: N/A | BH137: N/A | BI137: N/A | BJ137: N/A | BK137: N/A | BL137: N/A | BM137: N/A | BN137: N/A | BO137: N/A | BP137: N/A | BQ137: N/A
B138: Unimproved facilities | C138: 1.017570579 | D138: 0.9901871503 | E138: 0 | F138: 0 | G138: 0 | H138: 3.205659868 | I138: 2.072760129 | J138: 1.697827228 | K138: 0 | L138: 0 | M138: 0.5092034792 | N138: 0.334019123 | O138: 0 | P138: 0 | Q138: 0 | BB138: Unimproved facilities | BC138: N/A | BD138: N/A | BE138: N/A | BF138: N/A | BG138: N/A | BH138: N/A | BI138: N/A | BJ138: N/A | BK138: N/A | BL138: N/A | BM138: N/A | BN138: N/A | BO138: N/A | BP138: N/A | BQ138: N/A
B139: Open defecation | C139: 7.057475147 | D139: 1.006132013 | E139: 0.6922703699 | F139: 0 | G139: 0 | H139: 15.74059352 | I139: 8.94779901 | J139: 1.512127375 | K139: 0 | L139: 0 | M139: 4.025073858 | N139: 0.6582141541 | O139: 0 | P139: 0 | Q139: 0 | BB139: Open defecation | BC139: N/A | BD139: N/A | BE139: N/A | BF139: N/A | BG139: N/A | BH139: N/A | BI139: N/A | BJ139: N/A | BK139: N/A | BL139: N/A | BM139: N/A | BN139: N/A | BO139: N/A | BP139: N/A | BQ139: N/A
A140: Septic tank emptying practices | B140: Not emptied/treated and disposed in situ | C140: N/A | D140: N/A | E140: N/A | F140: N/A | G140: N/A | H140: N/A | I140: N/A | J140: N/A | K140: N/A | L140: N/A | M140: N/A | N140: N/A | O140: N/A | P140: N/A | Q140: N/A | BA140: Septic tank emptying practices | BB140: Not emptied/treated and disposed in situ | BC140: N/A | BD140: N/A | BE140: N/A | BF140: N/A | BG140: N/A | BH140: N/A | BI140: N/A | BJ140: N/A | BK140: N/A | BL140: N/A | BM140: N/A | BN140: N/A | BO140: N/A | BP140: N/A | BQ140: N/A
B141: Emptied and buried on site | C141: N/A | D141: N/A | E141: N/A | F141: N/A | G141: N/A | H141: N/A | I141: N/A | J141: N/A | K141: N/A | L141: N/A | M141: N/A | N141: N/A | O141: N/A | P141: N/A | Q141: N/A | BB141: Emptied and buried on site | BC141: N/A | BD141: N/A | BE141: N/A | BF141: N/A | BG141: N/A | BH141: N/A | BI141: N/A | BJ141: N/A | BK141: N/A | BL141: N/A | BM141: N/A | BN141: N/A | BO141: N/A | BP141: N/A | BQ141: N/A
B142: Emptied and discharged locally | C142: N/A | D142: N/A | E142: N/A | F142: N/A | G142: N/A | H142: N/A | I142: N/A | J142: N/A | K142: N/A | L142: N/A | M142: N/A | N142: N/A | O142: N/A | P142: N/A | Q142: N/A | BB142: Emptied and discharged locally | BC142: N/A | BD142: N/A | BE142: N/A | BF142: N/A | BG142: N/A | BH142: N/A | BI142: N/A | BJ142: N/A | BK142: N/A | BL142: N/A | BM142: N/A | BN142: N/A | BO142: N/A | BP142: N/A | BQ142: N/A
B143: Emptied and removed offsite | C143: N/A | D143: N/A | E143: N/A | F143: N/A | G143: N/A | H143: N/A | I143: N/A | J143: N/A | K143: N/A | L143: N/A | M143: N/A | N143: N/A | O143: N/A | P143: N/A | Q143: N/A | BB143: Emptied and removed offsite | BC143: N/A | BD143: N/A | BE143: N/A | BF143: N/A | BG143: N/A | BH143: N/A | BI143: N/A | BJ143: N/A | BK143: N/A | BL143: N/A | BM143: N/A | BN143: N/A | BO143: N/A | BP143: N/A | BQ143: N/A
A144: Latrine emptying practices | B144: Not emptied/treated and disposed in situ | C144: N/A | D144: N/A | E144: N/A | F144: N/A | G144: N/A | H144: N/A | I144: N/A | J144: N/A | K144: N/A | L144: N/A | M144: N/A | N144: N/A | O144: N/A | P144: N/A | Q144: N/A | BA144: Latrine emptying practices | BB144: Not emptied/treated and disposed in situ | BC144: N/A | BD144: N/A | BE144: N/A | BF144: N/A | BG144: N/A | BH144: N/A | BI144: N/A | BJ144: N/A | BK144: N/A | BL144: N/A | BM144: N/A | BN144: N/A | BO144: N/A | BP144: N/A | BQ144: N/A
B145: Emptied and buried on site | C145: N/A | D145: N/A | E145: N/A | F145: N/A | G145: N/A | H145: N/A | I145: N/A | J145: N/A | K145: N/A | L145: N/A | M145: N/A | N145: N/A | O145: N/A | P145: N/A | Q145: N/A | BB145: Emptied and buried on site | BC145: N/A | BD145: N/A | BE145: N/A | BF145: N/A | BG145: N/A | BH145: N/A | BI145: N/A | BJ145: N/A | BK145: N/A | BL145: N/A | BM145: N/A | BN145: N/A | BO145: N/A | BP145: N/A | BQ145: N/A
B146: Emptied and discharged locally | C146: N/A | D146: N/A | E146: N/A | F146: N/A | G146: N/A | H146: N/A | I146: N/A | J146: N/A | K146: N/A | L146: N/A | M146: N/A | N146: N/A | O146: N/A | P146: N/A | Q146: N/A | BB146: Emptied and discharged locally | BC146: N/A | BD146: N/A | BE146: N/A | BF146: N/A | BG146: N/A | BH146: N/A | BI146: N/A | BJ146: N/A | BK146: N/A | BL146: N/A | BM146: N/A | BN146: N/A | BO146: N/A | BP146: N/A | BQ146: N/A
B147: Emptied and removed offsite | C147: N/A | D147: N/A | E147: N/A | F147: N/A | G147: N/A | H147: N/A | I147: N/A | J147: N/A | K147: N/A | L147: N/A | M147: N/A | N147: N/A | O147: N/A | P147: N/A | Q147: N/A | BB147: Emptied and removed offsite | BC147: N/A | BD147: N/A | BE147: N/A | BF147: N/A | BG147: N/A | BH147: N/A | BI147: N/A | BJ147: N/A | BK147: N/A | BL147: N/A | BM147: N/A | BN147: N/A | BO147: N/A | BP147: N/A | BQ147: N/A
A148: Shared among improved sanitation facilities | B148: Yes | C148: 20.10976126 | D148: 11.60462091 | E148: 4.375733335 | F148: 2.473998929 | G148: 1.036297915 | H148: 22.94516532 | I148: 8.159128827 | J148: 6.227031039 | K148: 4.556917082 | L148: 2.084843468 | M148: 19.37463534 | N148: 12.84047331 | O148: 2.979387759 | P148: 2.663954362 | Q148: 0.7817160176 | BA148: Shared among improved sanitation facilities | BB148: Yes | BC148: N/A | BD148: N/A | BE148: N/A | BF148: N/A | BG148: N/A | BH148: N/A | BI148: N/A | BJ148: N/A | BK148: N/A | BL148: N/A | BM148: N/A | BN148: N/A | BO148: N/A | BP148: N/A | BQ148: N/A
B149: No | C149: 71.76389952 | D149: 86.39905993 | E149: 94.9319963 | F149: 97.47536624 | G149: 98.96370209 | H149: 57.83770685 | I149: 80.82031203 | J149: 90.56301436 | K149: 95.44308292 | L149: 97.64712644 | M149: 76.09108732 | N149: 86.16729341 | O149: 97.02061224 | P149: 97.33604564 | Q149: 99.21828398 | BB149: No | BC149: N/A | BD149: N/A | BE149: N/A | BF149: N/A | BG149: N/A | BH149: N/A | BI149: N/A | BJ149: N/A | BK149: N/A | BL149: N/A | BM149: N/A | BN149: N/A | BO149: N/A | BP149: N/A | BQ149: N/A
B150: DK/missing | C150: 8.12633921 | D150: 1.996319163 | E150: 0.6922703699 | F150: 0.05063483209 | G150: 0 | H150: 19.21712783 | I150: 11.02055914 | J150: 3.209954603 | K150: 0 | L150: 0.2680300898 | M150: 4.534277337 | N150: 0.992233277 | O150: 0 | P150: 0 | Q150: 0 | BB150: DK/missing | BC150: N/A | BD150: N/A | BE150: N/A | BF150: N/A | BG150: N/A | BH150: N/A | BI150: N/A | BJ150: N/A | BK150: N/A | BL150: N/A | BM150: N/A | BN150: N/A | BO150: N/A | BP150: N/A | BQ150: N/A
A151: Shared among all sanitation facilities | B151: Yes | C151: 21.8408247 | D151: 11.92838748 | E151: 4.406236404 | F151: 2.473998929 | G151: 1.036297915 | H151: 27.53296169 | I151: 10.12992444 | J151: 6.322637369 | K151: 4.556917082 | L151: 2.084843468 | M151: 20.37013576 | N151: 12.92555112 | O151: 2.979387759 | P151: 2.663954362 | Q151: 0.7817160176 | BA151: Shared among all sanitation facilities | BB151: Yes | BC151: N/A | BD151: N/A | BE151: N/A | BF151: N/A | BG151: N/A | BH151: N/A | BI151: N/A | BJ151: N/A | BK151: N/A | BL151: N/A | BM151: N/A | BN151: N/A | BO151: N/A | BP151: N/A | BQ151: N/A
B152: No | C152: 78.10398691 | D152: 88.07161252 | E152: 95.5937636 | F152: 97.47536624 | G152: 98.96370209 | H152: 72.14556151 | I152: 89.87007556 | J152: 93.67736263 | K152: 95.44308292 | L152: 97.64712644 | M152: 79.62986424 | N152: 87.07444888 | O152: 97.02061224 | P152: 97.33604564 | Q152: 99.21828398 | BB152: No | BC152: N/A | BD152: N/A | BE152: N/A | BF152: N/A | BG152: N/A | BH152: N/A | BI152: N/A | BJ152: N/A | BK152: N/A | BL152: N/A | BM152: N/A | BN152: N/A | BO152: N/A | BP152: N/A | BQ152: N/A
A153: Type of toilet facility | B153: Flush to piped sewer system | C153: 1.693232863 | D153: 2.521046838 | E153: 5.792699476 | F153: 4.841921616 | G153: 10.93101522 | H153: 7.521334513 | I153: 5.558841186 | J153: 16.12723638 | K153: 11.51722779 | L153: 14.38074895 | M153: 0.3336160726 | N153: 1.432134279 | O153: 2.889851754 | P153: 3.328390532 | Q153: 10.85230133 | BA153: Type of toilet facility | BB153: Flush to piped sewer system | BC153: 16.82088926 | BD153: 24.95671755 | BE153: 57.49293579 | BF153: 48.21866868 | BG153: 108.1264728 | BH153: 14.14885633 | BI153: 10.53392374 | BJ153: 30.25108372 | BK153: 21.73276953 | BL153: 27.05482865 | BM153: 2.672032926 | BN153: 11.53193158 | BO153: 23.22931411 | BP153: 26.60451359 | BQ153: 87.85642989
B154: Flush to septic tank | C154: 36.59600325 | D154: 56.04141052 | E154: 81.84886582 | F154: 94.48381329 | G154: 88.49507496 | H154: 49.68737743 | I154: 69.7393693 | J154: 77.16029132 | K154: 87.47012397 | L154: 84.85748132 | M154: 33.15031496 | N154: 52.23755552 | O154: 84.88251998 | P154: 95.83155568 | Q154: 88.62348911 | BB154: Flush to septic tank | BC154: 363.5514827 | BD154: 554.7733714 | BE154: 812.3555532 | BF154: 940.9247092 | BG154: 875.367944 | BH154: 93.47005688 | BI154: 132.1550973 | BJ154: 144.7354263 | BK154: 165.0543064 | BL154: 159.6443012 | BM154: 265.5109881 | BN154: 420.6308898 | BO154: 682.3058368 | BP154: 766.0014356 | BQ154: 717.4647221
B155: Flush to pit (latrine) | C155: 1.074072511 | D155: 0.541511569 | E155: 0.1275255561 | F155: 0 | G155: 0 | H155: 0 | I155: 0 | J155: 0 | K155: 0 | L155: 0 | M155: 1.332204894 | N155: 0.6657266949 | O155: 0.1574598712 | P155: 0 | Q155: 0 | BB155: Flush to pit (latrine) | BC155: 10.67003551 | BD155: 5.360610948 | BE155: 1.265699807 | BF155: 0 | BG155: 0 | BH155: 0 | BI155: 0 | BJ155: 0 | BK155: 0 | BL155: 0 | BM155: 10.67003551 | BN155: 5.360610948 | BO155: 1.265699807 | BP155: 0 | BQ155: 0
B156: Flush to unknown place / Not sure / DK where | C156: 0 | D156: 0.05079670993 | E156: 0.3825766684 | F156: 0 | G156: 0.5739098222 | H156: 0 | I156: 0.2653604717 | J156: 0 | K156: 0 | L156: 0.7617697288 | M156: 0 | N156: 0 | O156: 0.4723796136 | P156: 0 | Q156: 0.5242095648 | BB156: Flush to unknown place / Not sure / DK where | BC156: 0 | BD156: 0.5028542601 | BE156: 3.797099422 | BF156: 0 | BG156: 5.676951642 | BH156: 0 | BI156: 0.5028542601 | BJ156: 0 | BK156: 0 | BL156: 1.433134641 | BM156: 0 | BN156: 0 | BO156: 3.797099422 | BP156: 0 | BQ156: 4.243817001
B157: Ventilated Improved Pit latrine (VIP) | C157: 4.245516684 | D157: 7.336769928 | E157: 3.500221377 | F157: 0.4051197786 | G157: 0 | H157: 1.299703542 | I157: 0.5987195642 | J157: 0 | K157: 1.01264824 | L157: 0 | M157: 6.066780273 | N157: 8.564450647 | O157: 3.296816053 | P157: 0.5047308637 | Q157: 0 | BB157: Ventilated Improved Pit latrine (VIP) | BC157: 42.17575004 | BD157: 72.62923168 | BE157: 34.73993494 | BF157: 4.034418135 | BG157: 0 | BH157: 2.444954238 | BI157: 1.134564924 | BJ157: 0 | BK157: 1.910846188 | BL157: 0 | BM157: 48.59069445 | BN157: 68.96326714 | BO157: 26.50058971 | BP157: 4.034418135 | BQ157: 0
B158: Pit latrine with slab | C158: 48.31612896 | D158: 31.51214528 | E158: 7.655840733 | F158: 0.26914532 | G158: 0 | H158: 22.54533113 | I158: 12.81715034 | J158: 3.502517699 | K158: 0 | L158: 0 | M158: 54.58280646 | N158: 36.10789958 | O158: 8.300972724 | P158: 0.3353229267 | Q158: 0 | BB158: Pit latrine with slab | BC158: 479.9813849 | BD158: 311.9496621 | BE158: 75.98473933 | BF158: 2.680305474 | BG158: 0 | BH158: 42.41144314 | BI158: 24.28831473 | BJ158: 6.569938807 | BK158: 0 | BL158: 0 | BM158: 437.1703526 | BN158: 290.7505487 | BO158: 66.72518843 | BP158: 2.680305474 | BQ158: 0
B159: Pit latrine without slab / Open pit | C159: 0 | D159: 0.2716959087 | E159: 0 | F159: 0 | G159: 0 | H159: 0 | I159: 0 | J159: 0 | K159: 0 | L159: 0 | M159: 0 | N159: 0.334019123 | O159: 0 | P159: 0 | Q159: 0 | BB159: Pit latrine without slab / Open pit | BC159: 0 | BD159: 2.68961209 | BE159: 0 | BF159: 0 | BG159: 0 | BH159: 0 | BI159: 0 | BJ159: 0 | BK159: 0 | BL159: 0 | BM159: 0 | BN159: 2.68961209 | BO159: 0 | BP159: 0 | BQ159: 0
B160: Bucket | C160: 0.8279179222 | D160: 0.5147399939 | E160: 0 | F160: 0 | G160: 0 | H160: 2.951715078 | I160: 1.008369792 | J160: 1.697827228 | K160: 0 | L160: 0 | M160: 0.3336160726 | N160: 0 | O160: 0 | P160: 0 | Q160: 0 | BB160: Bucket | BC160: 8.22469017 | BD160: 5.095589836 | BE160: 0 | BF160: 0 | BG160: 0 | BH160: 5.552657244 | BI160: 1.910846188 | BJ160: 3.184743647 | BK160: 0 | BL160: 0 | BM160: 2.672032926 | BN160: 0 | BO160: 0 | BP160: 0 | BQ160: 0
B161: No facility, Bush, Field | C161: 7.057475147 | D161: 1.006132013 | E161: 0.6922703699 | F161: 0 | G161: 0 | H161: 15.74059352 | I161: 8.94779901 | J161: 1.512127375 | K161: 0 | L161: 0 | M161: 4.025073858 | N161: 0.6582141541 | O161: 0 | P161: 0 | Q161: 0 | BB161: No facility, Bush, Field | BC161: 70.11026686 | BD161: 9.960049965 | BE161: 6.870830446 | BF161: 0 | BG161: 0 | BH161: 29.61062241 | BI161: 16.95594985 | BJ161: 2.836412311 | BK161: 0 | BL161: 0 | BM161: 32.23804476 | BN161: 5.300117943 | BO161: 0 | BP161: 0 | BQ161: 0
B162: Other | C162: 0.1896526572 | D162: 0.2037512476 | E162: 0 | F162: 0 | G162: 0 | H162: 0.2539447898 | I162: 1.064390336 | J162: 0 | K162: 0 | L162: 0 | M162: 0.1755874066 | N162: 0 | O162: 0 | P162: 0 | Q162: 0 | BB162: Other | BC162: 1.884044666 | BD162: 2.01700431 | BE162: 0 | BF162: 0 | BG162: 0 | BH162: 0.4777115471 | BI162: 2.01700431 | BJ162: 0 | BK162: 0 | BL162: 0 | BM162: 1.406333119 | BN162: 0 | BO162: 0 | BP162: 0 | BQ162: 0
BB163: Total | BC163: 993.4185442 | BD163: 989.9347041 | BE163: 992.5067929 | BF163: 995.8581015 | BG163: 989.1713684 | BH163: 188.1163018 | BI163: 189.4985553 | BJ163: 187.5776048 | BK163: 188.6979222 | BL163: 188.1322645 | BM163: 800.9305144 | BN163: 805.2269781 | BO163: 803.8237283 | BP163: 799.3206728 | BQ163: 809.564969
A208: =A1026 -> Saint Lucia
A209: =A1034 -> 2012
A210: Access to hygiene facilities
A211: by wealth quintile and sub-national region
A212: Notes:
A213: WHO/UNICEF JMP customised wealth index excludes water,
A214: sanitation and hygiene assets.
A215: Survey used for analysis: | B215: =A1025 -> MICS12
A220: Access to handwashing | C220: NATIONAL wealth index quintile | H220: URBAN wealth index quintile | M220: RURAL wealth index quintile | BA220: Raw numbers of respondents: | BB220: Access to handwashing | BC220: NATIONAL wealth index quintile | BH220: URBAN wealth index quintile | BM220: RURAL wealth index quintile
A221: Weighted percentage (used in graphs) | C221: Poorest | D221: Poor | E221: Middle | F221: Rich | G221: Richest | H221: Poorest | I221: Poor | J221: Middle | K221: Rich | L221: Richest | M221: Poorest | N221: Poor | O221: Middle | P221: Rich | Q221: Richest | BA221: Hygiene data, raw numbers (weighted) | BC221: Poorest | BD221: Poor | BE221: Middle | BF221: Rich | BG221: Richest | BH221: Poorest | BI221: Poor | BJ221: Middle | BK221: Rich | BL221: Richest | BM221: Poorest | BN221: Poor | BO221: Middle | BP221: Rich | BQ221: Richest
A222: Hygiene ladder | B222: Basic | C222: 69.68906407 | D222: 85.20066099 | E222: 90.75416782 | F222: 95.11956514 | G222: 95.69936993 | H222: 66.77810562 | I222: 88.28401651 | J222: 88.83541529 | K222: 98.37454514 | L222: 96.51012434 | M222: 70.53857853 | N222: 84.58311422 | O222: 90.88141077 | P222: 94.43430444 | Q222: 95.40906364 | BA222: Hygiene ladder | BB222: Basic | BC222: 677.3356332 | BD222: 817.1756781 | BE222: 840.061292 | BF222: 935.4346168 | BG222: 887.479586 | BH222: 119.600137 | BI222: 159.8862218 | BJ222: 156.7856364 | BK222: 178.2887897 | BL222: 178.0848728 | BM222: 557.521355 | BN222: 658.9465445 | BO222: 685.1591272 | BP222: 747.3049606 | BQ222: 715.9091612
B223: Limited | C223: 15.63194298 | D223: 11.06455159 | E223: 5.436142448 | F223: 3.155841065 | G223: 2.316865944 | H223: 17.99825707 | I223: 8.99028872 | J223: 8.728523969 | K223: 0 | L223: 1.294438996 | M223: 15.0235217 | N223: 11.40937532 | O223: 4.884603018 | P223: 3.921846803 | Q223: 2.545076704 | BB223: Limited | BC223: 151.9330491 | BD223: 106.1222101 | BE223: 50.31937329 | BF223: 31.03549699 | BG223: 21.48573424 | BH223: 32.2350266 | BI223: 16.28180675 | BJ223: 15.40497312 | BK223: 0 | BL223: 2.388557736 | BM223: 118.7425994 | BN223: 88.8849803 | BO223: 36.82524635 | BP223: 31.03549699 | BQ223: 19.0971765
B224: No facility | C224: 14.67899295 | D224: 3.734787414 | E224: 3.809689729 | F224: 1.724593791 | G224: 1.983764127 | H224: 15.22363731 | I224: 2.725694774 | J224: 2.436060738 | K224: 1.62545486 | L224: 2.195436666 | M224: 14.43789976 | N224: 4.007510466 | O224: 4.233986217 | P224: 1.643848758 | Q224: 2.04585966 | BB224: No facility | BC224: 142.6709501 | BD224: 35.82105352 | BE224: 35.26419726 | BF224: 16.96017775 | BG224: 18.39667458 | BH224: 27.26565975 | BI224: 4.936352653 | BJ224: 4.299403924 | BK224: 2.945887874 | BL224: 4.051119633 | BM224: 114.1139729 | BN224: 31.22059524 | BO224: 31.92021643 | BP224: 13.00858135 | BQ224: 15.35126347
A225: Place where household members most often wash their hands | B225: Observed | C225: 83.47626357 | D225: 93.26856452 | E225: 89.71028426 | F225: 97.0489784 | G225: 91.89159222 | H225: 80.71345339 | I225: 92.96536761 | J225: 91.79699768 | K225: 94.48370583 | L225: 95.92901622 | M225: 84.43478457 | N225: 92.87213979 | O225: 89.8187436 | P225: 97.37524427 | Q225: 90.79028439 | BA225: Observed handwashing place | BB225: Fixed | BC225: N/A | BD225: N/A | BE225: N/A | BF225: N/A | BG225: N/A | BH225: N/A | BI225: N/A | BJ225: N/A | BK225: N/A | BL225: N/A | BM225: N/A | BN225: N/A | BO225: N/A | BP225: N/A | BQ225: N/A
B226: Not in dwelling/plot/yard | C226: 8.667930773 | D226: 1.220899517 | E226: 0.7326355032 | F226: 0.4822783421 | G226: 0 | H226: 10.59292101 | I226: 0.2520924481 | J226: 1.528044505 | K226: 0 | L226: 0.5345752483 | M226: 8.263116369 | N226: 1.322977703 | O226: 0.6668888662 | P226: 0.4750408129 | Q226: 0 | BB226: Mobile | BC226: N/A | BD226: N/A | BE226: N/A | BF226: N/A | BG226: N/A | BH226: N/A | BI226: N/A | BJ226: N/A | BK226: N/A | BL226: N/A | BM226: N/A | BN226: N/A | BO226: N/A | BP226: N/A | BQ226: N/A
B227: No permission to see | C227: 2.162121081 | D227: 3.112908581 | E227: 6.73667232 | F227: 1.247949879 | G227: 6.248601165 | H227: 4.792502505 | I227: 4.429677096 | J227: 5.910935558 | K227: 3.955128135 | L227: 1.917647853 | M227: 1.317540899 | N227: 3.250618627 | O227: 6.210209601 | P227: 0.9973010966 | Q227: 7.313479474 | BA227: Water / Soap | BB227: Water and soap | BC227: N/A | BD227: N/A | BE227: N/A | BF227: N/A | BG227: N/A | BH227: N/A | BI227: N/A | BJ227: N/A | BK227: N/A | BL227: N/A | BM227: N/A | BN227: N/A | BO227: N/A | BP227: N/A | BQ227: N/A
B228: Other reason | C228: 5.693684576 | D228: 2.397627379 | E228: 2.820407912 | F228: 1.220793383 | G228: 1.859806619 | H228: 3.901123097 | I228: 2.352862849 | J228: 0.7640222526 | K228: 1.561166037 | L228: 1.618760674 | M228: 5.984558161 | N228: 2.554263881 | O228: 3.304157932 | P228: 1.152413824 | Q228: 1.896236134 | BB228: Water only | BC228: N/A | BD228: N/A | BE228: N/A | BF228: N/A | BG228: N/A | BH228: N/A | BI228: N/A | BJ228: N/A | BK228: N/A | BL228: N/A | BM228: N/A | BN228: N/A | BO228: N/A | BP228: N/A | BQ228: N/A
BB229: Soap only | BC229: N/A | BD229: N/A | BE229: N/A | BF229: N/A | BG229: N/A | BH229: N/A | BI229: N/A | BJ229: N/A | BK229: N/A | BL229: N/A | BM229: N/A | BN229: N/A | BO229: N/A | BP229: N/A | BQ229: N/A
BB230: Neither | BC230: N/A | BD230: N/A | BE230: N/A | BF230: N/A | BG230: N/A | BH230: N/A | BI230: N/A | BJ230: N/A | BK230: N/A | BL230: N/A | BM230: N/A | BN230: N/A | BO230: N/A | BP230: N/A | BQ230: N/A
BA231: Place where household members most often wash their hands | BB231: Observed | BC231: 829.2686823 | BD231: 923.2978882 | BE231: 890.3806653 | BF231: 966.4701137 | BG231: 908.9653202 | BH231: 151.8351636 | BI231: 176.1680285 | BJ231: 172.1906095 | BK231: 178.2887897 | BL231: 180.4734306 | BM231: 676.2639544 | BN231: 747.8315248 | BO231: 721.9843735 | BP231: 778.3404576 | BQ231: 735.0063377
BB232: Not in dwelling/plot/yard | BC232: 86.10883169 | BD232: 12.08610802 | BE232: 7.271457136 | BF232: 4.802807942 | BG232: 0 | BH232: 19.92701125 | BI232: 0.4777115471 | BJ232: 2.866269283 | BK232: 0 | BL232: 1.00570852 | BM232: 66.18182044 | BN232: 10.65297338 | BO232: 5.360610948 | BP232: 3.797099422 | BQ232: 0
BB233: No permission to see | BC233: 21.47891176 | BD233: 30.81576235 | BE233: 66.86193039 | BF233: 12.42780997 | BG233: 61.80937365 | BH233: 9.015478475 | BI233: 8.3941741 | BJ233: 11.08759134 | BK233: 7.46324461 | BL233: 3.607714332 | BM233: 10.5525871 | BN233: 26.17485814 | BO233: 49.91913835 | BP233: 7.971633835 | BQ233: 59.20736784
BB234: Other reason | BC234: 56.56211843 | BD234: 23.7349455 | BE234: 27.99274012 | BF234: 12.1573698 | BG234: 18.39667458 | BH234: 7.338648499 | BI234: 4.458641106 | BJ234: 1.433134641 | BK234: 2.945887874 | BL234: 3.045411113 | BM234: 47.93215246 | BN234: 20.56762187 | BO234: 26.55960548 | BP234: 9.21148193 | BQ234: 15.35126347
BB235: Total | BC235: 993.4185442 | BD235: 989.9347041 | BE235: 992.5067929 | BF235: 995.8581015 | BG235: 989.1713684 | BH235: 188.1163018 | BI235: 189.4985553 | BJ235: 187.5776048 | BK235: 188.6979222 | BL235: 188.1322645 | BM235: 800.9305144 | BN235: 805.2269781 | BO235: 803.8237283 | BP235: 799.3206728 | BQ235: 809.564969
BA259: Raw numbers of respondents: | BB259: Menstrual health and hygiene | BC259: NATIONAL wealth index quintile | BH259: URBAN wealth index quintile | BM259: RURAL wealth index quintile
BA260: MHH data, raw numbers (weighted) | BC260: Poorest | BD260: Poor | BE260: Middle | BF260: Rich | BG260: Richest | BH260: Poorest | BI260: Poor | BJ260: Middle | BK260: Rich | BL260: Richest | BM260: Poorest | BN260: Poor | BO260: Middle | BP260: Rich | BQ260: Richest
BA261: Private place to wash and change | BB261: Yes | BC261: N/A | BD261: N/A | BE261: N/A | BF261: N/A | BG261: N/A | BH261: N/A | BI261: N/A | BJ261: N/A | BK261: N/A | BL261: N/A | BM261: N/A | BN261: N/A | BO261: N/A | BP261: N/A | BQ261: N/A
BB262: No | BC262: N/A | BD262: N/A | BE262: N/A | BF262: N/A | BG262: N/A | BH262: N/A | BI262: N/A | BJ262: N/A | BK262: N/A | BL262: N/A | BM262: N/A | BN262: N/A | BO262: N/A | BP262: N/A | BQ262: N/A
BB263: DK/not sure/missing | BC263: N/A | BD263: N/A | BE263: N/A | BF263: N/A | BG263: N/A | BH263: N/A | BI263: N/A | BJ263: N/A | BK263: N/A | BL263: N/A | BM263: N/A | BN263: N/A | BO263: N/A | BP263: N/A | BQ263: N/A
BA264: Use of menstrual materials | BB264: Materials reusable | BC264: N/A | BD264: N/A | BE264: N/A | BF264: N/A | BG264: N/A | BH264: N/A | BI264: N/A | BJ264: N/A | BK264: N/A | BL264: N/A | BM264: N/A | BN264: N/A | BO264: N/A | BP264: N/A | BQ264: N/A
BB265: Materials not reusable | BC265: N/A | BD265: N/A | BE265: N/A | BF265: N/A | BG265: N/A | BH265: N/A | BI265: N/A | BJ265: N/A | BK265: N/A | BL265: N/A | BM265: N/A | BN265: N/A | BO265: N/A | BP265: N/A | BQ265: N/A
BB266: No materials used | BC266: N/A | BD266: N/A | BE266: N/A | BF266: N/A | BG266: N/A | BH266: N/A | BI266: N/A | BJ266: N/A | BK266: N/A | BL266: N/A | BM266: N/A | BN266: N/A | BO266: N/A | BP266: N/A | BQ266: N/A
BB267: DK/not sure/missing | BC267: N/A | BD267: N/A | BE267: N/A | BF267: N/A | BG267: N/A | BH267: N/A | BI267: N/A | BJ267: N/A | BK267: N/A | BL267: N/A | BM267: N/A | BN267: N/A | BO267: N/A | BP267: N/A | BQ267: N/A
BA268: Use of menstrual materials with private place to wash and change | BB268: Materials reusable | BC268: N/A | BD268: N/A | BE268: N/A | BF268: N/A | BG268: N/A | BH268: N/A | BI268: N/A | BJ268: N/A | BK268: N/A | BL268: N/A | BM268: N/A | BN268: N/A | BO268: N/A | BP268: N/A | BQ268: N/A
BB269: Materials not reusable | BC269: N/A | BD269: N/A | BE269: N/A | BF269: N/A | BG269: N/A | BH269: N/A | BI269: N/A | BJ269: N/A | BK269: N/A | BL269: N/A | BM269: N/A | BN269: N/A | BO269: N/A | BP269: N/A | BQ269: N/A
BB270: No materials used | BC270: N/A | BD270: N/A | BE270: N/A | BF270: N/A | BG270: N/A | BH270: N/A | BI270: N/A | BJ270: N/A | BK270: N/A | BL270: N/A | BM270: N/A | BN270: N/A | BO270: N/A | BP270: N/A | BQ270: N/A
BA271: Awareness of menstruation before menarche | BB271: Yes | BC271: N/A | BD271: N/A | BE271: N/A | BF271: N/A | BG271: N/A | BH271: N/A | BI271: N/A | BJ271: N/A | BK271: N/A | BL271: N/A | BM271: N/A | BN271: N/A | BO271: N/A | BP271: N/A | BQ271: N/A
BB272: No | BC272: N/A | BD272: N/A | BE272: N/A | BF272: N/A | BG272: N/A | BH272: N/A | BI272: N/A | BJ272: N/A | BK272: N/A | BL272: N/A | BM272: N/A | BN272: N/A | BO272: N/A | BP272: N/A | BQ272: N/A
BB273: DK/not sure/missing | BC273: N/A | BD273: N/A | BE273: N/A | BF273: N/A | BG273: N/A | BH273: N/A | BI273: N/A | BJ273: N/A | BK273: N/A | BL273: N/A | BM273: N/A | BN273: N/A | BO273: N/A | BP273: N/A | BQ273: N/A
BA274: Participation in (all) activities during menstruation | BB274: Yes | BC274: N/A | BD274: N/A | BE274: N/A | BF274: N/A | BG274: N/A | BH274: N/A | BI274: N/A | BJ274: N/A | BK274: N/A | BL274: N/A | BM274: N/A | BN274: N/A | BO274: N/A | BP274: N/A | BQ274: N/A
BB275: No | BC275: N/A | BD275: N/A | BE275: N/A | BF275: N/A | BG275: N/A | BH275: N/A | BI275: N/A | BJ275: N/A | BK275: N/A | BL275: N/A | BM275: N/A | BN275: N/A | BO275: N/A | BP275: N/A | BQ275: N/A
BB276: DK/not sure/missing/no such activity | BC276: N/A | BD276: N/A | BE276: N/A | BF276: N/A | BG276: N/A | BH276: N/A | BI276: N/A | BJ276: N/A | BK276: N/A | BL276: N/A | BM276: N/A | BN276: N/A | BO276: N/A | BP276: N/A | BQ276: N/A
BA277: Participation in specific activities during menstruation | BB277: Did not go to school (amongst those usually attending school) | BC277: N/A | BD277: N/A | BE277: N/A | BF277: N/A | BG277: N/A | BH277: N/A | BI277: N/A | BJ277: N/A | BK277: N/A | BL277: N/A | BM277: N/A | BN277: N/A | BO277: N/A | BP277: N/A | BQ277: N/A
BB278: Did not go to work (amongst those who usually work) | BC278: N/A | BD278: N/A | BE278: N/A | BF278: N/A | BG278: N/A | BH278: N/A | BI278: N/A | BJ278: N/A | BK278: N/A | BL278: N/A | BM278: N/A | BN278: N/A | BO278: N/A | BP278: N/A | BQ278: N/A
BB279: Did not participate in social activities | BC279: N/A | BD279: N/A | BE279: N/A | BF279: N/A | BG279: N/A | BH279: N/A | BI279: N/A | BJ279: N/A | BK279: N/A | BL279: N/A | BM279: N/A | BN279: N/A | BO279: N/A | BP279: N/A | BQ279: N/A
BB280: Did not cook food | BC280: N/A | BD280: N/A | BE280: N/A | BF280: N/A | BG280: N/A | BH280: N/A | BI280: N/A | BJ280: N/A | BK280: N/A | BL280: N/A | BM280: N/A | BN280: N/A | BO280: N/A | BP280: N/A | BQ280: N/A
BB281: Did not eat with others | BC281: N/A | BD281: N/A | BE281: N/A | BF281: N/A | BG281: N/A | BH281: N/A | BI281: N/A | BJ281: N/A | BK281: N/A | BL281: N/A | BM281: N/A | BN281: N/A | BO281: N/A | BP281: N/A | BQ281: N/A
BB282: Did not bathe in regular place | BC282: N/A | BD282: N/A | BE282: N/A | BF282: N/A | BG282: N/A | BH282: N/A | BI282: N/A | BJ282: N/A | BK282: N/A | BL282: N/A | BM282: N/A | BN282: N/A | BO282: N/A | BP282: N/A | BQ282: N/A
BB283: Did not participate in other activities | BC283: N/A | BD283: N/A | BE283: N/A | BF283: N/A | BG283: N/A | BH283: N/A | BI283: N/A | BJ283: N/A | BK283: N/A | BL283: N/A | BM283: N/A | BN283: N/A | BO283: N/A | BP283: N/A | BQ283: N/A
BB284: DK/not sure/missing/no such activity | BC284: N/A | BD284: N/A | BE284: N/A | BF284: N/A | BG284: N/A | BH284: N/A | BI284: N/A | BJ284: N/A | BK284: N/A | BL284: N/A | BM284: N/A | BN284: N/A | BO284: N/A | BP284: N/A | BQ284: N/A
BA339: Raw numbers of respondents: | BB339: Basic water, sanitation and hygiene | BC339: NATIONAL wealth index quintile | BH339: URBAN wealth index quintile | BM339: RURAL wealth index quintile
BA340: WatSan data, raw numbers (weighted) | BC340: Poorest | BD340: Poor | BE340: Middle | BF340: Rich | BG340: Richest | BH340: Poorest | BI340: Poor | BJ340: Middle | BK340: Rich | BL340: Richest | BM340: Poorest | BN340: Poor | BO340: Middle | BP340: Rich | BQ340: Richest
BA341: Use of Basic Water Sanitation and Hygiene | BB341: Yes | BC341: N/A | BD341: N/A | BE341: N/A | BF341: N/A | BG341: N/A | BH341: N/A | BI341: N/A | BJ341: N/A | BK341: N/A | BL341: N/A | BM341: N/A | BN341: N/A | BO341: N/A | BP341: N/A | BQ341: N/A
BB342: No | BC342: N/A | BD342: N/A | BE342: N/A | BF342: N/A | BG342: N/A | BH342: N/A | BI342: N/A | BJ342: N/A | BK342: N/A | BL342: N/A | BM342: N/A | BN342: N/A | BO342: N/A | BP342: N/A | BQ342: N/A
BA343: Use of Basic Water and Sanitation | BB343: Yes | BC343: N/A | BD343: N/A | BE343: N/A | BF343: N/A | BG343: N/A | BH343: N/A | BI343: N/A | BJ343: N/A | BK343: N/A | BL343: N/A | BM343: N/A | BN343: N/A | BO343: N/A | BP343: N/A | BQ343: N/A
BB344: No | BC344: N/A | BD344: N/A | BE344: N/A | BF344: N/A | BG344: N/A | BH344: N/A | BI344: N/A | BJ344: N/A | BK344: N/A | BL344: N/A | BM344: N/A | BN344: N/A | BO344: N/A | BP344: N/A | BQ344: N/A
BA345: Use of Basic Water and Hygiene | BB345: Yes | BC345: N/A | BD345: N/A | BE345: N/A | BF345: N/A | BG345: N/A | BH345: N/A | BI345: N/A | BJ345: N/A | BK345: N/A | BL345: N/A | BM345: N/A | BN345: N/A | BO345: N/A | BP345: N/A | BQ345: N/A
BB346: No | BC346: N/A | BD346: N/A | BE346: N/A | BF346: N/A | BG346: N/A | BH346: N/A | BI346: N/A | BJ346: N/A | BK346: N/A | BL346: N/A | BM346: N/A | BN346: N/A | BO346: N/A | BP346: N/A | BQ346: N/A
BA347: Use of Basic Sanitation and Hygiene | BB347: Yes | BC347: N/A | BD347: N/A | BE347: N/A | BF347: N/A | BG347: N/A | BH347: N/A | BI347: N/A | BJ347: N/A | BK347: N/A | BL347: N/A | BM347: N/A | BN347: N/A | BO347: N/A | BP347: N/A | BQ347: N/A
BB348: No | BC348: N/A | BD348: N/A | BE348: N/A | BF348: N/A | BG348: N/A | BH348: N/A | BI348: N/A | BJ348: N/A | BK348: N/A | BL348: N/A | BM348: N/A | BN348: N/A | BO348: N/A | BP348: N/A | BQ348: N/A
BA349: Use of Basic Water | BB349: Yes | BC349: N/A | BD349: N/A | BE349: N/A | BF349: N/A | BG349: N/A | BH349: N/A | BI349: N/A | BJ349: N/A | BK349: N/A | BL349: N/A | BM349: N/A | BN349: N/A | BO349: N/A | BP349: N/A | BQ349: N/A
BB350: No | BC350: N/A | BD350: N/A | BE350: N/A | BF350: N/A | BG350: N/A | BH350: N/A | BI350: N/A | BJ350: N/A | BK350: N/A | BL350: N/A | BM350: N/A | BN350: N/A | BO350: N/A | BP350: N/A | BQ350: N/A
BA351: Use of Basic Sanitation | BB351: Yes | BC351: N/A | BD351: N/A | BE351: N/A | BF351: N/A | BG351: N/A | BH351: N/A | BI351: N/A | BJ351: N/A | BK351: N/A | BL351: N/A | BM351: N/A | BN351: N/A | BO351: N/A | BP351: N/A | BQ351: N/A
BB352: No | BC352: N/A | BD352: N/A | BE352: N/A | BF352: N/A | BG352: N/A | BH352: N/A | BI352: N/A | BJ352: N/A | BK352: N/A | BL352: N/A | BM352: N/A | BN352: N/A | BO352: N/A | BP352: N/A | BQ352: N/A
BA353: Access to Basic Hygiene | BB353: Yes | BC353: N/A | BD353: N/A | BE353: N/A | BF353: N/A | BG353: N/A | BH353: N/A | BI353: N/A | BJ353: N/A | BK353: N/A | BL353: N/A | BM353: N/A | BN353: N/A | BO353: N/A | BP353: N/A | BQ353: N/A
BB354: No | BC354: N/A | BD354: N/A | BE354: N/A | BF354: N/A | BG354: N/A | BH354: N/A | BI354: N/A | BJ354: N/A | BK354: N/A | BL354: N/A | BM354: N/A | BN354: N/A | BO354: N/A | BP354: N/A | BQ354: N/A
C399: INITIAL (national) Wealth Index | H399: URBAN Wealth Index | M399: RURAL Wealth Index
C400: Component Matrix | H400: Component Matrix | M400: Component Matrix
E401: Component | J401: Component | O401: Component
B402: Note: The INITIAL (national) Wealth Index is based on the first component of the Principal Component Analysis (PCA) which has been obtained at national level. The final national-level (NATIONAL) Wealth Index is based on the URBAN and RURAL specific wealth indexes. Regression procedures are used to establish the relationships between the two sets of scores (urban and rural) and the initial (national) wealth factors. This allows best use of the available information for each area and a better precision of the FINAL (NATIONAL) Wealth Index. For dependency reasons, all WASH variables (contained in the generic MICS and DHS scripts) have been excluded from the sets of asset variables used in the PCAs. The PCA can extracts as many components as there are asset variables in the input. Only the first of the components is used to represent the Wealth Index. The scores represent the weights of the asset variables on the Wealth Index (correlations between the variables and the component). The communalities are the proportion of each variable's variance that can be explained by the component. Proportion of explained variance is the part of the model's total variance that is explained by the component. For more information on the procedure used: The DHS Wealth Index, DHS Comparative Reports No. 6, Shea Oscar Rutstein, Kiersten Johnson, ORC Macro International Inc., 2004. The DHS Wealth Index: Approaches for Rural and Urban Areas, Shea O. Rutstein, ORC Macro International Inc., 2008. MICS Methodological Paper No. 4, Review of options for reporting water, sanitation and hygiene coverage by wealth quintile, UNICEF, 2016. | E402: 1 | J402: 1 | O402: 1
C403: tv | E403: 0.6758232877 | H403: tv | J403: 0.6820790512 | M403: tv | O403: 0.6734565793
C404: fridge | E404: 0.6614432738 | H404: fridge | J404: 0.678454028 | M404: wash | O404: 0.6620169518
C405: cable | E405: 0.6599047761 | H405: cable | J405: 0.6778754033 | M405: cable | O405: 0.651498859
C406: wash | E406: 0.6560791174 | H406: wash | J406: 0.6425703127 | M406: fridge | O406: 0.6466271761
C407: computer | E407: 0.6394554378 | H407: computer | J407: 0.6259487742 | M407: computer | O407: 0.6447459295
C408: internet | E408: 0.6199816838 | H408: elec | J408: 0.6166184814 | M408: internet | O408: 0.6234581695
C409: elec | E409: 0.5922133009 | H409: internet | J409: 0.6097082391 | M409: sofa | O409: 0.5894035659
C410: sofa | E410: 0.5906260771 | H410: hc6_2 | J410: 0.6036377852 | M410: elec | O410: 0.5747815745
C411: stove | E411: 0.5848111651 | H411: stove | J411: 0.6031763925 | M411: stove | O411: 0.5702394247
C412: hc6_2 | E412: 0.5590632889 | H412: sofa | J412: 0.590836174 | M412: hc3_33 | O412: 0.5525599432
C413: stereo | E413: 0.5448816777 | H413: stereo | J413: 0.565048724 | M413: phone | O413: 0.5331084972
C414: hc3_33 | E414: 0.5362576923 | H414: mobile | J414: 0.5192949426 | M414: stereo | O414: 0.530401501
... 175 more rows

Sheet data_summary
A1: iso3 | B1: year | C1: data_source | D1: row | E1: var1 | F1: var2 | G1: varname | H1: total_q1 | I1: total_q2 | J1: total_q3 | K1: total_q4 | L1: total_q5 | M1: urban_q1 | N1: urban_q2 | O1: urban_q3 | P1: urban_q4 | Q1: urban_q5 | R1: rural_q1 | S1: rural_q2 | T1: rural_q3 | U1: rural_q4 | V1: rural_q5 | W1: n_total_q1 | X1: n_total_q2 | Y1: n_total_q3 | Z1: n_total_q4 | AA1: n_total_q5 | AB1: n_urban_q1 | AC1: n_urban_q2 | AD1: n_urban_q3 | AE1: n_urban_q4 | AF1: n_urban_q5 | AG1: n_rural_q1 | AH1: n_rural_q2 | AI1: n_rural_q3 | AJ1: n_rural_q4 | AK1: n_rural_q5
A2: LCA | B2: 2005 | C2: LCA_2005_SLC | D2: 16 | E2: Water | F2: Improved | G2: w_imp | H2: 87.34319912 | I2: 96.66666667 | J2: 96.20251909 | K2: 99.09847038 | L2: 100 | M2: 92.85714286 | N2: 95.34883721 | O2: 100 | P2: 100 | Q2: 100 | R2: 85.49773627 | S2: 94.80519481 | T2: 96.72182424 | U2: 97.4025974 | V2: 100
A3: LCA | B3: 2005 | C3: LCA_2005_SLC | D3: 17 | E3: Water | F3: Not Improved | H3: 12.65680088 | I3: 3.333333333 | J3: 3.797480908 | K3: 0.901529623 | L3: 0 | M3: 7.142857143 | N3: 4.651162791 | O3: 0 | P3: 0 | Q3: 0 | R3: 14.50226373 | S3: 5.194805195 | T3: 3.278175757 | U3: 2.597402597 | V3: 0
A4: LCA | B4: 2005 | C4: LCA_2005_SLC | D4: 18 | E4: Water ladder | F4: Basic | G4: w_bas | H4: 87.04562816 | I4: 96.66666667 | J4: 96.20251909 | K4: 99.09847038 | L4: 99.85432546 | M4: 92.54745475 | N4: 95.34883721 | O4: 100 | P4: 100 | Q4: 99.23823027 | R4: 85.20329947 | S4: 94.80519481 | T4: 96.72182424 | U4: 97.4025974 | V4: 100
A5: LCA | B5: 2005 | C5: LCA_2005_SLC | D5: 19 | E5: Water ladder | F5: Limited | G5: w_lim | H5: 0.2975709604 | I5: 0 | J5: 0 | K5: 0 | L5: 0.145674536 | M5: 0.3096881041 | N5: 0 | O5: 0 | P5: 0 | Q5: 0.7617697288 | R5: 0.2944367977 | S5: 0 | T5: 0 | U5: 0 | V5: 0
A6: LCA | B6: 2005 | C6: LCA_2005_SLC | D6: 20 | E6: Water ladder | F6: Unimproved | G6: w_unimp | H6: 12.65680088 | I6: 3.333333333 | J6: 3.797480908 | K6: 0.901529623 | L6: 0 | M6: 7.142857143 | N6: 4.651162791 | O6: 0 | P6: 0 | Q6: 0 | R6: 14.50226373 | S6: 5.194805195 | T6: 3.278175757 | U6: 2.597402597 | V6: 0
A7: LCA | B7: 2005 | C7: LCA_2005_SLC | D7: 21 | E7: Water ladder | F7: Surface water | G7: w_sur | H7: 0 | I7: 0 | J7: 0 | K7: 0 | L7: 0 | M7: 0 | N7: 0 | O7: 0 | P7: 0 | Q7: 0 | R7: 0 | S7: 0 | T7: 0 | U7: 0 | V7: 0
A8: LCA | B8: 2005 | C8: LCA_2005_SLC | D8: 58 | E8: Main source of Water | F8: Private piped | H8: 9.166666667 | I8: 20 | J8: 25 | K8: 24.79338843 | L8: 22.68907563 | M8: 16.66666667 | N8: 25.58139535 | O8: 32.55813953 | P8: 30.23255814 | Q8: 32.55813953 | R8: 6.493506494 | S8: 16.88311688 | T8: 25.64102564 | U8: 14.28571429 | V8: 18.18181818
A9: LCA | B9: 2005 | C9: LCA_2005_SLC | D9: 59 | E9: Main source of Water | F9: Private Not Piped | H9: 3.333333333 | I9: 2.5 | J9: 3.333333333 | K9: 4.132231405 | L9: 0 | M9: 2.380952381 | N9: 0 | O9: 2.325581395 | P9: 0 | Q9: 0 | R9: 3.896103896 | S9: 2.597402597 | T9: 5.128205128 | U9: 6.493506494 | V9: 0
A10: LCA | B10: 2005 | C10: LCA_2005_SLC | D10: 60 | E10: Main source of Water | F10: Public Piped | H10: 9.166666667 | I10: 40.83333333 | J10: 55 | K10: 55.37190083 | L10: 74.78991597 | M10: 21.42857143 | N10: 44.18604651 | O10: 60.46511628 | P10: 62.79069767 | Q10: 65.11627907 | R10: 6.493506494 | S10: 35.06493506 | T10: 48.71794872 | U10: 58.44155844 | V10: 75.32467532
A11: LCA | B11: 2005 | C11: LCA_2005_SLC | D11: 61 | E11: Main source of Water | F11: Public Yard | H11: 10.83333333 | I11: 9.166666667 | J11: 4.166666667 | K11: 5.785123967 | L11: 1.680672269 | M11: 14.28571429 | N11: 9.302325581 | O11: 2.325581395 | P11: 0 | Q11: 2.325581395 | R11: 7.792207792 | S11: 10.38961039 | T11: 5.128205128 | U11: 6.493506494 | V11: 3.896103896
A12: LCA | B12: 2005 | C12: LCA_2005_SLC | D12: 62 | E12: Main source of Water | F12: Public Standpipe | H12: 54.16666667 | I12: 24.16666667 | J12: 6.666666667 | K12: 7.438016529 | L12: 0.8403361345 | M12: 38.0952381 | N12: 16.27906977 | O12: 2.325581395 | P12: 6.976744186 | Q12: 0 | R12: 59.74025974 | S12: 29.87012987 | T12: 8.974358974 | U12: 9.090909091 | V12: 2.597402597
A13: LCA | B13: 2005 | C13: LCA_2005_SLC | D13: 63 | E13: Main source of Water | F13: Public Well-Tank | H13: 1.666666667 | I13: 0 | J13: 2.5 | K13: 1.652892562 | L13: 0 | M13: 0 | N13: 0 | O13: 0 | P13: 0 | Q13: 0 | R13: 2.597402597 | S13: 0 | T13: 3.846153846 | U13: 2.597402597 | V13: 0
A14: LCA | B14: 2005 | C14: LCA_2005_SLC | D14: 64 | E14: Main source of Water | F14: Other | H14: 11.66666667 | I14: 3.333333333 | J14: 3.333333333 | K14: 0.826446281 | L14: 0 | M14: 7.142857143 | N14: 4.651162791 | O14: 0 | P14: 0 | Q14: 0 | R14: 12.98701299 | S14: 5.194805195 | T14: 2.564102564 | U14: 2.597402597 | V14: 0
A15: LCA | B15: 2005 | C15: LCA_2005_SLC | D15: 122 | E15: Sanitation | F15: Improved | G15: s_imp | H15: 70.83333333 | I15: 88.53979572 | J15: 94.16666667 | K15: 95.8677686 | L15: 100 | M15: 64.28571429 | N15: 88.37209302 | O15: 95.34883721 | P15: 100 | Q15: 100 | R15: 70.12987013 | S15: 94.00765168 | T15: 93.58974359 | U15: 93.50649351 | V15: 98.7012987
A16: LCA | B16: 2005 | C16: LCA_2005_SLC | D16: 123 | E16: Sanitation | F16: Not Improved | H16: 29.16666667 | I16: 11.46020428 | J16: 5.833333333 | K16: 4.132231405 | L16: 0 | M16: 35.71428571 | N16: 11.62790698 | O16: 4.651162791 | P16: 0 | Q16: 0 | R16: 29.87012987 | S16: 5.992348317 | T16: 6.41025641 | U16: 6.493506494 | V16: 1.298701299
A17: LCA | B17: 2005 | C17: LCA_2005_SLC | D17: 124 | E17: Sanitation ladder | F17: Basic | G17: s_bas | H17: 55.328983 | I17: 78.05579393 | J17: 90.01746072 | K17: 93.49479948 | L17: 98.96370209 | M17: 46.02631966 | N17: 80.26865604 | O17: 89.21452695 | P17: 95.44308292 | Q17: 97.90955351 | R17: 55.89711074 | S17: 81.81565117 | T17: 90.80134223 | U17: 91.01552319 | V17: 97.92973484
A18: LCA | B18: 2005 | C18: LCA_2005_SLC | D18: 125 | E18: Sanitation ladder | F18: Limited | G18: s_lim | H18: 15.50435033 | I18: 10.48400179 | J18: 4.149205947 | K18: 2.372969117 | L18: 1.036297915 | M18: 18.25939463 | N18: 8.103436981 | O18: 6.134310263 | P18: 4.556917082 | Q18: 2.090446494 | R18: 14.23275939 | S18: 12.19200051 | T18: 2.788401364 | U18: 2.490970313 | V18: 0.7715638616
A19: LCA | B19: 2005 | C19: LCA_2005_SLC | D19: 126 | E19: Sanitation ladder | F19: Unimproved | G19: s_unimp | H19: 1.666666667 | I19: 3.126870948 | J19: 0.8333333333 | K19: 0.826446281 | L19: 0 | M19: 4.761904762 | N19: 4.651162791 | O19: 0 | P19: 0 | Q19: 0 | R19: 1.298701299 | S19: 0.7975431217 | T19: 1.282051282 | U19: 1.298701299 | V19: 0
A20: LCA | B20: 2005 | C20: LCA_2005_SLC | D20: 127 | E20: Sanitation ladder | F20: Open defecation | G20: s_od | H20: 27.5 | I20: 8.333333333 | J20: 5 | K20: 3.305785124 | L20: 0 | M20: 30.95238095 | N20: 6.976744186 | O20: 4.651162791 | P20: 0 | Q20: 0 | R20: 28.57142857 | S20: 5.194805195 | T20: 5.128205128 | U20: 5.194805195 | V20: 1.298701299
A21: LCA | B21: 2005 | C21: LCA_2005_SLC | D21: 135 | E21: Sanitation type | F21: Sewer connection | G21: s_sew | H21: 0.8333333333 | I21: 4.166666667 | J21: 9.166666667 | K21: 7.438016529 | L21: 12.60504202 | M21: 2.380952381 | N21: 4.651162791 | O21: 18.60465116 | P21: 16.27906977 | Q21: 16.27906977 | R21: 1.298701299 | S21: 1.298701299 | T21: 3.846153846 | U21: 5.194805195 | V21: 9.090909091
A22: LCA | B22: 2005 | C22: LCA_2005_SLC | D22: 136 | E22: Sanitation type | F22: Septic tank connection | G22: s_sep | H22: 5.833333333 | I22: 10.83333333 | J22: 33.33333333 | K22: 57.85123967 | L22: 82.35294118 | M22: 11.9047619 | N22: 13.95348837 | O22: 39.53488372 | P22: 74.41860465 | Q22: 83.72093023 | R22: 5.194805195 | S22: 6.493506494 | T22: 29.48717949 | U22: 48.05194805 | V22: 81.81818182
A23: LCA | B23: 2005 | C23: LCA_2005_SLC | D23: 139 | E23: Sanitation type | F23: Open defecation | H23: 27.5 | I23: 8.333333333 | J23: 5 | K23: 3.305785124 | L23: 0 | M23: 30.95238095 | N23: 6.976744186 | O23: 4.651162791 | P23: 0 | Q23: 0 | R23: 28.57142857 | S23: 5.194805195 | T23: 5.128205128 | U23: 5.194805195 | V23: 1.298701299
A24: LCA | B24: 2005 | C24: LCA_2005_SLC | D24: 151 | E24: Shared among all sanitation facilities | F24: Yes | H24: 65.88235294 | I24: 81.48148148 | J24: 92.92035398 | K24: 92.24137931 | L24: 97.4137931 | M24: 64.28571429 | N24: 87.17948718 | O24: 90.24390244 | P24: 95.34883721 | Q24: 95.34883721 | R24: 64.1509434 | S24: 79.45205479 | T24: 91.78082192 | U24: 94.44444444 | V24: 97.26027397
A25: LCA | B25: 2005 | C25: LCA_2005_SLC | D25: 152 | E25: Shared among all sanitation facilities | F25: No | H25: 34.11764706 | I25: 18.51851852 | J25: 7.079646018 | K25: 7.75862069 | L25: 2.586206897 | M25: 35.71428571 | N25: 12.82051282 | O25: 9.756097561 | P25: 4.651162791 | Q25: 4.651162791 | R25: 35.8490566 | S25: 20.54794521 | T25: 8.219178082 | U25: 5.555555556 | V25: 2.739726027
A26: LCA | B26: 2005 | C26: LCA_2005_SLC | D26: 153 | E26: Type of toilet | F26: WC Sewer | H26: 0.8333333333 | I26: 4.166666667 | J26: 9.166666667 | K26: 7.438016529 | L26: 12.60504202 | M26: 2.380952381 | N26: 4.651162791 | O26: 18.60465116 | P26: 16.27906977 | Q26: 16.27906977 | R26: 1.298701299 | S26: 1.298701299 | T26: 3.846153846 | U26: 5.194805195 | V26: 9.090909091 | W26: 1 | X26: 5 | Y26: 11 | Z26: 9 | AA26: 15 | AB26: 1 | AC26: 2 | AD26: 8 | AE26: 7 | AF26: 7 | AG26: 1 | AH26: 1 | AI26: 3 | AJ26: 4 | AK26: 7
A27: LCA | B27: 2005 | C27: LCA_2005_SLC | D27: 154 | E27: Type of toilet | F27: WC Cesspit | H27: 5.833333333 | I27: 10.83333333 | J27: 33.33333333 | K27: 57.85123967 | L27: 82.35294118 | M27: 11.9047619 | N27: 13.95348837 | O27: 39.53488372 | P27: 74.41860465 | Q27: 83.72093023 | R27: 5.194805195 | S27: 6.493506494 | T27: 29.48717949 | U27: 48.05194805 | V27: 81.81818182 | W27: 7 | X27: 13 | Y27: 40 | Z27: 70 | AA27: 98 | AB27: 5 | AC27: 6 | AD27: 17 | AE27: 32 | AF27: 36 | AG27: 4 | AH27: 5 | AI27: 23 | AJ27: 37 | AK27: 63
A28: LCA | B28: 2005 | C28: LCA_2005_SLC | D28: 155 | E28: Type of toilet | F28: Pit Latrine | H28: 62.5 | I28: 73.33333333 | J28: 50.83333333 | K28: 30.5785124 | L28: 5.042016807 | M28: 50 | N28: 67.44186047 | O28: 37.20930233 | P28: 9.302325581 | Q28: 0 | R28: 61.03896104 | S28: 87.01298701 | T28: 58.97435897 | U28: 40.25974026 | V28: 7.792207792 | W28: 75 | X28: 88 | Y28: 61 | Z28: 37 | AA28: 6 | AB28: 21 | AC28: 29 | AD28: 16 | AE28: 4 | AF28: 0 | AG28: 47 | AH28: 67 | AI28: 46 | AJ28: 31 | AK28: 6
A29: LCA | B29: 2005 | C29: LCA_2005_SLC | D29: 156 | E29: Type of toilet | F29: Ven. Pit Latrine | H29: 1.666666667 | I29: 0.8333333333 | J29: 0.8333333333 | K29: 0 | L29: 0 | M29: 0 | N29: 2.325581395 | O29: 0 | P29: 0 | Q29: 0 | R29: 2.597402597 | S29: 0 | T29: 1.282051282 | U29: 0 | V29: 0 | W29: 2 | X29: 1 | Y29: 1 | Z29: 0 | AA29: 0 | AB29: 0 | AC29: 1 | AD29: 0 | AE29: 0 | AF29: 0 | AG29: 2 | AH29: 0 | AI29: 1 | AJ29: 0 | AK29: 0
A30: LCA | B30: 2005 | C30: LCA_2005_SLC | D30: 157 | E30: Type of toilet | F30: None | H30: 27.5 | I30: 8.333333333 | J30: 5 | K30: 3.305785124 | L30: 0 | M30: 30.95238095 | N30: 6.976744186 | O30: 4.651162791 | P30: 0 | Q30: 0 | R30: 28.57142857 | S30: 5.194805195 | T30: 5.128205128 | U30: 5.194805195 | V30: 1.298701299 | W30: 33 | X30: 10 | Y30: 6 | Z30: 4 | AA30: 0 | AB30: 13 | AC30: 3 | AD30: 2 | AE30: 0 | AF30: 0 | AG30: 22 | AH30: 4 | AI30: 4 | AJ30: 4 | AK30: 1
A31: LCA | B31: 2005 | C31: LCA_2005_SLC | D31: 158 | E31: Type of toilet | F31: Other | H31: 1.666666667 | I31: 2.5 | J31: 0.8333333333 | K31: 0.826446281 | L31: 0 | M31: 4.761904762 | N31: 4.651162791 | O31: 0 | P31: 0 | Q31: 0 | R31: 1.298701299 | S31: 0 | T31: 1.282051282 | U31: 1.298701299 | V31: 0 | W31: 2 | X31: 3 | Y31: 1 | Z31: 1 | AA31: 0 | AB31: 2 | AC31: 2 | AD31: 0 | AE31: 0 | AF31: 0 | AG31: 1 | AH31: 0 | AI31: 1 | AJ31: 1 | AK31: 0
A32: LCA | B32: 2012 | C32: LCA_2012_MICS | D32: 16 | E32: Water | F32: Improved | G32: w_imp | H32: 97.64639882 | I32: 99.61642931 | J32: 99.70851301 | K32: 99.95203016 | L32: 99.45618885 | M32: 99.46223456 | N32: 100 | O32: 100 | P32: 99.74683794 | Q32: 100 | R32: 97.20706281 | S32: 99.52844359 | T32: 99.64009172 | U32: 100 | V32: 99.33554139
A33: LCA | B33: 2012 | C33: LCA_2012_MICS | D33: 17 | E33: Water | F33: Not Improved | H33: 2.353601185 | I33: 0.3835706947 | J33: 0.2914869854 | K33: 0.04796984092 | L33: 0.5438111486 | M33: 0.5377654372 | N33: 0 | O33: 0 | P33: 0.2531620601 | Q33: 0 | R33: 2.792937187 | S33: 0.4715564089 | T33: 0.359908277 | U33: 0 | V33: 0.664458615
A34: LCA | B34: 2012 | C34: LCA_2012_MICS | D34: 18 | E34: Water ladder | F34: Basic | G34: w_bas | H34: 97.31372572 | I34: 99.61642931 | J34: 99.70851301 | K34: 99.95203016 | L34: 99.31130651 | M34: 99.1305178 | N34: 100 | O34: 100 | P34: 99.74683794 | Q34: 99.23823027 | R34: 96.87230148 | S34: 99.52844359 | T34: 99.64009172 | U34: 100 | V34: 99.33554139
A35: LCA | B35: 2012 | C35: LCA_2012_MICS | D35: 19 | E35: Water ladder | F35: Limited | G35: w_lim | H35: 0.3326730984 | I35: 0 | J35: 0 | K35: 0 | L35: 0.1448823416 | M35: 0.331716763 | N35: 0 | O35: 0 | P35: 0 | Q35: 0.7617697288 | R35: 0.3347613345 | S35: 0 | T35: 0 | U35: 0 | V35: 0
A36: LCA | B36: 2012 | C36: LCA_2012_MICS | D36: 20 | E36: Water ladder | F36: Unimproved | G36: w_unimp | H36: 2.353601185 | I36: 0.3835706947 | J36: 0.2914869854 | K36: 0.04796984092 | L36: 0.5438111486 | M36: 0.5377654372 | N36: 0 | O36: 0 | P36: 0.2531620601 | Q36: 1.265654248e-14 | R36: 2.792937187 | S36: 0.4715564089 | T36: 0.359908277 | U36: 0 | V36: 0.664458615
A37: LCA | B37: 2012 | C37: LCA_2012_MICS | D37: 21 | E37: Water ladder | F37: Surface water | G37: w_sur | H37: 0 | I37: 0 | J37: 0 | K37: 0 | L37: 0 | M37: 0 | N37: 0 | O37: 0 | P37: 0 | Q37: 0 | R37: 0 | S37: 0 | T37: 0 | U37: 0 | V37: 0
A38: LCA | B38: 2012 | C38: LCA_2012_MICS | D38: 22 | E38: Improved water point at more than 30 minutes | F38: Yes | H38: 0.3406916204 | I38: 0 | J38: 0 | K38: 0 | L38: 0.145674536 | M38: 0.3335102659 | N38: 0 | O38: 0 | P38: 0 | Q38: 0.7617697288 | R38: 0.3443796416 | S38: 0 | T38: 0 | U38: 0 | V38: 0
A39: LCA | B39: 2012 | C39: LCA_2012_MICS | D39: 23 | E39: Improved water point at more than 30 minutes | F39: No | H39: 99.65930838 | I39: 100 | J39: 100 | K39: 100 | L39: 99.85432546 | M39: 99.66648973 | N39: 100 | O39: 100 | P39: 100 | Q39: 99.23823027 | R39: 99.65562036 | S39: 100 | T39: 100 | U39: 100 | V39: 100
A40: LCA | B40: 2012 | C40: LCA_2012_MICS | D40: 24 | E40: Manually calculated ratios | F40: Improved wells | H40: 40.59194749 | I40: 64.1894897 | J40: 81.43409699 | K40: 95.45745781 | L40: 21.03727474 | M40: 0 | N40: 50 | O40: 100 | P40: 66.66666667 | Q40: 100 | R40: 41.66284629 | S40: 62.5 | T40: 81.43409699 | U40: 100 | V40: 0
A41: LCA | B41: 2012 | C41: LCA_2012_MICS | D41: 29 | E41: Piped water | F41: Yes | G41: w_pip | H41: 89.52049936 | I41: 92.23161802 | J41: 95.12632759 | K41: 97.71751557 | L41: 97.04322971 | M41: 95.75509707 | N41: 98.2185467 | O41: 98.94109197 | P41: 97.27850785 | Q41: 97.9876583 | R41: 87.637757 | S41: 90.50158 | T41: 95.13558359 | U41: 97.61947335 | V41: 96.85489589
A42: LCA | B42: 2012 | C42: LCA_2012_MICS | D42: 30 | E42: Piped water | F42: No | H42: 10.47950064 | I42: 7.768381985 | J42: 4.873672415 | K42: 2.282484432 | L42: 2.956770289 | M42: 4.244902931 | N42: 1.7814533 | O42: 1.058908034 | P42: 2.721492146 | Q42: 2.0123417 | R42: 12.362243 | S42: 9.498419996 | T42: 4.864416407 | U42: 2.380526651 | V42: 3.145104111
A43: LCA | B43: 2012 | C43: LCA_2012_MICS | D43: 31 | E43: Piped water on premises | F43: Yes | G43: w_pop | H43: 78.47795723 | I43: 87.20397494 | J43: 93.94568668 | K43: 97.71751557 | L43: 96.63678262 | M43: 76.4851154 | N43: 90.71621648 | O43: 97.15837338 | P43: 97.27850785 | Q43: 97.9876583 | R43: 78.96437603 | S43: 85.09081694 | T43: 94.59572118 | U43: 97.61947335 | V43: 96.3582763
A44: LCA | B44: 2012 | C44: LCA_2012_MICS | D44: 32 | E44: Piped water on premises | F44: No | H44: 21.52204277 | I44: 12.79602506 | J44: 6.054313318 | K44: 2.282484432 | L44: 3.363217376 | M44: 23.5148846 | N44: 9.283783523 | O44: 2.841626624 | P44: 2.721492146 | Q44: 2.0123417 | R44: 21.03562397 | S44: 14.90918306 | T44: 5.404278823 | U44: 2.380526651 | V44: 3.641723699
A45: LCA | B45: 2012 | C45: LCA_2012_MICS | D45: 35 | E45: Water source on premises | F45: Yes | H45: 84.5041785 | I45: 92.87838968 | J45: 98.40034656 | K45: 98.94398689 | L45: 98.58070533 | M45: 80.44619768 | N45: 92.49766978 | O45: 97.96260733 | P45: 99.24051382 | Q45: 99.23823027 | R45: 85.86974238 | S45: 92.07426943 | T45: 98.94276944 | U45: 98.86362786 | V45: 98.44285235
A46: LCA | B46: 2012 | C46: LCA_2012_MICS | D46: 36 | E46: Water source on premises | F46: No | H46: 15.4958215 | I46: 7.121610318 | J46: 1.599653444 | K46: 1.056013107 | L46: 1.419294674 | M46: 19.55380232 | N46: 7.502330224 | O46: 2.037392674 | P46: 0.7594861803 | Q46: 0.7617697288 | R46: 14.13025762 | S46: 7.925730573 | T46: 1.057230564 | U46: 1.136372141 | V46: 1.557147652
A47: LCA | B47: 2012 | C47: LCA_2012_MICS | D47: 37 | E47: Improved Water source on premises | F47: Yes | G47: w_premises | H47: 84.5041785 | I47: 92.87838968 | J47: 98.40034656 | K47: 98.94398689 | L47: 98.58070533 | M47: 80.44619768 | N47: 92.49766978 | O47: 97.96260733 | P47: 99.24051382 | Q47: 99.23823027 | R47: 85.86974238 | S47: 92.07426943 | T47: 98.94276944 | U47: 98.86362786 | V47: 98.44285235
A48: LCA | B48: 2012 | C48: LCA_2012_MICS | D48: 38 | E48: Improved Water source on premises | F48: No | H48: 15.4958215 | I48: 7.121610318 | J48: 1.599653444 | K48: 1.056013107 | L48: 1.419294674 | M48: 19.55380232 | N48: 7.502330224 | O48: 2.037392674 | P48: 0.7594861803 | Q48: 0.7617697288 | R48: 14.13025762 | S48: 7.925730573 | T48: 1.057230564 | U48: 1.136372141 | V48: 1.557147652
A49: LCA | B49: 2012 | C49: LCA_2012_MICS | D49: 41 | E49: Water point at more than 30 minutes | F49: Yes | H49: 0.4777634811 | I49: 0 | J49: 0.2930519215 | K49: 0 | L49: 0.1448823416 | M49: 0.3315384649 | N49: 0 | O49: 0 | P49: 0 | Q49: 0.7617697288 | R49: 0.5136888355 | S49: 0 | T49: 0.3604758819 | U49: 0 | V49: 0
A50: LCA | B50: 2012 | C50: LCA_2012_MICS | D50: 42 | E50: Water point at more than 30 minutes | F50: No | G50: w_30min | H50: 99.52223652 | I50: 100 | J50: 99.70694808 | K50: 100 | L50: 99.85511766 | M50: 99.66846154 | N50: 100 | O50: 100 | P50: 100 | Q50: 99.23823027 | R50: 99.48631116 | S50: 100 | T50: 99.63952412 | U50: 100 | V50: 100
A51: LCA | B51: 2012 | C51: LCA_2012_MICS | D51: 58 | E51: Main source of drinking water | F51: Piped into dwelling | H51: 42.26237503 | I51: 56.73508245 | J51: 64.23924179 | K51: 61.61019822 | L51: 57.68685383 | M51: 39.15250469 | N51: 64.33579867 | O51: 70.33395158 | P51: 69.63656919 | Q51: 64.29711456 | R51: 42.04311982 | S51: 55.30699427 | T51: 63.18890892 | U51: 58.3643598 | V51: 57.6655076
A52: LCA | B52: 2012 | C52: LCA_2012_MICS | D52: 59 | E52: Main source of drinking water | F52: Piped into compound, yard or plot | H52: 25.13905231 | I52: 13.15474427 | J52: 3.648276304 | K52: 0.2700798524 | L52: 0 | M52: 24.38517729 | N52: 10.04716533 | O52: 7.082935706 | P52: 1.2658103 | Q52: 0 | R52: 26.17617148 | S52: 12.45600649 | T52: 3.523164618 | U52: 0 | V52: 0
A53: LCA | B53: 2012 | C53: LCA_2012_MICS | D53: 60 | E53: Main source of drinking water | F53: Piped to neighbour | H53: 5.34004271 | I53: 2.675927313 | J53: 0.4064877101 | K53: 0 | L53: 0 | M53: 8.009689038 | N53: 1.288472512 | O53: 0 | P53: 0 | Q53: 0 | R53: 4.742164653 | S53: 3.487552607 | T53: 0 | U53: 0 | V53: 0
A54: LCA | B54: 2012 | C54: LCA_2012_MICS | D54: 61 | E54: Main source of drinking water | F54: Public tap / standpipe | H54: 5.236734224 | I54: 2.303458884 | J54: 0.7741531928 | K54: 0 | L54: 0 | M54: 10.23040543 | N54: 5.961765263 | O54: 1.782718589 | P54: 0 | Q54: 0 | R54: 3.595405402 | S54: 1.923210452 | T54: 0.5398624155 | U54: 0 | V54: 0
A55: LCA | B55: 2012 | C55: LCA_2012_MICS | D55: 62 | E55: Main source of drinking water | F55: Unprotected well | H55: 0 | I55: 0 | J55: 0 | K55: 0.04796984092 | L55: 0 | M55: 0 | N55: 0 | O55: 0 | P55: 0.2531620601 | Q55: 0 | R55: 0 | S55: 0 | T55: 0 | U55: 0 | V55: 0
A56: LCA | B56: 2012 | C56: LCA_2012_MICS | D56: 63 | E56: Main source of drinking water | F56: Protected spring | H56: 1.6081533 | I56: 0.6875413656 | J56: 1.278525447 | K56: 1.008043266 | L56: 0.1448823416 | M56: 0 | N56: 0 | O56: 0.2546740842 | P56: 0.5063241202 | Q56: 0.7617697288 | R56: 1.994641584 | S56: 0.7859273481 | T56: 1.578636145 | U56: 1.136372141 | V56: 0
A57: LCA | B57: 2012 | C57: LCA_2012_MICS | D57: 64 | E57: Main source of drinking water | F57: Unprotected spring | H57: 2.353601185 | I57: 0.3835706947 | J57: 0.2914869854 | K57: 0 | L57: 0.5438111486 | M57: 0.5377654372 | N57: 0 | O57: 0 | P57: 0 | Q57: 0 | R57: 2.792937187 | S57: 0.4715564089 | T57: 0.359908277 | U57: 0 | V57: 0.664458615
A58: LCA | B58: 2012 | C58: LCA_2012_MICS | D58: 65 | E58: Main source of drinking water | F58: Rainwater collection | H58: 5.959932409 | I58: 5.637884196 | J58: 2.899412304 | K58: 1.226471325 | L58: 1.382180636 | M58: 3.707137494 | N58: 1.7814533 | O58: 0.8042339501 | P58: 1.962005966 | Q58: 0.5395868913 | R58: 6.521582444 | S58: 7.297823422 | T58: 2.426734485 | U58: 1.24415451 | V58: 1.563432035
A59: LCA | B59: 2012 | C59: LCA_2012_MICS | D59: 66 | E59: Main source of drinking water | F59: Tanker-truck | H59: 0.2847955024 | I59: 0 | J59: 0 | K59: 0 | L59: 0 | M59: 0 | N59: 0 | O59: 0 | P59: 0 | Q59: 0 | R59: 0.3532405474 | S59: 0 | T59: 0 | U59: 0 | V59: 0
A60: LCA | B60: 2012 | C60: LCA_2012_MICS | D60: 67 | E60: Main source of drinking water | F60: Bottled water | H60: 11.81531333 | I60: 18.42179083 | J60: 26.46241627 | K60: 35.8372375 | L60: 40.24227205 | M60: 13.97732062 | N60: 16.58534492 | O60: 19.74148609 | P60: 26.37612837 | Q60: 34.40152882 | R60: 11.78073688 | S60: 18.270929 | T60: 28.38278514 | U60: 39.25511355 | V60: 40.10660175
A61: LCA | B61: 2012 | C61: LCA_2012_MICS | D61: 122 | E61: Sanitation | F61: Improved | G61: s_imp | H61: 91.92495427 | I61: 98.00368084 | J61: 99.30772963 | K61: 100 | L61: 100 | M61: 81.05374661 | N61: 88.97944086 | O61: 96.7900454 | P61: 100 | Q61: 100 | R61: 95.46572266 | S61: 99.00776672 | T61: 100 | U61: 100 | V61: 100 | W61: 913.1995425 | X61: 970.1724479 | Y61: 985.6359625 | Z61: 995.8581015 | AA61: 989.1713684 | AB61: 152.4753106 | AC61: 168.6147549 | AD61: 181.5564488 | AE61: 188.6979222 | AF61: 188.1322645 | AG61: 764.6141036 | AH61: 797.2372481 | AI61: 803.8237283 | AJ61: 799.3206728 | AK61: 809.564969
A62: LCA | B62: 2012 | C62: LCA_2012_MICS | D62: 123 | E62: Sanitation | F62: Not Improved | H62: 8.075045726 | I62: 1.996319163 | J62: 0.6922703699 | K62: 0 | L62: 0 | M62: 18.94625339 | N62: 11.02055914 | O62: 3.209954603 | P62: 0 | Q62: 0 | R62: 4.534277337 | S62: 0.992233277 | T62: 0 | U62: 0 | V62: 0 | W62: 80.2190017 | X62: 19.7622562 | Y62: 6.870830446 | Z62: 0 | AA62: 0 | AB62: 35.6409912 | AC62: 20.88380035 | AD62: 6.021155958 | AE62: 0 | AF62: 0 | AG62: 36.3164108 | AH62: 7.989730033 | AI62: 0 | AJ62: 0 | AK62: 0
A63: LCA | B63: 2012 | C63: LCA_2012_MICS | D63: 124 | E63: Sanitation ladder | F63: Basic | G63: s_bas | H63: 71.80396564 | I63: 86.39905993 | J63: 94.9319963 | K63: 97.52474773 | L63: 98.96370209 | M63: 58.03164346 | N63: 80.82031203 | O63: 90.56301436 | P63: 95.44308292 | Q63: 97.90955351 | R63: 76.09108732 | S63: 86.16729341 | T63: 97.02061224 | U63: 97.33604564 | V63: 99.21828398 | W63: 712.9158859 | X63: 855.2942782 | Y63: 942.2065119 | Z63: 970.7163316 | AA63: 978.9206062 | AB63: 108.8021552 | AC63: 153.1533237 | AD63: 169.8759331 | AE63: 180.0991143 | AF63: 183.7057502 | AG63: 609.4367371 | AH63: 693.8422929 | AI63: 779.8747025 | AJ63: 778.0271348 | AK63: 803.23647
A64: LCA | B64: 2012 | C64: LCA_2012_MICS | D64: 125 | E64: Sanitation ladder | F64: Limited | G64: s_lim | H64: 20.12098864 | I64: 11.60462091 | J64: 4.375733335 | K64: 2.475252269 | L64: 1.036297915 | M64: 23.02210315 | N64: 8.159128827 | O64: 6.227031039 | P64: 4.556917082 | Q64: 2.090446494 | R64: 19.37463534 | S64: 12.84047331 | T64: 2.979387759 | U64: 2.663954362 | V64: 0.7817160176 | W64: 199.7740976 | X64: 114.8781697 | Y64: 43.42945059 | Z64: 24.63751876 | AA64: 10.25076226 | AB64: 43.16359644 | AC64: 15.46143125 | AD64: 11.68051567 | AE64: 8.598807848 | AF64: 3.922263229 | AG64: 155.1773665 | AH64: 103.3949552 | AI64: 23.94902576 | AJ64: 21.29353793 | AK64: 6.328499036
A65: LCA | B65: 2012 | C65: LCA_2012_MICS | D65: 126 | E65: Sanitation ladder | F65: Unimproved | G65: s_unimp | H65: 1.013948697 | I65: 0.9901871503 | J65: 2.731148641e-14 | K65: 2.309263891e-14 | L65: -4.440892099e-16 | M65: 3.162906816 | N65: 2.072760129 | O65: 1.697827228 | P65: 2.575717417e-14 | Q65: 1.554312234e-14 | R65: 0.5092034792 | S65: 0.334019123 | T65: 2.664535259e-15 | U65: -1.554312234e-14 | V65: 3.330669074e-16 | W65: 10.10873484 | X65: 9.802206236 | Y65: 0 | Z65: 0 | AA65: 0 | AB65: 6.030368791 | AC65: 3.927850498 | AD65: 3.184743647 | AE65: 0 | AF65: 0 | AG65: 4.078366045 | AH65: 2.68961209 | AI65: 0 | AJ65: 0 | AK65: 0
A66: LCA | B66: 2012 | C66: LCA_2012_MICS | D66: 127 | E66: Sanitation ladder | F66: Open defecation | G66: s_od | H66: 7.061097029 | I66: 1.006132013 | J66: 0.6922703699 | K66: 0 | L66: 0 | M66: 15.78334657 | N66: 8.94779901 | O66: 1.512127375 | P66: 0 | Q66: 0 | R66: 4.025073858 | S66: 0.6582141541 | T66: 0 | U66: 0 | V66: 0 | W66: 70.11026686 | X66: 9.960049965 | Y66: 6.870830446 | Z66: 0 | AA66: 0 | AB66: 29.61062241 | AC66: 16.95594985 | AD66: 2.836412311 | AE66: 0 | AF66: 0 | AG66: 32.23804476 | AH66: 5.300117943 | AI66: 0 | AJ66: 0 | AK66: 0
A67: LCA | B67: 2012 | C67: LCA_2012_MICS | D67: 128 | E67: Shared among Improved Sanitation | F67: Yes | G67: s_shared | H67: 21.88849458 | I67: 11.84100517 | J67: 4.406236404 | K67: 2.475252269 | L67: 1.036297915 | M67: 28.40350275 | N67: 9.16967869 | O67: 6.43354491 | P67: 4.556917082 | Q67: 2.090446494 | R67: 20.29486061 | S67: 12.96915761 | T67: 2.979387759 | U67: 2.663954362 | V67: 0.7817160176
A68: LCA | B68: 2012 | C68: LCA_2012_MICS | D68: 129 | E68: Shared among Improved Sanitation | F68: No | H68: 78.11150542 | I68: 88.15899483 | J68: 95.5937636 | K68: 97.52474773 | L68: 98.96370209 | M68: 71.59649725 | N68: 90.83032131 | O68: 93.56645509 | P68: 95.44308292 | Q68: 97.90955351 | R68: 79.70513939 | S68: 87.03084239 | T68: 97.02061224 | U68: 97.33604564 | V68: 99.21828398
A69: LCA | B69: 2012 | C69: LCA_2012_MICS | D69: 130 | E69: Manually calculated ratios | F69: Improved latrines | H69: 100 | I69: 99.14517598 | J69: 100 | K69: 100 | L69: 100 | M69: 100 | N69: 100 | O69: 100 | P69: 100 | Q69: 100 | R69: 100 | S69: 99.08342059 | T69: 100 | U69: 100 | V69: 100
A70: LCA | B70: 2012 | C70: LCA_2012_MICS | D70: 135 | E70: Sanitation type | F70: Sewer connection | G70: s_sew | H70: 1.693232863 | I70: 2.521046838 | J70: 5.792699476 | K70: 4.841921616 | L70: 10.93101522 | M70: 7.521334513 | N70: 5.558841186 | O70: 16.12723638 | P70: 11.51722779 | Q70: 14.38074895 | R70: 0.3336160726 | S70: 1.432134279 | T70: 2.889851754 | U70: 3.328390532 | V70: 10.85230133
A71: LCA | B71: 2012 | C71: LCA_2012_MICS | D71: 136 | E71: Sanitation type | F71: Septic tank connection | G71: s_sep | H71: 36.59600325 | I71: 56.04141052 | J71: 81.84886582 | K71: 94.48381329 | L71: 88.49507496 | M71: 49.68737743 | N71: 69.7393693 | O71: 77.16029132 | P71: 87.47012397 | Q71: 84.85748132 | R71: 33.15031496 | S71: 52.23755552 | T71: 84.88251998 | U71: 95.83155568 | V71: 88.62348911
A72: LCA | B72: 2012 | C72: LCA_2012_MICS | D72: 137 | E72: Sanitation type | F72: Improved latrines | G72: s_lat | H72: 53.63571816 | I72: 39.44122348 | J72: 11.66616433 | K72: 0.6742650986 | L72: 0.5739098222 | M72: 23.84503467 | N72: 13.68123038 | O72: 3.502517699 | P72: 1.01264824 | Q72: 0.7617697288 | R72: 61.98179163 | S72: 45.33807693 | T72: 12.22762826 | U72: 0.8400537904 | V72: 0.5242095648
A73: LCA | B73: 2012 | C73: LCA_2012_MICS | D73: 138 | E73: Sanitation type | F73: Unimproved facilities | H73: 1.017570579 | I73: 0.9901871503 | J73: 0 | K73: 0 | L73: 0 | M73: 3.205659868 | N73: 2.072760129 | O73: 1.697827228 | P73: 0 | Q73: 0 | R73: 0.5092034792 | S73: 0.334019123 | T73: 0 | U73: 0 | V73: 0
A74: LCA | B74: 2012 | C74: LCA_2012_MICS | D74: 139 | E74: Sanitation type | F74: Open defecation | H74: 7.057475147 | I74: 1.006132013 | J74: 0.6922703699 | K74: 0 | L74: 0 | M74: 15.74059352 | N74: 8.94779901 | O74: 1.512127375 | P74: 0 | Q74: 0 | R74: 4.025073858 | S74: 0.6582141541 | T74: 0 | U74: 0 | V74: 0
A75: LCA | B75: 2012 | C75: LCA_2012_MICS | D75: 148 | E75: Shared among improved sanitation facilities | F75: Yes | H75: 20.10976126 | I75: 11.60462091 | J75: 4.375733335 | K75: 2.473998929 | L75: 1.036297915 | M75: 22.94516532 | N75: 8.159128827 | O75: 6.227031039 | P75: 4.556917082 | Q75: 2.084843468 | R75: 19.37463534 | S75: 12.84047331 | T75: 2.979387759 | U75: 2.663954362 | V75: 0.7817160176
A76: LCA | B76: 2012 | C76: LCA_2012_MICS | D76: 149 | E76: Shared among improved sanitation facilities | F76: No | H76: 71.76389952 | I76: 86.39905993 | J76: 94.9319963 | K76: 97.47536624 | L76: 98.96370209 | M76: 57.83770685 | N76: 80.82031203 | O76: 90.56301436 | P76: 95.44308292 | Q76: 97.64712644 | R76: 76.09108732 | S76: 86.16729341 | T76: 97.02061224 | U76: 97.33604564 | V76: 99.21828398
A77: LCA | B77: 2012 | C77: LCA_2012_MICS | D77: 150 | E77: Shared among improved sanitation facilities | F77: DK/missing | H77: 8.12633921 | I77: 1.996319163 | J77: 0.6922703699 | K77: 0.05063483209 | L77: 0 | M77: 19.21712783 | N77: 11.02055914 | O77: 3.209954603 | P77: 0 | Q77: 0.2680300898 | R77: 4.534277337 | S77: 0.992233277 | T77: 0 | U77: 0 | V77: 0
A78: LCA | B78: 2012 | C78: LCA_2012_MICS | D78: 151 | E78: Shared among all sanitation facilities | F78: Yes | H78: 21.8408247 | I78: 11.92838748 | J78: 4.406236404 | K78: 2.473998929 | L78: 1.036297915 | M78: 27.53296169 | N78: 10.12992444 | O78: 6.322637369 | P78: 4.556917082 | Q78: 2.084843468 | R78: 20.37013576 | S78: 12.92555112 | T78: 2.979387759 | U78: 2.663954362 | V78: 0.7817160176
A79: LCA | B79: 2012 | C79: LCA_2012_MICS | D79: 152 | E79: Shared among all sanitation facilities | F79: No | H79: 78.10398691 | I79: 88.07161252 | J79: 95.5937636 | K79: 97.47536624 | L79: 98.96370209 | M79: 72.14556151 | N79: 89.87007556 | O79: 93.67736263 | P79: 95.44308292 | Q79: 97.64712644 | R79: 79.62986424 | S79: 87.07444888 | T79: 97.02061224 | U79: 97.33604564 | V79: 99.21828398
A80: LCA | B80: 2012 | C80: LCA_2012_MICS | D80: 153 | E80: Type of toilet facility | F80: Flush to piped sewer system | H80: 1.693232863 | I80: 2.521046838 | J80: 5.792699476 | K80: 4.841921616 | L80: 10.93101522 | M80: 7.521334513 | N80: 5.558841186 | O80: 16.12723638 | P80: 11.51722779 | Q80: 14.38074895 | R80: 0.3336160726 | S80: 1.432134279 | T80: 2.889851754 | U80: 3.328390532 | V80: 10.85230133 | W80: 16.82088926 | X80: 24.95671755 | Y80: 57.49293579 | Z80: 48.21866868 | AA80: 108.1264728 | AB80: 14.14885633 | AC80: 10.53392374 | AD80: 30.25108372 | AE80: 21.73276953 | AF80: 27.05482865 | AG80: 2.672032926 | AH80: 11.53193158 | AI80: 23.22931411 | AJ80: 26.60451359 | AK80: 87.85642989
A81: LCA | B81: 2012 | C81: LCA_2012_MICS | D81: 154 | E81: Type of toilet facility | F81: Flush to septic tank | H81: 36.59600325 | I81: 56.04141052 | J81: 81.84886582 | K81: 94.48381329 | L81: 88.49507496 | M81: 49.68737743 | N81: 69.7393693 | O81: 77.16029132 | P81: 87.47012397 | Q81: 84.85748132 | R81: 33.15031496 | S81: 52.23755552 | T81: 84.88251998 | U81: 95.83155568 | V81: 88.62348911 | W81: 363.5514827 | X81: 554.7733714 | Y81: 812.3555532 | Z81: 940.9247092 | AA81: 875.367944 | AB81: 93.47005688 | AC81: 132.1550973 | AD81: 144.7354263 | AE81: 165.0543064 | AF81: 159.6443012 | AG81: 265.5109881 | AH81: 420.6308898 | AI81: 682.3058368 | AJ81: 766.0014356 | AK81: 717.4647221
A82: LCA | B82: 2012 | C82: LCA_2012_MICS | D82: 155 | E82: Type of toilet facility | F82: Flush to pit (latrine) | H82: 1.074072511 | I82: 0.541511569 | J82: 0.1275255561 | K82: 0 | L82: 0 | M82: 0 | N82: 0 | O82: 0 | P82: 0 | Q82: 0 | R82: 1.332204894 | S82: 0.6657266949 | T82: 0.1574598712 | U82: 0 | V82: 0 | W82: 10.67003551 | X82: 5.360610948 | Y82: 1.265699807 | Z82: 0 | AA82: 0 | AB82: 0 | AC82: 0 | AD82: 0 | AE82: 0 | AF82: 0 | AG82: 10.67003551 | AH82: 5.360610948 | AI82: 1.265699807 | AJ82: 0 | AK82: 0
A83: LCA | B83: 2012 | C83: LCA_2012_MICS | D83: 156 | E83: Type of toilet facility | F83: Flush to unknown place / Not sure / DK where | H83: 0 | I83: 0.05079670993 | J83: 0.3825766684 | K83: 0 | L83: 0.5739098222 | M83: 0 | N83: 0.2653604717 | O83: 0 | P83: 0 | Q83: 0.7617697288 | R83: 0 | S83: 0 | T83: 0.4723796136 | U83: 0 | V83: 0.5242095648 | W83: 0 | X83: 0.5028542601 | Y83: 3.797099422 | Z83: 0 | AA83: 5.676951642 | AB83: 0 | AC83: 0.5028542601 | AD83: 0 | AE83: 0 | AF83: 1.433134641 | AG83: 0 | AH83: 0 | AI83: 3.797099422 | AJ83: 0 | AK83: 4.243817001
A84: LCA | B84: 2012 | C84: LCA_2012_MICS | D84: 157 | E84: Type of toilet facility | F84: Ventilated Improved Pit latrine (VIP) | H84: 4.245516684 | I84: 7.336769928 | J84: 3.500221377 | K84: 0.4051197786 | L84: 0 | M84: 1.299703542 | N84: 0.5987195642 | O84: 0 | P84: 1.01264824 | Q84: 0 | R84: 6.066780273 | S84: 8.564450647 | T84: 3.296816053 | U84: 0.5047308637 | V84: 0 | W84: 42.17575004 | X84: 72.62923168 | Y84: 34.73993494 | Z84: 4.034418135 | AA84: 0 | AB84: 2.444954238 | AC84: 1.134564924 | AD84: 0 | AE84: 1.910846188 | AF84: 0 | AG84: 48.59069445 | AH84: 68.96326714 | AI84: 26.50058971 | AJ84: 4.034418135 | AK84: 0
A85: LCA | B85: 2012 | C85: LCA_2012_MICS | D85: 158 | E85: Type of toilet facility | F85: Pit latrine with slab | H85: 48.31612896 | I85: 31.51214528 | J85: 7.655840733 | K85: 0.26914532 | L85: 0 | M85: 22.54533113 | N85: 12.81715034 | O85: 3.502517699 | P85: 0 | Q85: 0 | R85: 54.58280646 | S85: 36.10789958 | T85: 8.300972724 | U85: 0.3353229267 | V85: 0 | W85: 479.9813849 | X85: 311.9496621 | Y85: 75.98473933 | Z85: 2.680305474 | AA85: 0 | AB85: 42.41144314 | AC85: 24.28831473 | AD85: 6.569938807 | AE85: 0 | AF85: 0 | AG85: 437.1703526 | AH85: 290.7505487 | AI85: 66.72518843 | AJ85: 2.680305474 | AK85: 0
A86: LCA | B86: 2012 | C86: LCA_2012_MICS | D86: 159 | E86: Type of toilet facility | F86: Pit latrine without slab / Open pit | H86: 0 | I86: 0.2716959087 | J86: 0 | K86: 0 | L86: 0 | M86: 0 | N86: 0 | O86: 0 | P86: 0 | Q86: 0 | R86: 0 | S86: 0.334019123 | T86: 0 | U86: 0 | V86: 0 | W86: 0 | X86: 2.68961209 | Y86: 0 | Z86: 0 | AA86: 0 | AB86: 0 | AC86: 0 | AD86: 0 | AE86: 0 | AF86: 0 | AG86: 0 | AH86: 2.68961209 | AI86: 0 | AJ86: 0 | AK86: 0
A87: LCA | B87: 2012 | C87: LCA_2012_MICS | D87: 160 | E87: Type of toilet facility | F87: Bucket | H87: 0.8279179222 | I87: 0.5147399939 | J87: 0 | K87: 0 | L87: 0 | M87: 2.951715078 | N87: 1.008369792 | O87: 1.697827228 | P87: 0 | Q87: 0 | R87: 0.3336160726 | S87: 0 | T87: 0 | U87: 0 | V87: 0 | W87: 8.22469017 | X87: 5.095589836 | Y87: 0 | Z87: 0 | AA87: 0 | AB87: 5.552657244 | AC87: 1.910846188 | AD87: 3.184743647 | AE87: 0 | AF87: 0 | AG87: 2.672032926 | AH87: 0 | AI87: 0 | AJ87: 0 | AK87: 0
A88: LCA | B88: 2012 | C88: LCA_2012_MICS | D88: 161 | E88: Type of toilet facility | F88: No facility, Bush, Field | H88: 7.057475147 | I88: 1.006132013 | J88: 0.6922703699 | K88: 0 | L88: 0 | M88: 15.74059352 | N88: 8.94779901 | O88: 1.512127375 | P88: 0 | Q88: 0 | R88: 4.025073858 | S88: 0.6582141541 | T88: 0 | U88: 0 | V88: 0 | W88: 70.11026686 | X88: 9.960049965 | Y88: 6.870830446 | Z88: 0 | AA88: 0 | AB88: 29.61062241 | AC88: 16.95594985 | AD88: 2.836412311 | AE88: 0 | AF88: 0 | AG88: 32.23804476 | AH88: 5.300117943 | AI88: 0 | AJ88: 0 | AK88: 0
A89: LCA | B89: 2012 | C89: LCA_2012_MICS | D89: 162 | E89: Type of toilet facility | F89: Other | H89: 0.1896526572 | I89: 0.2037512476 | J89: 0 | K89: 0 | L89: 0 | M89: 0.2539447898 | N89: 1.064390336 | O89: 0 | P89: 0 | Q89: 0 | R89: 0.1755874066 | S89: 0 | T89: 0 | U89: 0 | V89: 0 | W89: 1.884044666 | X89: 2.01700431 | Y89: 0 | Z89: 0 | AA89: 0 | AB89: 0.4777115471 | AC89: 2.01700431 | AD89: 0 | AE89: 0 | AF89: 0 | AG89: 1.406333119 | AH89: 0 | AI89: 0 | AJ89: 0 | AK89: 0
A90: LCA | B90: 2012 | C90: LCA_2012_MICS | D90: 222 | E90: Hygiene ladder | F90: Basic | G90: h_bas | H90: 69.68906407 | I90: 85.20066099 | J90: 90.75416782 | K90: 95.11956514 | L90: 95.69936993 | M90: 66.77810562 | N90: 88.28401651 | O90: 88.83541529 | P90: 98.37454514 | Q90: 96.51012434 | R90: 70.53857853 | S90: 84.58311422 | T90: 90.88141077 | U90: 94.43430444 | V90: 95.40906364 | W90: 677.3356332 | X90: 817.1756781 | Y90: 840.061292 | Z90: 935.4346168 | AA90: 887.479586 | AB90: 119.600137 | AC90: 159.8862218 | AD90: 156.7856364 | AE90: 178.2887897 | AF90: 178.0848728 | AG90: 557.521355 | AH90: 658.9465445 | AI90: 685.1591272 | AJ90: 747.3049606 | AK90: 715.9091612
A91: LCA | B91: 2012 | C91: LCA_2012_MICS | D91: 223 | E91: Hygiene ladder | F91: Limited | G91: h_lim | H91: 15.63194298 | I91: 11.06455159 | J91: 5.436142448 | K91: 3.155841065 | L91: 2.316865944 | M91: 17.99825707 | N91: 8.99028872 | O91: 8.728523969 | P91: 0 | Q91: 1.294438996 | R91: 15.0235217 | S91: 11.40937532 | T91: 4.884603018 | U91: 3.921846803 | V91: 2.545076704 | W91: 151.9330491 | X91: 106.1222101 | Y91: 50.31937329 | Z91: 31.03549699 | AA91: 21.48573424 | AB91: 32.2350266 | AC91: 16.28180675 | AD91: 15.40497312 | AE91: 0 | AF91: 2.388557736 | AG91: 118.7425994 | AH91: 88.8849803 | AI91: 36.82524635 | AJ91: 31.03549699 | AK91: 19.0971765
A92: LCA | B92: 2012 | C92: LCA_2012_MICS | D92: 224 | E92: Hygiene ladder | F92: No facility | G92: h_nfac | H92: 14.67899295 | I92: 3.734787414 | J92: 3.809689729 | K92: 1.724593791 | L92: 1.983764127 | M92: 15.22363731 | N92: 2.725694774 | O92: 2.436060738 | P92: 1.62545486 | Q92: 2.195436666 | R92: 14.43789976 | S92: 4.007510466 | T92: 4.233986217 | U92: 1.643848758 | V92: 2.04585966 | W92: 142.6709501 | X92: 35.82105352 | Y92: 35.26419726 | Z92: 16.96017775 | AA92: 18.39667458 | AB92: 27.26565975 | AC92: 4.936352653 | AD92: 4.299403924 | AE92: 2.945887874 | AF92: 4.051119633 | AG92: 114.1139729 | AH92: 31.22059524 | AI92: 31.92021643 | AJ92: 13.00858135 | AK92: 15.35126347
A93: LCA | B93: 2012 | C93: LCA_2012_MICS | D93: 225 | E93: Place where household members most often wash their hands | F93: Observed | H93: 83.47626357 | I93: 93.26856452 | J93: 89.71028426 | K93: 97.0489784 | L93: 91.89159222 | M93: 80.71345339 | N93: 92.96536761 | O93: 91.79699768 | P93: 94.48370583 | Q93: 95.92901622 | R93: 84.43478457 | S93: 92.87213979 | T93: 89.8187436 | U93: 97.37524427 | V93: 90.79028439
A94: LCA | B94: 2012 | C94: LCA_2012_MICS | D94: 226 | E94: Place where household members most often wash their hands | F94: Not in dwelling/plot/yard | H94: 8.667930773 | I94: 1.220899517 | J94: 0.7326355032 | K94: 0.4822783421 | L94: 0 | M94: 10.59292101 | N94: 0.2520924481 | O94: 1.528044505 | P94: 0 | Q94: 0.5345752483 | R94: 8.263116369 | S94: 1.322977703 | T94: 0.6668888662 | U94: 0.4750408129 | V94: 0
A95: LCA | B95: 2012 | C95: LCA_2012_MICS | D95: 227 | E95: Place where household members most often wash their hands | F95: No permission to see | H95: 2.162121081 | I95: 3.112908581 | J95: 6.73667232 | K95: 1.247949879 | L95: 6.248601165 | M95: 4.792502505 | N95: 4.429677096 | O95: 5.910935558 | P95: 3.955128135 | Q95: 1.917647853 | R95: 1.317540899 | S95: 3.250618627 | T95: 6.210209601 | U95: 0.9973010966 | V95: 7.313479474
A96: LCA | B96: 2012 | C96: LCA_2012_MICS | D96: 228 | E96: Place where household members most often wash their hands | F96: Other reason | H96: 5.693684576 | I96: 2.397627379 | J96: 2.820407912 | K96: 1.220793383 | L96: 1.859806619 | M96: 3.901123097 | N96: 2.352862849 | O96: 0.7640222526 | P96: 1.561166037 | Q96: 1.618760674 | R96: 5.984558161 | S96: 2.554263881 | T96: 3.304157932 | U96: 1.152413824 | V96: 1.896236134
